Workbook

Sheet N-LI-crops&pasture
A1: Nitrogen Leaching Index Worksheet TX - Version 4 | Y1: Zone | Z1: FIPS | AA1: County | AB1: Corn | AC1: Cotton | AD1: Sorghum | AE1: Bermuda | AF1: Bermuda / SmGr | AG1: Corn / SmGr | AH1: Corn Silage / SmGr | AI1: Forage Sorghum / SmGr | AJ1: SmGr | AK1: Full Season Double Crop | AL1: Spring Watermelons | AM1: Fall Watermelons | AO1: Corn | AP1: Cotton | AQ1: Sorghum | AR1: Bermuda | AS1: Bermuda / SmGr | AT1: Corn / SmGr | AU1: Corn Silage / SmGr | AV1: Forage Sorghum Silage / SmGr | AW1: SmGr | AX1: Full Season Double Crop | AY1: Spring Watermelons | AZ1: Fall Watermelons | BA1: Zone
A3: Name | G3: Assisted by: | M3: Date: | X3: =County -> Ellis | Y3: 4 | Z3: 48001 | AA3: Anderson | AB3: Aug - Jan | AC3: Nov - Feb | AD3: Nov - Apr | AE3: Nov - Feb | AF3: None | AG3: Aug -Sep | AH3: Jul - Sep | AI3: Aug - Sep | AJ3: Jul - Sep | AK3: Oct | AL3: Jul - Feb | AM3: Oct - Apr | AO3: =SUM(Aug+Sep+Oct+Nov+Dec+Jan) -> 18.14 | AP3: =SUM(Sep+Oct+Nov+Dec+Jan+Feb) -> 18.84 | AQ3: =SUM(Nov+Dec+Jan+Feb+Mar+Apr) -> 17.76 | AR3: =SUM(Nov+Dec+Jan+Feb) -> 11.69 | AS3: =IF(AF3="none",0) -> 0 | AT3: =Aug+Sep -> 5.07 | AU3: =SUM(Jul+Aug+Sep) -> 6.67 | AV3: =SUM(Aug+Sep) -> 5.07 | AW3: =SUM(Jul+Aug+Sep) -> 6.67 | AX3: =Oct -> 4.23 | AY3: =SUM(Jul+Aug+Sep+Oct+Nov+Dec+Jan+Feb) -> 22.59 | AZ3: =SUM(Oct+Nov+Dec+Jan+Feb+Mar+Apr) -> 21.99 | BA3: =Y3 -> 4
Y4: 2 | Z4: 48003 | AA4: Andrews | AB4: Nov - Mar | AC4: Nov - Apr | AD4: Nov - Apr | AE4: Nov - Feb | AF4: None | AG4: Sep | AH4: Sep - Oct | AI4: Sep - Oct | AJ4: Jul - Sep | AK4: Oct | AL4: Aug - Mar | AM4: not grown | AO4: =SUM(Nov+Dec+Jan+Feb+Mar) -> 14.53 | AP4: =SUM(Nov+Dec+Jan+Feb+Mar+Apr) -> 17.76 | AQ4: =SUM(Nov+Dec+Jan+Feb+Mar+Apr) -> 17.76 | AR4: 11.69 | AS4: 0 | AT4: =Sep -> 2.92 | AU4: =SUM(Sep+Oct) -> 7.15 | AV4: =SUM(Sep+Oct) -> 7.15 | AW4: 6.67 | AX4: 4.23 | AY4: =SUM(Aug+Sep+Oct+Nov+Dec+Jan+Feb+Mar) -> 23.83 | AZ4: =IF(AM4="Not Grown",AM4) -> not grown | BA4: =Y4 -> 2
A5: County | B5: Ellis | C5: Use button in yellow cells to pick from list. | H5: Annual Inches Additional from Irrigation | L5: 0 | S5: =VLOOKUP(B5,AA3:BA256,27) -> 5 | Y5: 4 | Z5: 48005 | AA5: Angelina | AB5: Aug - Jan | AC5: Nov - Feb | AD5: Sep - Mar | AE5: Nov - Feb | AF5: None | AG5: Aug -Sep | AH5: Jul - Sep | AI5: Aug - Sep | AJ5: Jul - Sep | AK5: Oct | AL5: Jul - Feb | AM5: Oct - Apr | AO5: =SUM(Aug+Sep+Oct+Nov+Dec+Jan) -> 18.14 | AP5: =SUM(Sep+Oct+Nov+Dec+Jan+Feb) -> 18.84 | AQ5: =SUM(Sep+Oct+Nov+Dec+Jan+Feb+Mar) -> 21.68 | AR5: 11.69 | AS5: 0 | AT5: =Aug+Sep -> 5.07 | AU5: =SUM(Jul+Aug+Sep) -> 6.67 | AV5: =SUM(Aug+Sep) -> 5.07 | AW5: 6.67 | AX5: 4.23 | AY5: =SUM(Jul+Aug+Sep+Oct+Nov+Dec+Jan+Feb) -> 22.59 | AZ5: =SUM(Oct+Nov+Dec+Jan+Feb+Mar+Apr) -> 21.99 | BA5: 4
Y6: 3 | Z6: 48007 | AA6: Aransas | AB6: Aug - Jan | AC6: Sep - Feb | AD6: Jul - Jan | AE6: Nov - Feb | AF6: None | AG6: Aug -Sep | AH6: Jun - Sep | AI6: Jun - Sep | AJ6: Jul - Sep | AK6: Oct | AL6: Jul - Jan | AM6: Dec - Jul | AO6: =SUM(Aug+Sep+Oct+Nov+Dec+Jan) -> 18.14 | AP6: =SUM(Sep+Oct+Nov+Dec+Jan+Feb) -> 18.84 | AQ6: =SUM(Jul+Aug+Sep+Oct+Nov+Dec+Jan) -> 19.74 | AR6: 11.69 | AS6: 0 | AT6: =Aug+Sep -> 5.07 | AU6: =SUM(Jun+Jul+Aug+Sep) -> 10.39 | AV6: =SUM(Jun+Jul+Aug+Sep) -> 10.39 | AW6: 6.67 | AX6: 4.23 | AY6: =SUM(Jul+Aug+Sep+Oct+Nov+Dec+Jan) -> 19.74 | AZ6: =SUM(Dec+Jan+Feb+Mar+Apr+May+Jun+Jul) -> 24.56 | BA6: 3
B7: 30 year avg. (rainfall inches) | Y7: 5 | Z7: 48009 | AA7: Archer | AB7: Nov - Mar | AC7: Nov - Apr | AD7: Nov - Apr | AE7: Nov - Feb | AF7: None | AG7: Sep | AH7: Aug - Sep | AI7: Aug - Sep | AJ7: Jul - Sep | AK7: Oct | AL7: not grown | AM7: Dec - May | AO7: =SUM(Nov+Dec+Jan+Feb+Mar) -> 14.53 | AP7: =SUM(Nov+Dec+Jan+Feb+Mar+Apr) -> 17.76 | AQ7: =SUM(Nov+Dec+Jan+Feb+Mar+Apr) -> 17.76 | AR7: 11.69 | AS7: 0 | AT7: =Sep -> 2.92 | AU7: =SUM(Aug+Sep) -> 5.07 | AV7: =SUM(Aug+Sep) -> 5.07 | AW7: 6.67 | AX7: 4.23 | AY7: =IF(AL7="Not Grown",AL7) -> not grown | AZ7: =SUM(Dec+Jan+Feb+Mar+Apr+May) -> 19.24 | BA7: 5
B8: Jan | C8: Feb | D8: Mar | E8: Apr | F8: May | G8: Jun | H8: Jul | I8: Aug | J8: Sep | K8: Oct | L8: Nov | M8: Dec | N8: Ann. Avg. | Y8: 1 | Z8: 48011 | AA8: Armstrong | AB8: Nov - Mar | AC8: Nov - Apr | AD8: Nov - Apr | AE8: Nov - Feb | AF8: None | AG8: Sep | AH8: Oct | AI8: Sep | AJ8: Jul - Sep | AK8: Oct | AL8: not grown | AM8: Dec - May | AO8: =SUM(Nov+Dec+Jan+Feb+Mar) -> 14.53 | AP8: =SUM(Nov+Dec+Jan+Feb+Mar+Apr) -> 17.76 | AQ8: =SUM(Nov+Dec+Jan+Feb+Mar+Apr) -> 17.76 | AR8: 11.69 | AS8: 0 | AT8: =Sep -> 2.92 | AU8: =Oct -> 4.23 | AV8: =Sep -> 2.92 | AW8: 6.67 | AX8: 4.23 | AY8: =IF(AL8="Not Grown",AL8) -> not grown | AZ8: =SUM(Dec+Jan+Feb+Mar+Apr+May) -> 19.24 | BA8: 1
B9: =IF($B$5="","",VLOOKUP($B$5,rain,2,FALSE)) -> 2.4 | C9: =IF($B$5="","",VLOOKUP($B$5,rain,3,FALSE)) -> 2.85 | D9: =IF($B$5="","",VLOOKUP($B$5,rain,4,FALSE)) -> 2.84 | E9: =IF($B$5="","",VLOOKUP($B$5,rain,5,FALSE)) -> 3.23 | F9: =IF($B$5="","",VLOOKUP($B$5,rain,6,FALSE)) -> 4.66 | G9: =IF($B$5="","",VLOOKUP($B$5,rain,7,FALSE)) -> 3.72 | H9: =IF($B$5="","",VLOOKUP($B$5,rain,8,FALSE)) -> 1.6 | I9: =IF($B$5="","",VLOOKUP($B$5,rain,9,FALSE)) -> 2.15 | J9: =IF($B$5="","",VLOOKUP($B$5,rain,10,FALSE)) -> 2.92 | K9: =IF($B$5="","",VLOOKUP($B$5,rain,11,FALSE)) -> 4.23 | L9: =IF($B$5="","",VLOOKUP($B$5,rain,12,FALSE)) -> 3.18 | M9: =IF($B$5="","",VLOOKUP($B$5,rain,13,FALSE)) -> 3.26 | N9: =SUM(B9:M9) -> 37.04 | Y9: 3 | Z9: 48013 | AA9: Atascosa | AB9: Aug - Feb | AC9: Oct - Mar | AD9: Aug - Feb | AE9: Nov - Feb | AF9: None | AG9: Aug -Sep | AH9: Jun - Sep | AI9: Jun - Sep | AJ9: Jul - Sep | AK9: Oct | AL9: Jul - Feb | AM9: Oct - Apr | AO9: =SUM(Aug+Sep+Oct+Nov+Dec+Jan+Feb) -> 20.99 | AP9: =SUM(Oct+Nov+Dec+Jan+Feb+Mar) -> 18.76 | AQ9: =SUM(Aug+Sep+Oct+Nov+Dec+Jan+Feb) -> 20.99 | AR9: 11.69 | AS9: 0 | AT9: =Aug+Sep -> 5.07 | AU9: =SUM(Jun+Jul+Aug+Sep) -> 10.39 | AV9: =SUM(Jun+Jul+Aug+Sep) -> 10.39 | AW9: 6.67 | AX9: 4.23 | AY9: =SUM(Jul+Aug+Sep+Oct+Nov+Dec+Jan+Feb) -> 22.59 | AZ9: =SUM(Oct-Nov+Dec+Jan+Feb+Mar+Apr) -> 15.63 | BA9: 3
Y10: 3 | Z10: 48015 | AA10: Austin | AB10: Aug - Feb | AC10: Oct - Mar | AD10: Sep - Mar | AE10: Nov - Feb | AF10: None | AG10: Aug -Sep | AH10: Jul - Sep | AI10: Jul - Sep | AJ10: Jul - Sep | AK10: Oct | AL10: Jul - Feb | AM10: Oct - Apr | AO10: =SUM(Aug+Sep+Oct+Nov+Dec+Jan+Feb) -> 20.99 | AP10: =SUM(Oct+Nov+Dec+Jan+Feb+Mar) -> 18.76 | AQ10: =SUM(Sep+Oct+Nov+Dec+Jan+Feb+Mar) -> 21.68 | AR10: 11.69 | AS10: 0 | AT10: =Aug+Sep -> 5.07 | AU10: =SUM(Jun+Jul+Aug+Sep) -> 10.39 | AV10: =SUM(Jul+Aug+Sep) -> 6.67 | AW10: 6.67 | AX10: 4.23 | AY10: =SUM(Jul+Aug+Sep+Oct+Nov+Dec+Jan+Feb) -> 22.59 | AZ10: =SUM(Oct-Nov+Dec+Jan+Feb+Mar+Apr) -> 15.63 | BA10: 3
D11: Avg. Annual Rainfall | E11: Avg. Total Non-growing Rainfall | F11: Non-Growing Months | H11: Guidelines and Recommendations | S11: SI | Y11: 1 | Z11: 48017 | AA11: Bailey | AB11: Nov - Mar | AC11: Nov - Apr | AD11: Nov - Apr | AE11: Nov - Feb | AF11: None | AG11: Sep | AH11: Oct | AI11: Sep | AJ11: Jul - Sep | AK11: Oct | AL11: not grown | AM11: Dec - May | AO11: =SUM(Nov+Dec+Jan+Feb+Mar) -> 14.53 | AP11: =SUM(Nov+Dec+Jan+Feb+Mar+Apr) -> 17.76 | AQ11: =SUM(Nov+Dec+Jan+Feb+Mar+Apr) -> 17.76 | AR11: 11.69 | AS11: 0 | AT11: =Sep -> 2.92 | AU11: =Oct -> 4.23 | AV11: =Sep -> 2.92 | AW11: 6.67 | AX11: 4.23 | AY11: =IF(AL11="Not Grown",AL11) -> not grown | AZ11: =SUM(Dec+Jan+Feb+Mar+Apr+May) -> 19.24 | BA11: 1
C12: Corn | D12: =SUM($B$9:$M$9)+$L$5 -> 37.04 | E12: =IF(VLOOKUP(County,CropDatabase,15)="","",VLOOKUP(County,CropDatabase,15)) -> 14.53 | F12: =IF(VLOOKUP(County,CropDatabase,2)="","",VLOOKUP(County,CropDatabase,2)) -> Nov - Mar | H12: NLI <2 - | J12: probably will not contribute to soluble | S12: =IF(E12="not grown","0",POWER((2*E12)/D12,1/3)) -> 0.9223056674 | Y12: 2 | Z12: 48019 | AA12: Bandera | AB12: Aug - Feb | AC12: Oct - Mar | AD12: Sep - Feb | AE12: Nov - Feb | AF12: None | AG12: Aug -Sep | AH12: Sep - Oct | AI12: Sep - Oct | AJ12: Jul - Sep | AK12: Oct | AL12: Aug - Mar | AM12: not grown | AO12: =SUM(Aug+Sep+Oct+Nov+Dec+Jan+Feb) -> 20.99 | AP12: =SUM(Oct+Nov+Dec+Jan+Feb+Mar) -> 18.76 | AQ12: =SUM(Sep+Oct+Nov+Dec+Jan+Feb) -> 18.84 | AR12: 11.69 | AS12: 0 | AT12: =Aug+Sep -> 5.07 | AU12: =SUM(Sep+Oct) -> 7.15 | AV12: =SUM(Sep+Oct) -> 7.15 | AW12: 6.67 | AX12: 4.23 | AY12: =SUM(Aug+Sep+Oct+Nov+Dec+Jan+Feb+Mar) -> 23.83 | AZ12: =IF(AM12="Not Grown",AM12) -> not grown | BA12: 2
C13: Cotton | D13: =SUM($B$9:$M$9)+$L$5 -> 37.04 | E13: =IF(VLOOKUP(County,CropDatabase,16)="","",VLOOKUP(County,CropDatabase,16)) -> 17.76 | F13: =IF(VLOOKUP(County,CropDatabase,3)="","",VLOOKUP(County,CropDatabase,3)) -> Nov - Apr | J13: nutrient leaching below the root zone. | S13: =IF(E13="not grown","0",POWER((2*E13)/D13,1/3)) -> 0.9861295957 | Y13: 3 | Z13: 48021 | AA13: Bastrop | AB13: Aug - Feb | AC13: Oct - Mar | AD13: Sep - Mar | AE13: Nov - Feb | AF13: None | AG13: Aug -Sep | AH13: Jul - Sep | AI13: Jul - Sep | AJ13: Jul - Sep | AK13: Oct | AL13: Jul - Feb | AM13: Oct - Apr | AO13: =SUM(Aug+Sep+Oct+Nov+Dec+Jan+Feb) -> 20.99 | AP13: =SUM(Oct+Nov+Dec+Jan+Feb+Mar) -> 18.76 | AQ13: =SUM(Sep+Oct+Nov+Dec+Jan+Feb+Mar) -> 21.68 | AR13: 11.69 | AS13: 0 | AT13: =Aug+Sep -> 5.07 | AU13: =SUM(Jun+Jul+Aug+Sep) -> 10.39 | AV13: =SUM(Jul+Aug+Sep) -> 6.67 | AW13: 6.67 | AX13: 4.23 | AY13: =SUM(Jul+Aug+Sep+Oct+Nov+Dec+Jan+Feb) -> 22.59 | AZ13: =SUM(Oct-Nov+Dec+Jan+Feb+Mar+Apr) -> 15.63 | BA13: 3
C14: Sorghum | D14: =SUM($B$9:$M$9)+$L$5 -> 37.04 | E14: =IF(VLOOKUP(County,CropDatabase,17)="","",VLOOKUP(County,CropDatabase,17)) -> 17.76 | F14: =IF(VLOOKUP(County,CropDatabase,4)="","",VLOOKUP(County,CropDatabase,4)) -> Nov - Apr | S14: 0.9861295957 | Y14: 5 | Z14: 48023 | AA14: Baylor | AB14: Nov - Mar | AC14: Nov - Apr | AD14: Nov - Apr | AE14: Nov - Feb | AF14: None | AG14: Sep | AH14: Aug - Sep | AI14: Aug - Sep | AJ14: Jul - Sep | AK14: Oct | AL14: not grown | AM14: Dec - May | AO14: =SUM(Nov+Dec+Jan+Feb+Mar) -> 14.53 | AP14: =SUM(Nov+Dec+Jan+Feb+Mar+Apr) -> 17.76 | AQ14: =SUM(Nov+Dec+Jan+Feb+Mar+Apr) -> 17.76 | AR14: 11.69 | AS14: 0 | AT14: =Sep -> 2.92 | AU14: =SUM(Aug+Sep) -> 5.07 | AV14: =SUM(Aug+Sep) -> 5.07 | AW14: 6.67 | AX14: 4.23 | AY14: =IF(AL14="Not Grown",AL14) -> not grown | AZ14: =SUM(Dec+Jan+Feb+Mar+Apr+May) -> 19.24 | BA14: 5
C15: Bermudagrass | D15: =SUM($B$9:$M$9)+$L$5 -> 37.04 | E15: =IF(VLOOKUP(County,CropDatabase,18)="","",VLOOKUP(County,CropDatabase,18)) -> 11.69 | F15: =IF(VLOOKUP(County,CropDatabase,5)="","",VLOOKUP(County,CropDatabase,5)) -> Nov - Feb | H15: NLI 2 to 10 - | J15: may contribute to soluble nutrient leaching | S15: 0.8578101412 | Y15: 3 | Z15: 48025 | AA15: Bee | AB15: Aug - Jan | AC15: Sep - Feb | AD15: Jul - Jan | AE15: Nov - Feb | AF15: None | AG15: Aug -Sep | AH15: Jun - Sep | AI15: Jun - Sep | AJ15: Jul - Sep | AK15: Sep - Oct | AL15: Jul - Jan | AM15: Dec - Jul | AO15: =SUM(Aug+Sep+Oct+Nov+Dec+Jan) -> 18.14 | AP15: =SUM(Sep+Oct+Nov+Dec+Jan+Feb) -> 18.84 | AQ15: =SUM(Jul+Aug+Sep+Oct+Nov+Dec+Jan) -> 19.74 | AR15: 11.69 | AS15: 0 | AT15: =Aug+Sep -> 5.07 | AU15: =SUM(Jun+Jul+Aug+Sep) -> 10.39 | AV15: =SUM(Jul+Aug+Sep) -> 6.67 | AW15: 6.67 | AX15: =Sep+Oct -> 7.15 | AY15: =SUM(Jul+Aug+Sep+Oct+Nov+Dec+Jan) -> 19.74 | AZ15: =SUM(Dec+Jan+Feb+Mar+Apr+May+Jun+Jul) -> 24.56 | BA15: 3
C16: Bermudagrass & Small Grain | D16: =SUM($B$9:$M$9)+$L$5 -> 37.04 | E16: =IF(VLOOKUP(County,CropDatabase,19)="","",VLOOKUP(County,CropDatabase,19)) -> 0 | F16: =IF(VLOOKUP(County,CropDatabase,6)="","",VLOOKUP(County,CropDatabase,6)) -> None | J16: below the root zone. | S16: 0 | Y16: 5 | Z16: 48027 | AA16: Bell | AB16: Nov - Mar | AC16: Nov - Apr | AD16: Nov - Apr | AE16: Nov - Feb | AF16: None | AG16: Sep | AH16: Aug - Sep | AI16: Aug - Sep | AJ16: Jul - Sep | AK16: Oct | AL16: not grown | AM16: Dec - May | AO16: =SUM(Nov+Dec+Jan+Feb+Mar) -> 14.53 | AP16: =SUM(Nov+Dec+Jan+Feb+Mar+Apr) -> 17.76 | AQ16: =SUM(Nov+Dec+Jan+Feb+Mar+Apr) -> 17.76 | AR16: 11.69 | AS16: 0 | AT16: =Sep -> 2.92 | AU16: =SUM(Aug+Sep) -> 5.07 | AV16: =SUM(Aug+Sep) -> 5.07 | AW16: 6.67 | AX16: =Oct -> 4.23 | AY16: =IF(AL16="Not Grown",AL16) -> not grown | AZ16: =SUM(Dec+Jan+Feb+Mar+Apr+May) -> 19.24 | BA16: 5
C17: Corn + Small Grain | D17: =SUM($B$9:$M$9)+$L$5 -> 37.04 | E17: =IF(VLOOKUP(County,CropDatabase,20)="","",VLOOKUP(County,CropDatabase,20)) -> 2.92 | F17: =IF(VLOOKUP(County,CropDatabase,7)="","",VLOOKUP(County,CropDatabase,7)) -> Sep | S17: 0.540232395 | Y17: 3 | Z17: 48029 | AA17: Bexar | AB17: Aug - Feb | AC17: Oct - Mar | AD17: Aug - Feb | AE17: Nov - Feb | AF17: None | AG17: Aug -Sep | AH17: Jun - Sep | AI17: Jun - Sep | AJ17: Jul - Sep | AK17: Oct | AL17: Jul - Feb | AM17: Oct - Apr | AO17: =SUM(Aug+Sep+Oct+Nov+Dec+Jan+Feb) -> 20.99 | AP17: =SUM(Oct+Nov+Dec+Jan+Feb+Mar) -> 18.76 | AQ17: =SUM(Aug+Sep+Oct+Nov+Dec+Jan+Feb) -> 20.99 | AR17: 11.69 | AS17: 0 | AT17: =Aug+Sep -> 5.07 | AU17: =SUM(Jun+Jul+Aug+Sep) -> 10.39 | AV17: =SUM(Jun+Jul+Aug+Sep) -> 10.39 | AW17: 6.67 | AX17: 4.23 | AY17: =SUM(Jul+Aug+Sep+Oct+Nov+Dec+Jan+Feb) -> 22.59 | AZ17: =SUM(Oct-Nov+Dec+Jan+Feb+Mar+Apr) -> 15.63 | BA17: 3
C18: Corn Silage + Small Grain | D18: =SUM($B$9:$M$9)+$L$5 -> 37.04 | E18: =IF(VLOOKUP(County,CropDatabase,21)="","",VLOOKUP(County,CropDatabase,21)) -> 5.07 | F18: =IF(VLOOKUP(County,CropDatabase,8)="","",VLOOKUP(County,CropDatabase,8)) -> Aug - Sep | H18: NLI >10 - | J18: will contribute to soluble nutrient leaching | S18: 0.6493153338 | Y18: 2 | Z18: 48031 | AA18: Blanco | AB18: Aug - Feb | AC18: Oct - Mar | AD18: Sep - Feb | AE18: Nov - Feb | AF18: None | AG18: Aug -Sep | AH18: Sep - Oct | AI18: Sep - Oct | AJ18: Jul - Sep | AK18: Oct | AL18: Aug - Mar | AM18: not grown | AO18: =SUM(Aug+Sep+Oct+Nov+Dec+Jan+Feb) -> 20.99 | AP18: =SUM(Oct+Nov+Dec+Jan+Feb+Mar) -> 18.76 | AQ18: =SUM(Sep+Oct+Nov+Dec+Jan+Feb) -> 18.84 | AR18: 11.69 | AS18: 0 | AT18: =Aug+Sep -> 5.07 | AU18: =SUM(Sep+Oct) -> 7.15 | AV18: =SUM(Sep+Oct) -> 7.15 | AW18: 6.67 | AX18: 4.23 | AY18: =SUM(Aug+Sep+Oct+Nov+Dec+Jan+Feb+Mar) -> 23.83 | AZ18: =IF(AM18="Not Grown",AM18) -> not grown | BA18: 2
C19: Forage Sorghum (silage) + Small Grain | D19: =SUM($B$9:$M$9)+$L$5 -> 37.04 | E19: =IF(VLOOKUP(County,CropDatabase,22)="","",VLOOKUP(County,CropDatabase,22)) -> 5.07 | F19: =IF(VLOOKUP(County,CropDatabase,9)="","",VLOOKUP(County,CropDatabase,9)) -> Aug - Sep | J19: below the root zone. Nutrient management should be | S19: 0.6493153338 | Y19: 1 | Z19: 48033 | AA19: Borden | AB19: Nov - Mar | AC19: Nov - Apr | AD19: Nov - Apr | AE19: Nov - Feb | AF19: None | AG19: Sep | AH19: Oct | AI19: Sep | AJ19: Jul - Sep | AK19: Oct | AL19: not grown | AM19: Dec - May | AO19: =SUM(Nov+Dec+Jan+Feb+Mar) -> 14.53 | AP19: =SUM(Nov+Dec+Jan+Feb+Mar+Apr) -> 17.76 | AQ19: =SUM(Nov+Dec+Jan+Feb+Mar+Apr) -> 17.76 | AR19: 11.69 | AS19: 0 | AT19: =Sep -> 2.92 | AU19: =Oct -> 4.23 | AV19: =Sep -> 2.92 | AW19: 6.67 | AX19: 4.23 | AY19: =IF(AL19="Not Grown",AL19) -> not grown | AZ19: =SUM(Dec+Jan+Feb+Mar+Apr+May) -> 19.24 | BA19: 1
C20: Small Grain | D20: =SUM($B$9:$M$9)+$L$5 -> 37.04 | E20: =IF(VLOOKUP(County,CropDatabase,23)="","",VLOOKUP(County,CropDatabase,23)) -> 6.67 | F20: =IF(VLOOKUP(County,CropDatabase,10)="","",VLOOKUP(County,CropDatabase,10)) -> Jul - Sep | J20: maximized or soluble nutrients should not be applied. | S20: 0.711478232 | Y20: 5 | Z20: 48035 | AA20: Bosque | AB20: Nov - Mar | AC20: Nov - Apr | AD20: Nov - Apr | AE20: Nov - Feb | AF20: None | AG20: Sep | AH20: Aug - Sep | AI20: Aug - Sep | AJ20: Jul - Sep | AK20: Oct | AL20: not grown | AM20: Dec - May | AO20: =SUM(Nov+Dec+Jan+Feb+Mar) -> 14.53 | AP20: =SUM(Nov+Dec+Jan+Feb+Mar+Apr) -> 17.76 | AQ20: =SUM(Nov+Dec+Jan+Feb+Mar+Apr) -> 17.76 | AR20: 11.69 | AS20: 0 | AT20: =Sep -> 2.92 | AU20: =SUM(Aug+Sep) -> 5.07 | AV20: =SUM(Aug+Sep) -> 5.07 | AW20: 6.67 | AX20: 4.23 | AY20: =IF(AL20="Not Grown",AL20) -> not grown | AZ20: =SUM(Dec+Jan+Feb+Mar+Apr+May) -> 19.24 | BA20: 5
C21: Full Season Double Crop | D21: =SUM($B$9:$M$9)+$L$5 -> 37.04 | E21: =IF(VLOOKUP(County,CropDatabase,24)="","",VLOOKUP(County,CropDatabase,24)) -> 4.23 | F21: =IF(VLOOKUP(County,CropDatabase,11)="","",VLOOKUP(County,CropDatabase,11)) -> Oct | J21: Additonal practices to reduce leaching should be | S21: 0.6112700653 | Y21: 4 | Z21: 48037 | AA21: Bowie | AB21: Aug - Jan | AC21: Nov - Feb | AD21: Nov - Apr | AE21: Nov - Feb | AF21: None | AG21: Aug -Sep | AH21: Jul - Sep | AI21: Aug - Sep | AJ21: Jul - Sep | AK21: Oct | AL21: Jul - Feb | AM21: Oct - Apr | AO21: =SUM(Aug+Sep+Oct+Nov+Dec+Jan) -> 18.14 | AP21: =SUM(Sep+Oct+Nov+Dec+Jan+Feb) -> 18.84 | AQ21: =SUM(Nov+Dec+Jan+Feb+Mar+Apr) -> 17.76 | AR21: 11.69 | AS21: 0 | AT21: =Aug+Sep -> 5.07 | AU21: =SUM(Jul+Aug+Sep) -> 6.67 | AV21: =SUM(Aug+Sep) -> 5.07 | AW21: 6.67 | AX21: 4.23 | AY21: =SUM(Jul+Aug+Sep+Oct+Nov+Dec+Jan+Feb) -> 22.59 | AZ21: =SUM(Oct+Nov+Dec+Jan+Feb+Mar+Apr) -> 21.99 | BA21: 4
C22: Spring Watemelons | D22: =SUM($B$9:$M$9)+$L$5 -> 37.04 | E22: =IF(VLOOKUP(County,CropDatabase,25)="","",VLOOKUP(County,CropDatabase,25)) -> not grown | F22: =IF(VLOOKUP(County,CropDatabase,12)="","",VLOOKUP(County,CropDatabase,12)) -> not grown | J22: considered. | S22: 0 | Y22: 3 | Z22: 48039 | AA22: Brazoria | AB22: Aug - Jan | AC22: Sep - Feb | AD22: Aug - Feb | AE22: Nov - Feb | AF22: None | AG22: Aug -Sep | AH22: Jun - Sep | AI22: Jun - Sep | AJ22: Jul - Sep | AK22: Oct | AL22: Jul - Feb | AM22: Oct - Apr | AO22: =SUM(Aug+Sep+Oct+Nov+Dec+Jan) -> 18.14 | AP22: =SUM(Sep+Oct+Nov+Dec+Jan+Feb) -> 18.84 | AQ22: =SUM(Aug+Sep+Oct+Nov+Dec+Jan+Feb) -> 20.99 | AR22: 11.69 | AS22: 0 | AT22: =Aug+Sep -> 5.07 | AU22: =SUM(Jun+Jul+Aug+Sep) -> 10.39 | AV22: =SUM(Jun+Jul+Aug+Sep) -> 10.39 | AW22: 6.67 | AX22: 4.23 | AY22: =SUM(Jul+Aug+Sep+Oct+Nov+Dec+Jan+Feb) -> 22.59 | AZ22: =SUM(Oct-Nov+Dec+Jan+Feb+Mar+Apr) -> 15.63 | BA22: 3
C23: Fall Watermelons | D23: =SUM($B$9:$M$9)+$L$5 -> 37.04 | E23: =IF(VLOOKUP(County,CropDatabase,26)="","",VLOOKUP(County,CropDatabase,26)) -> 19.24 | F23: =IF(VLOOKUP(County,CropDatabase,13)="","",VLOOKUP(County,CropDatabase,13)) -> Dec - May | S23: 1.012794564 | Y23: 4 | Z23: 48041 | AA23: Brazos | AB23: Aug - Jan | AC23: Nov - Feb | AD23: Sep - Mar | AE23: Nov - Feb | AF23: None | AG23: Aug -Sep | AH23: Jul - Sep | AI23: Aug - Sep | AJ23: Jul - Sep | AK23: Oct | AL23: Jul - Feb | AM23: Oct - Apr | AO23: =SUM(Aug+Sep+Oct+Nov+Dec+Jan) -> 18.14 | AP23: =SUM(Sep+Oct+Nov+Dec+Jan+Feb) -> 18.84 | AQ23: =SUM(Sep+Oct+Nov+Dec+Jan+Feb+Mar) -> 21.68 | AR23: 11.69 | AS23: 0 | AT23: =Aug+Sep -> 5.07 | AU23: =SUM(Jul+Aug+Sep) -> 6.67 | AV23: =SUM(Aug+Sep) -> 5.07 | AW23: 6.67 | AX23: 4.23 | AY23: =SUM(Jul+Aug+Sep+Oct+Nov+Dec+Jan+Feb) -> 22.59 | AZ23: =SUM(Oct+Nov+Dec+Jan+Feb+Mar+Apr) -> 21.99 | BA23: 4
D24: =SUM($B$9:$M$9)+$L$5 -> 37.04 | H24: (Manual Entry Data for Any Other Crop can be done in the appropriate cells to the left.) | S24: =IF(E24="","",POWER((2*E24)/D24,1/3)) ->  | Y24: 2 | Z24: 48043 | AA24: Brewster | AB24: Nov - Mar | AC24: Nov - Apr | AD24: Nov - Apr | AE24: Nov - Feb | AF24: None | AG24: Sep | AH24: Sep - Oct | AI24: Sep - Oct | AJ24: Jul - Sep | AK24: Oct | AL24: Aug - Mar | AM24: not grown | AO24: =SUM(Nov+Dec+Jan+Feb+Mar) -> 14.53 | AP24: =SUM(Nov+Dec+Jan+Mar+Apr) -> 14.91 | AQ24: =SUM(Nov+Dec+Jan+Feb+Mar+Apr) -> 17.76 | AR24: 11.69 | AS24: 0 | AT24: =Sep -> 2.92 | AU24: =SUM(Sep+Oct) -> 7.15 | AV24: =SUM(Sep+Oct) -> 7.15 | AW24: 6.67 | AX24: 4.23 | AY24: =SUM(Aug+Sep+Oct+Nov+Dec+Jan+Feb+Mar) -> 23.83 | AZ24: =IF(AM24="Not Grown",AM24) -> not grown | BA24: 2
Y25: 1 | Z25: 48045 | AA25: Briscoe | AB25: Nov - Mar | AC25: Nov - Apr | AD25: Nov - Apr | AE25: Nov - Feb | AF25: None | AG25: Sep | AH25: Oct | AI25: Sep | AJ25: Jul - Sep | AK25: Oct | AL25: not grown | AM25: Dec - May | AO25: =SUM(Nov+Dec+Jan+Feb+Mar) -> 14.53 | AP25: =SUM(Nov+Dec+Jan+Feb+Mar+Apr) -> 17.76 | AQ25: =SUM(Nov+Dec+Jan+Feb+Mar+Apr) -> 17.76 | AR25: 11.69 | AS25: 0 | AT25: =Sep -> 2.92 | AU25: =Oct -> 4.23 | AV25: =Sep -> 2.92 | AW25: 6.67 | AX25: 4.23 | AY25: =IF(AL25="Not Grown",AL25) -> not grown | AZ25: =SUM(Dec+Jan+Feb+Mar+Apr+May) -> 19.24 | BA25: 1
Y26: 3 | Z26: 48047 | AA26: Brooks | AB26: Aug - Jan | AC26: Sep - Feb | AD26: Jul - Jan | AE26: Nov - Feb | AF26: None | AG26: Aug -Sep | AH26: Jun - Sep | AI26: Jun - Sep | AJ26: Jul - Sep | AK26: Sep - Oct | AL26: Jul - Jan | AM26: Dec - Jul | AO26: =SUM(Aug+Sep+Oct+Nov+Dec+Jan) -> 18.14 | AP26: =SUM(Sep+Oct+Nov+Dec+Jan+Feb) -> 18.84 | AQ26: =SUM(Jul+Aug+Sep+Oct+Nov+Dec+Jan) -> 19.74 | AR26: 11.69 | AS26: 0 | AT26: =Aug+Sep -> 5.07 | AU26: =SUM(Jun+Jul+Aug+Sep) -> 10.39 | AV26: =SUM(Jun+Jul+Aug+Sep) -> 10.39 | AW26: 6.67 | AX26: =Sep+Oct -> 7.15 | AY26: =SUM(Jul+Aug+Sep+Oct+Nov+Dec+Jan) -> 19.74 | AZ26: =SUM(Dec+Jan+Feb+Mar+Apr+May+Jun+Jul) -> 24.56 | BA26: 3
A27: Field # | B27: Predominant Soil Symbol * | C27: Hydrologic Group | D27: NLI | E27: NLI | F27: NLI | G27: NLI | H27: NLI | I27: NLI | J27: NLI | K27: NLI | L27: NLI | M27: NLI | N27: NLI | O27: NLI | P27: NLI | Y27: 5 | Z27: 48049 | AA27: Brown | AB27: Nov - Mar | AC27: Nov - Apr | AD27: Nov - Apr | AE27: Nov - Feb | AF27: None | AG27: Sep | AH27: Aug - Sep | AI27: Aug - Sep | AJ27: Jul - Sep | AK27: Oct | AL27: not grown | AM27: Dec - May | AO27: =SUM(Nov+Dec+Jan+Feb+Mar) -> 14.53 | AP27: =SUM(Nov+Dec+Jan+Feb+Mar+Apr) -> 17.76 | AQ27: =SUM(Nov+Dec+Jan+Feb+Mar+Apr) -> 17.76 | AR27: 11.69 | AS27: 0 | AT27: =Sep -> 2.92 | AU27: =SUM(Aug+Sep) -> 5.07 | AV27: =SUM(Aug+Sep) -> 5.07 | AW27: 6.67 | AX27: =Oct -> 4.23 | AY27: =IF(AL27="Not Grown",AL27) -> not grown | AZ27: =SUM(Dec+Jan+Feb+Mar+Apr+May) -> 19.24 | BA27: 5
D28: Corn | E28: Cotton | F28: Sorghum | G28: Bermuda | H28: Bermuda & Small Grain | I28: Corn & Small Grain | J28: Corn Silage & Small Grain | K28: Forage Sorghum Silage & Small Grain | L28: Small Grain | M28: Full Season Double Crop | N28: Spring Watermelons | O28: Fall Watermelons | P28: =IF($B$24="","",$B$24) ->  | S28: PI | W28: Hydrologic | Y28: 3 | Z28: 48051 | AA28: Burleson | AB28: Aug - Feb | AC28: Oct - Mar | AD28: Sep - Mar | AE28: Nov - Feb | AF28: None | AG28: Aug -Sep | AH28: Jul - Sep | AI28: Jul - Sep | AJ28: Jul - Sep | AK28: Oct | AL28: Jul - Feb | AM28: Oct - Apr | AO28: =SUM(Aug+Sep+Oct+Nov+Dec+Jan+Feb) -> 20.99 | AP28: =SUM(Oct+Nov+Dec+Jan+Feb+Mar) -> 18.76 | AQ28: =SUM(Sep+Oct+Nov+Dec+Jan+Feb+Mar) -> 21.68 | AR28: 11.69 | AS28: 0 | AT28: =Aug+Sep -> 5.07 | AU28: =SUM(Jun+Jul+Aug+Sep) -> 10.39 | AV28: =SUM(Jun+Jul+Aug+Sep) -> 10.39 | AW28: 6.67 | AX28: =Oct -> 4.23 | AY28: =SUM(Jul+Aug+Sep+Oct+Nov+Dec+Jan+Feb) -> 22.59 | AZ28: =SUM(Oct-Nov+Dec+Jan+Feb+Mar+Apr) -> 15.63 | BA28: 3
A29: 1 | B29: CaB | C29: A | D29: =IF(C29="","",IF($S$12="","",(S29*$S$12))) -> 12.58739994 | E29: =IF(C29="","",IF($S$13="","",(S29*$S$13))) -> 13.45845315 | F29: =IF(C29="","",IF($S$14="","",(S29*$S$14))) -> 13.45845315 | G29: =IF(C29="","",IF($S$15="","",(S29*$S$15))) -> 11.70718093 | H29: =IF(C29="","",IF($S$16="","",(S29*$S$16))) -> 0 | I29: =IF(C29="","",IF($S$17="","",(S29*$S$17))) -> 7.37295829 | J29: =IF(C29="","",IF($S$18="","",(S29*$S$18))) -> 8.861695296 | K29: =IF(C29="","",IF($S$19="","",(S29*$S$19))) -> 8.861695296 | L29: =IF(E29="","",IF($S$20="","",(S29*$S$20))) -> 9.710079177 | M29: =IF(C29="","",IF($S$21="","",(S29*$S$21))) -> 8.342462869 | N29: =IF(C29="","",IF($S$22="","",(S29*$S$22))) -> 0 | O29: =IF(C29="","",IF($S$23="","",(S29*$S$23))) -> 13.82237005 | P29: =IF(C29="","",IF($S$24="","",(S29*$S$24))) ->  | S29: =IF(C29="A",$T$29,IF(C29="B",$T$30,IF(C29="C",$T$31,IF(C29="D",$T$32,0)))) -> 13.647753 | T29: =POWER(($N$9+$L$5)-10.28,2)/(($N$9+$L$5)+15.43) -> 13.647753 | U29: A | W29: Group & PA (Avg. Annual rainfall) | Y29: 5 | Z29: 48053 | AA29: Burnet | AB29: Nov - Mar | AC29: Nov - Apr | AD29: Nov - Apr | AE29: Nov - Feb | AF29: None | AG29: Sep | AH29: Aug - Sep | AI29: Aug - Sep | AJ29: Jul - Sep | AK29: Oct | AL29: not grown | AM29: Dec - May | AO29: =SUM(Nov+Dec+Jan+Feb+Mar) -> 14.53 | AP29: =SUM(Nov+Dec+Jan+Feb+Mar+Apr) -> 17.76 | AQ29: =SUM(Nov+Dec+Jan+Feb+Mar+Apr) -> 17.76 | AR29: 11.69 | AS29: 0 | AT29: =Sep -> 2.92 | AU29: =SUM(Aug+Sep) -> 5.07 | AV29: =SUM(Aug+Sep) -> 5.07 | AW29: 6.67 | AX29: =Oct -> 4.23 | AY29: =IF(AL29="Not Grown",AL29) -> not grown | AZ29: =SUM(Dec+Jan+Feb+Mar+Apr+May) -> 19.24 | BA29: 5
A30: 2 | B30: Mo | C30: B | D30: =IF(C30="","",IF($S$12="","",(S30*$S$12))) -> 7.48180206 | E30: =IF(C30="","",IF($S$13="","",(S30*$S$13))) -> 7.999545813 | F30: =IF(C30="","",IF($S$14="","",(S30*$S$14))) -> 7.999545813 | G30: =IF(C30="","",IF($S$15="","",(S30*$S$15))) -> 6.958610261 | H30: =IF(C30="","",IF($S$16="","",(S30*$S$16))) -> 0 | I30: =IF(C30="","",IF($S$17="","",(S30*$S$17))) -> 4.382399445 | J30: =IF(C30="","",IF($S$18="","",(S30*$S$18))) -> 5.267287162 | K30: =IF(C30="","",IF($S$19="","",(S30*$S$19))) -> 5.267287162 | L30: =IF(E30="","",IF($S$20="","",(S30*$S$20))) -> 5.771556534 | M30: =IF(C30="","",IF($S$21="","",(S30*$S$21))) -> 4.958661532 | N30: =IF(C30="","",IF($S$22="","",(S30*$S$22))) -> 0 | O30: =IF(C30="","",IF($S$23="","",(S30*$S$23))) -> 8.215853729 | P30: =IF(C30="","",IF($S$24="","",(S30*$S$24))) ->  | S30: =IF(C30="A",$T$29,IF(C30="B",$T$30,IF(C30="C",$T$31,IF(C30="D",$T$32,0)))) -> 8.112063412 | T30: =POWER(($N$9+$L$5)-15.05,2)/(($N$9+$L$5)+22.57) -> 8.112063412 | U30: B | W30: Percolation Index (PI) | Y30: 3 | Z30: 48055 | AA30: Caldwell | AB30: Aug - Feb | AC30: Oct - Mar | AD30: Sep - Mar | AE30: Nov - Feb | AF30: None | AG30: Aug -Sep | AH30: Jul - Sep | AI30: Jul - Sep | AJ30: Jul - Sep | AK30: Oct | AL30: Jul - Feb | AM30: Oct - Apr | AO30: =SUM(Aug+Sep+Oct+Nov+Dec+Jan+Feb) -> 20.99 | AP30: =SUM(Oct+Nov+Dec+Jan+Feb+Mar) -> 18.76 | AQ30: =SUM(Sep+Oct+Nov+Dec+Jan+Feb+Mar) -> 21.68 | AR30: 11.69 | AS30: 0 | AT30: =Aug+Sep -> 5.07 | AU30: =SUM(Jun+Jul+Aug+Sep) -> 10.39 | AV30: =SUM(Jul+Aug+Sep) -> 6.67 | AW30: 6.67 | AX30: =Oct -> 4.23 | AY30: =SUM(Jul+Aug+Sep+Oct+Nov+Dec+Jan+Feb) -> 22.59 | AZ30: =SUM(Oct-Nov+Dec+Jan+Feb+Mar+Apr) -> 15.63 | BA30: 3
A31: 3 | B31: LiB | C31: C | D31: =IF(C31="","",IF($S$12="","",(S31*$S$12))) -> 4.263214381 | E31: =IF(C31="","",IF($S$13="","",(S31*$S$13))) -> 4.558230554 | F31: =IF(C31="","",IF($S$14="","",(S31*$S$14))) -> 4.558230554 | G31: =IF(C31="","",IF($S$15="","",(S31*$S$15))) -> 3.96509385 | H31: =IF(C31="","",IF($S$16="","",(S31*$S$16))) -> 0 | I31: =IF(C31="","",IF($S$17="","",(S31*$S$17))) -> 2.497140153 | J31: =IF(C31="","",IF($S$18="","",(S31*$S$18))) -> 3.001359057 | K31: =IF(C31="","",IF($S$19="","",(S31*$S$19))) -> 3.001359057 | L31: =IF(E31="","",IF($S$20="","",(S31*$S$20))) -> 3.288697378 | M31: =IF(C31="","",IF($S$21="","",(S31*$S$21))) -> 2.825500726 | N31: =IF(C31="","",IF($S$22="","",(S31*$S$22))) -> 0 | O31: =IF(C31="","",IF($S$23="","",(S31*$S$23))) -> 4.681485221 | P31: =IF(C31="","",IF($S$24="","",(S31*$S$24))) ->  | S31: 4.622344339 | T31: =POWER(($N$9+$L$5)-19.53,2)/(($N$9+$L$5)+29.29) -> 4.622344339 | U31: C | W31: A (PA - 10.28)2 / (PA + 15.43) | Y31: 3 | Z31: 48057 | AA31: Calhoun | AB31: Aug - Jan | AC31: Sep - Feb | AD31: Aug - Feb | AE31: Nov - Feb | AF31: None | AG31: Aug -Sep | AH31: Jun - Sep | AI31: Jun - Sep | AJ31: Jul - Sep | AK31: Sep - Oct | AL31: Jul - Jan | AM31: Dec - Jul | AO31: =SUM(Aug+Sep+Oct+Nov+Dec+Jan) -> 18.14 | AP31: =SUM(Sep+Oct+Nov+Dec+Jan+Feb) -> 18.84 | AQ31: =SUM(Aug+Sep+Oct+Nov+Dec+Jan+Feb) -> 20.99 | AR31: 11.69 | AS31: 0 | AT31: =Aug+Sep -> 5.07 | AU31: =SUM(Jun+Jul+Aug+Sep) -> 10.39 | AV31: =SUM(Jun+Jul+Aug+Sep) -> 10.39 | AW31: 6.67 | AX31: =Sep+Oct -> 7.15 | AY31: =SUM(Jul+Aug+Sep+Oct+Nov+Dec+Jan) -> 19.74 | AZ31: =SUM(Dec+Jan+Feb+Mar+Apr+May+Jun+Jul) -> 24.56 | BA31: 3
A32: 4 | B32: SaD | C32: D | D32: =IF(C32="","",IF($S$12="","",(S32*$S$12))) -> 2.680929915 | E32: =IF(C32="","",IF($S$13="","",(S32*$S$13))) -> 2.866451359 | F32: =IF(C32="","",IF($S$14="","",(S32*$S$14))) -> 2.866451359 | G32: =IF(C32="","",IF($S$15="","",(S32*$S$15))) -> 2.493456292 | H32: =IF(C32="","",IF($S$16="","",(S32*$S$16))) -> 0 | I32: =IF(C32="","",IF($S$17="","",(S32*$S$17))) -> 1.570331008 | J32: =IF(C32="","",IF($S$18="","",(S32*$S$18))) -> 1.88740996 | K32: =IF(C32="","",IF($S$19="","",(S32*$S$19))) -> 1.88740996 | L32: =IF(E32="","",IF($S$20="","",(S32*$S$20))) -> 2.068103172 | M32: =IF(C32="","",IF($S$21="","",(S32*$S$21))) -> 1.776821137 | N32: =IF(C32="","",IF($S$22="","",(S32*$S$22))) -> 0 | O32: =IF(C32="","",IF($S$23="","",(S32*$S$23))) -> 2.943960274 | P32: =IF(C32="","",IF($S$24="","",(S32*$S$24))) ->  | S32: 2.906769426 | T32: =POWER(($N$9+$L$5)-22.67,2)/(($N$9+$L$5)+34) -> 2.906769426 | U32: D | W32: B (PA - 15.05)2 / (PA + 22.57) | Y32: 5 | Z32: 48059 | AA32: Callahan | AB32: Nov - Mar | AC32: Nov - Apr | AD32: Nov - Apr | AE32: Nov - Feb | AF32: None | AG32: Sep | AH32: Aug - Sep | AI32: Aug - Sep | AJ32: Jul - Sep | AK32: Oct | AL32: not grown | AM32: Dec - May | AO32: =SUM(Nov+Dec+Jan+Feb+Mar) -> 14.53 | AP32: =SUM(Nov+Dec+Jan+Feb+Mar+Apr) -> 17.76 | AQ32: =SUM(Nov+Dec+Jan+Feb+Mar+Apr) -> 17.76 | AR32: 11.69 | AS32: 0 | AT32: =Sep -> 2.92 | AU32: =SUM(Aug+Sep) -> 5.07 | AV32: =SUM(Aug+Sep) -> 5.07 | AW32: 6.67 | AX32: =Oct -> 4.23 | AY32: =IF(AL32="Not Grown",AL32) -> not grown | AZ32: =SUM(Dec+Jan+Feb+Mar+Apr+May) -> 19.24 | BA32: 5
D33: =IF(C33="","",IF($S$12="","",(S33*$S$12))) ->  | E33: =IF(C33="","",IF($S$13="","",(S33*$S$13))) ->  | F33: =IF(C33="","",IF($S$14="","",(S33*$S$14))) ->  | G33: =IF(C33="","",IF($S$15="","",(S33*$S$15))) ->  | H33: =IF(C33="","",IF($S$16="","",(S33*$S$16))) ->  | I33: =IF(C33="","",IF($S$17="","",(S33*$S$17))) ->  | J33: =IF(C33="","",IF($S$18="","",(S33*$S$18))) ->  | K33: =IF(C33="","",IF($S$19="","",(S33*$S$19))) ->  | L33: =IF(E33="","",IF($S$20="","",(S33*$S$20))) ->  | M33: =IF(C33="","",IF($S$21="","",(S33*$S$21))) ->  | N33: =IF(C33="","",IF($S$22="","",(S33*$S$22))) ->  | O33: =IF(C33="","",IF($S$23="","",(S33*$S$23))) ->  | P33: =IF(C33="","",IF($S$24="","",(S33*$S$24))) ->  | S33: 0 | W33: C (PA - 19.53)2 / (PA + 29.29) | Y33: 3 | Z33: 48061 | AA33: Cameron | AB33: Aug - Dec | AC33: Sep - Jan | AD33: Jun - Jan | AE33: Dec - Jan | AF33: None | AG33: Aug -Sep | AH33: Jun - Sep | AI33: Jun - Sep | AJ33: Jul - Sep | AK33: Jan, Jul | AL33: Jun - Dec | AM33: Dec - Jul | AO33: =SUM(Aug+Sep+Oct+Nov+Dec) -> 15.74 | AP33: =SUM(Sep+Oct+Nov+Dec+Jan) -> 15.99 | AQ33: =SUM(Jun+Jul+Aug+Sep+Oct+Nov+Dec+Jan) -> 23.46 | AR33: 11.69 | AS33: 0 | AT33: =Aug+Sep -> 5.07 | AU33: =SUM(Jun+Jul+Aug+Sep) -> 10.39 | AV33: =SUM(Jun+Jul+Aug+Sep) -> 10.39 | AW33: 6.67 | AX33: =Jan+Jul -> 4 | AY33: =SUM(Jun+Jul+Aug+Sep+Oct+Nov+Dec) -> 21.06 | AZ33: =SUM(Dec+Jan+Feb+Mar+Apr+May+Jun+Jul) -> 24.56 | BA33: 3
D34: =IF(C34="","",IF($S$12="","",(S34*$S$12))) ->  | E34: =IF(C34="","",IF($S$13="","",(S34*$S$13))) ->  | F34: =IF(C34="","",IF($S$14="","",(S34*$S$14))) ->  | G34: =IF(C34="","",IF($S$15="","",(S34*$S$15))) ->  | H34: =IF(C34="","",IF($S$16="","",(S34*$S$16))) ->  | I34: =IF(C34="","",IF($S$17="","",(S34*$S$17))) ->  | J34: =IF(C34="","",IF($S$18="","",(S34*$S$18))) ->  | K34: =IF(C34="","",IF($S$19="","",(S34*$S$19))) ->  | L34: =IF(E34="","",IF($S$20="","",(S34*$S$20))) ->  | M34: =IF(C34="","",IF($S$21="","",(S34*$S$21))) ->  | N34: =IF(C34="","",IF($S$22="","",(S34*$S$22))) ->  | O34: =IF(C34="","",IF($S$23="","",(S34*$S$23))) ->  | P34: =IF(C34="","",IF($S$24="","",(S34*$S$24))) ->  | S34: 0 | W34: D (PA - 22.67)2 / (PA + 34.00) | Y34: 4 | Z34: 48063 | AA34: Camp | AB34: Aug - Jan | AC34: Nov - Feb | AD34: Nov - Apr | AE34: Nov - Feb | AF34: None | AG34: Aug -Sep | AH34: Jul - Sep | AI34: Aug - Sep | AJ34: Jul - Sep | AK34: Oct | AL34: Jul - Feb | AM34: Oct - Apr | AO34: =SUM(Aug+Sep+Oct+Nov+Dec+Jan) -> 18.14 | AP34: =SUM(Sep+Oct+Nov+Dec+Jan+Feb) -> 18.84 | AQ34: =SUM(Nov+Dec+Jan+Feb+Mar+Apr) -> 17.76 | AR34: 11.69 | AS34: 0 | AT34: =Aug+Sep -> 5.07 | AU34: =SUM(Jul+Aug+Sep) -> 6.67 | AV34: =SUM(Aug+Sep) -> 5.07 | AW34: 6.67 | AX34: =Oct -> 4.23 | AY34: =SUM(Jul+Aug+Sep+Oct+Nov+Dec+Jan+Feb) -> 22.59 | AZ34: =SUM(Oct+Nov+Dec+Jan+Feb+Mar+Apr) -> 21.99 | BA34: 4
D35: =IF(C35="","",IF($S$12="","",(S35*$S$12))) ->  | E35: =IF(C35="","",IF($S$13="","",(S35*$S$13))) ->  | F35: =IF(C35="","",IF($S$14="","",(S35*$S$14))) ->  | G35: =IF(C35="","",IF($S$15="","",(S35*$S$15))) ->  | H35: =IF(C35="","",IF($S$16="","",(S35*$S$16))) ->  | I35: =IF(C35="","",IF($S$17="","",(S35*$S$17))) ->  | J35: =IF(C35="","",IF($S$18="","",(S35*$S$18))) ->  | K35: =IF(C35="","",IF($S$19="","",(S35*$S$19))) ->  | L35: =IF(E35="","",IF($S$20="","",(S35*$S$20))) ->  | M35: =IF(C35="","",IF($S$21="","",(S35*$S$21))) ->  | N35: =IF(C35="","",IF($S$22="","",(S35*$S$22))) ->  | O35: =IF(C35="","",IF($S$23="","",(S35*$S$23))) ->  | P35: =IF(C35="","",IF($S$24="","",(S35*$S$24))) ->  | S35: 0 | Y35: 1 | Z35: 48065 | AA35: Carson | AB35: Nov - Mar | AC35: Nov - Apr | AD35: Nov - Apr | AE35: Nov - Feb | AF35: None | AG35: Sep | AH35: Oct | AI35: Sep | AJ35: Jul - Sep | AK35: Oct | AL35: not grown | AM35: Dec - May | AO35: =SUM(Nov+Dec+Jan+Feb+Mar) -> 14.53 | AP35: =SUM(Nov+Dec+Jan+Feb+Mar+Apr) -> 17.76 | AQ35: =SUM(Nov+Dec+Jan+Feb+Mar+Apr) -> 17.76 | AR35: 11.69 | AS35: 0 | AT35: =Sep -> 2.92 | AU35: =Oct -> 4.23 | AV35: =Sep -> 2.92 | AW35: 6.67 | AX35: 4.23 | AY35: =IF(AL35="Not Grown",AL35) -> not grown | AZ35: =SUM(Dec+Jan+Feb+Mar+Apr+May) -> 19.24 | BA35: 1
D36: =IF(C36="","",IF($S$12="","",(S36*$S$12))) ->  | E36: =IF(C36="","",IF($S$13="","",(S36*$S$13))) ->  | F36: =IF(C36="","",IF($S$14="","",(S36*$S$14))) ->  | G36: =IF(C36="","",IF($S$15="","",(S36*$S$15))) ->  | H36: =IF(C36="","",IF($S$16="","",(S36*$S$16))) ->  | I36: =IF(C36="","",IF($S$17="","",(S36*$S$17))) ->  | J36: =IF(C36="","",IF($S$18="","",(S36*$S$18))) ->  | K36: =IF(C36="","",IF($S$19="","",(S36*$S$19))) ->  | L36: =IF(E36="","",IF($S$20="","",(S36*$S$20))) ->  | M36: =IF(C36="","",IF($S$21="","",(S36*$S$21))) ->  | N36: =IF(C36="","",IF($S$22="","",(S36*$S$22))) ->  | O36: =IF(C36="","",IF($S$23="","",(S36*$S$23))) ->  | P36: =IF(C36="","",IF($S$24="","",(S36*$S$24))) ->  | S36: 0 | Y36: 4 | Z36: 48067 | AA36: Cass | AB36: Aug - Jan | AC36: Nov - Feb | AD36: Nov - Apr | AE36: Nov - Feb | AF36: None | AG36: Aug -Sep | AH36: Jul - Sep | AI36: Aug - Sep | AJ36: Jul - Sep | AK36: Oct | AL36: Jul - Feb | AM36: Oct - Apr | AO36: =SUM(Aug+Sep+Oct+Nov+Dec+Jan) -> 18.14 | AP36: =SUM(Sep+Oct+Nov+Dec+Jan+Feb) -> 18.84 | AQ36: =SUM(Nov+Dec+Jan+Feb+Mar+Apr) -> 17.76 | AR36: 11.69 | AS36: 0 | AT36: =Aug+Sep -> 5.07 | AU36: =SUM(Jul+Aug+Sep) -> 6.67 | AV36: =SUM(Aug+Sep) -> 5.07 | AW36: 6.67 | AX36: 4.23 | AY36: =SUM(Jul+Aug+Sep+Oct+Nov+Dec+Jan+Feb) -> 22.59 | AZ36: =SUM(Oct+Nov+Dec+Jan+Feb+Mar+Apr) -> 21.99 | BA36: 4
D37: =IF(C37="","",IF($S$12="","",(S37*$S$12))) ->  | E37: =IF(C37="","",IF($S$13="","",(S37*$S$13))) ->  | F37: =IF(C37="","",IF($S$14="","",(S37*$S$14))) ->  | G37: =IF(C37="","",IF($S$15="","",(S37*$S$15))) ->  | H37: =IF(C37="","",IF($S$16="","",(S37*$S$16))) ->  | I37: =IF(C37="","",IF($S$17="","",(S37*$S$17))) ->  | J37: =IF(C37="","",IF($S$18="","",(S37*$S$18))) ->  | K37: =IF(C37="","",IF($S$19="","",(S37*$S$19))) ->  | L37: =IF(E37="","",IF($S$20="","",(S37*$S$20))) ->  | M37: =IF(C37="","",IF($S$21="","",(S37*$S$21))) ->  | N37: =IF(C37="","",IF($S$22="","",(S37*$S$22))) ->  | O37: =IF(C37="","",IF($S$23="","",(S37*$S$23))) ->  | P37: =IF(C37="","",IF($S$24="","",(S37*$S$24))) ->  | S37: 0 | Y37: 1 | Z37: 48069 | AA37: Castro | AB37: Nov - Mar | AC37: Nov - Apr | AD37: Nov - Apr | AE37: Nov - Feb | AF37: None | AG37: Sep | AH37: Oct | AI37: Sep | AJ37: Jul - Sep | AK37: Oct | AL37: not grown | AM37: Dec - May | AO37: =SUM(Nov+Dec+Jan+Feb+Mar) -> 14.53 | AP37: =SUM(Nov+Dec+Jan+Feb+Mar+Apr) -> 17.76 | AQ37: =SUM(Nov+Dec+Jan+Feb+Mar+Apr) -> 17.76 | AR37: 11.69 | AS37: 0 | AT37: =Sep -> 2.92 | AU37: =Oct -> 4.23 | AV37: =Sep -> 2.92 | AW37: 6.67 | AX37: 4.23 | AY37: =IF(AL37="Not Grown",AL37) -> not grown | AZ37: =SUM(Dec+Jan+Feb+Mar+Apr+May) -> 19.24 | BA37: 1
D38: =IF(C38="","",IF($S$12="","",(S38*$S$12))) ->  | E38: =IF(C38="","",IF($S$13="","",(S38*$S$13))) ->  | F38: =IF(C38="","",IF($S$14="","",(S38*$S$14))) ->  | G38: =IF(C38="","",IF($S$15="","",(S38*$S$15))) ->  | H38: =IF(C38="","",IF($S$16="","",(S38*$S$16))) ->  | I38: =IF(C38="","",IF($S$17="","",(S38*$S$17))) ->  | J38: =IF(C38="","",IF($S$18="","",(S38*$S$18))) ->  | K38: =IF(C38="","",IF($S$19="","",(S38*$S$19))) ->  | L38: =IF(E38="","",IF($S$20="","",(S38*$S$20))) ->  | M38: =IF(C38="","",IF($S$21="","",(S38*$S$21))) ->  | N38: =IF(C38="","",IF($S$22="","",(S38*$S$22))) ->  | O38: =IF(C38="","",IF($S$23="","",(S38*$S$23))) ->  | P38: =IF(C38="","",IF($S$24="","",(S38*$S$24))) ->  | S38: 0 | Y38: 4 | Z38: 48071 | AA38: Chambers | AB38: Aug - Jan | AC38: Nov - Feb | AD38: Sep - Mar | AE38: Nov - Feb | AF38: None | AG38: Aug -Sep | AH38: Jul - Sep | AI38: Aug - Sep | AJ38: Jul - Sep | AK38: Oct | AL38: Jul - Feb | AM38: Oct - Apr | AO38: =SUM(Aug+Sep+Oct+Nov+Dec+Jan) -> 18.14 | AP38: =SUM(Sep+Oct+Nov+Dec+Jan+Feb) -> 18.84 | AQ38: =SUM(Sep+Oct+Nov+Dec+Jan+Feb+Mar) -> 21.68 | AR38: 11.69 | AS38: 0 | AT38: =Aug+Sep -> 5.07 | AU38: =SUM(Jul+Aug+Sep) -> 6.67 | AV38: =SUM(Aug+Sep) -> 5.07 | AW38: 6.67 | AX38: 4.23 | AY38: =SUM(Jul+Aug+Sep+Oct+Nov+Dec+Jan+Feb) -> 22.59 | AZ38: =SUM(Oct+Nov+Dec+Jan+Feb+Mar+Apr) -> 21.99 | BA38: 4
D39: =IF(C39="","",IF($S$12="","",(S39*$S$12))) ->  | E39: =IF(C39="","",IF($S$13="","",(S39*$S$13))) ->  | F39: =IF(C39="","",IF($S$14="","",(S39*$S$14))) ->  | G39: =IF(C39="","",IF($S$15="","",(S39*$S$15))) ->  | H39: =IF(C39="","",IF($S$16="","",(S39*$S$16))) ->  | I39: =IF(C39="","",IF($S$17="","",(S39*$S$17))) ->  | J39: =IF(C39="","",IF($S$18="","",(S39*$S$18))) ->  | K39: =IF(C39="","",IF($S$19="","",(S39*$S$19))) ->  | L39: =IF(E39="","",IF($S$20="","",(S39*$S$20))) ->  | M39: =IF(C39="","",IF($S$21="","",(S39*$S$21))) ->  | N39: =IF(C39="","",IF($S$22="","",(S39*$S$22))) ->  | O39: =IF(C39="","",IF($S$23="","",(S39*$S$23))) ->  | P39: =IF(C39="","",IF($S$24="","",(S39*$S$24))) ->  | S39: 0 | Y39: 4 | Z39: 48073 | AA39: Cherokee | AB39: Aug - Jan | AC39: Nov - Feb | AD39: Nov - Apr | AE39: Nov - Feb | AF39: None | AG39: Aug -Sep | AH39: Jul - Sep | AI39: Aug - Sep | AJ39: Jul - Sep | AK39: Oct | AL39: Jul - Feb | AM39: Oct - Apr | AO39: =SUM(Aug+Sep+Oct+Nov+Dec+Jan) -> 18.14 | AP39: =SUM(Sep+Oct+Nov+Dec+Jan+Feb) -> 18.84 | AQ39: =SUM(Nov+Dec+Jan+Feb+Mar+Apr) -> 17.76 | AR39: 11.69 | AS39: 0 | AT39: =Aug+Sep -> 5.07 | AU39: =SUM(Jul+Aug+Sep) -> 6.67 | AV39: =SUM(Aug+Sep) -> 5.07 | AW39: 6.67 | AX39: 4.23 | AY39: =SUM(Jul+Aug+Sep+Oct+Nov+Dec+Jan+Feb) -> 22.59 | AZ39: =SUM(Oct+Nov+Dec+Jan+Feb+Mar+Apr) -> 21.99 | BA39: 4
D40: =IF(C40="","",IF($S$12="","",(S40*$S$12))) ->  | E40: =IF(C40="","",IF($S$13="","",(S40*$S$13))) ->  | F40: =IF(C40="","",IF($S$14="","",(S40*$S$14))) ->  | G40: =IF(C40="","",IF($S$15="","",(S40*$S$15))) ->  | H40: =IF(C40="","",IF($S$16="","",(S40*$S$16))) ->  | I40: =IF(C40="","",IF($S$17="","",(S40*$S$17))) ->  | J40: =IF(C40="","",IF($S$18="","",(S40*$S$18))) ->  | K40: =IF(C40="","",IF($S$19="","",(S40*$S$19))) ->  | L40: =IF(E40="","",IF($S$20="","",(S40*$S$20))) ->  | M40: =IF(C40="","",IF($S$21="","",(S40*$S$21))) ->  | N40: =IF(C40="","",IF($S$22="","",(S40*$S$22))) ->  | O40: =IF(C40="","",IF($S$23="","",(S40*$S$23))) ->  | P40: =IF(C40="","",IF($S$24="","",(S40*$S$24))) ->  | S40: 0 | Y40: 1 | Z40: 48075 | AA40: Childress | AB40: Nov - Mar | AC40: Nov - Apr | AD40: Nov - Apr | AE40: Nov - Feb | AF40: None | AG40: Sep | AH40: Oct | AI40: Sep | AJ40: Jul - Sep | AK40: Oct | AL40: not grown | AM40: Dec - May | AO40: =SUM(Nov+Dec+Jan+Feb+Mar) -> 14.53 | AP40: =SUM(Nov+Dec+Jan+Feb+Mar+Apr) -> 17.76 | AQ40: 17.76 | AR40: 11.69 | AS40: 0 | AT40: =Sep -> 2.92 | AU40: =Oct -> 4.23 | AV40: =Sep -> 2.92 | AW40: 6.67 | AX40: 4.23 | AY40: =IF(AL40="Not Grown",AL40) -> not grown | AZ40: =SUM(Dec+Jan+Feb+Mar+Apr+May) -> 19.24 | BA40: 1
D41: =IF(C41="","",IF($S$12="","",(S41*$S$12))) ->  | E41: =IF(C41="","",IF($S$13="","",(S41*$S$13))) ->  | F41: =IF(C41="","",IF($S$14="","",(S41*$S$14))) ->  | G41: =IF(C41="","",IF($S$15="","",(S41*$S$15))) ->  | H41: =IF(C41="","",IF($S$16="","",(S41*$S$16))) ->  | I41: =IF(C41="","",IF($S$17="","",(S41*$S$17))) ->  | J41: =IF(C41="","",IF($S$18="","",(S41*$S$18))) ->  | K41: =IF(C41="","",IF($S$19="","",(S41*$S$19))) ->  | L41: =IF(E41="","",IF($S$20="","",(S41*$S$20))) ->  | M41: =IF(C41="","",IF($S$21="","",(S41*$S$21))) ->  | N41: =IF(C41="","",IF($S$22="","",(S41*$S$22))) ->  | O41: =IF(C41="","",IF($S$23="","",(S41*$S$23))) ->  | P41: =IF(C41="","",IF($S$24="","",(S41*$S$24))) ->  | S41: 0 | Y41: 5 | Z41: 48077 | AA41: Clay | AB41: Nov - Mar | AC41: Nov - Apr | AD41: Nov - Apr | AE41: Nov - Feb | AF41: None | AG41: Sep | AH41: Aug - Sep | AI41: Aug - Sep | AJ41: Jul - Sep | AK41: Oct | AL41: not grown | AM41: Dec - May | AO41: 14.53 | AP41: =SUM(Nov+Dec+Jan+Feb+Mar+Apr) -> 17.76 | AQ41: 17.76 | AR41: 11.69 | AS41: 0 | AT41: 2.92 | AU41: =SUM(Aug+Sep) -> 5.07 | AV41: =SUM(Aug+Sep) -> 5.07 | AW41: 6.67 | AX41: 4.23 | AY41: =IF(AL41="Not Grown",AL41) -> not grown | AZ41: =SUM(Dec+Jan+Feb+Mar+Apr+May) -> 19.24 | BA41: 5
D42: =IF(C42="","",IF($S$12="","",(S42*$S$12))) ->  | E42: =IF(C42="","",IF($S$13="","",(S42*$S$13))) ->  | F42: =IF(C42="","",IF($S$14="","",(S42*$S$14))) ->  | G42: =IF(C42="","",IF($S$15="","",(S42*$S$15))) ->  | H42: =IF(C42="","",IF($S$16="","",(S42*$S$16))) ->  | I42: =IF(C42="","",IF($S$17="","",(S42*$S$17))) ->  | J42: =IF(C42="","",IF($S$18="","",(S42*$S$18))) ->  | K42: =IF(C42="","",IF($S$19="","",(S42*$S$19))) ->  | L42: =IF(E42="","",IF($S$20="","",(S42*$S$20))) ->  | M42: =IF(C42="","",IF($S$21="","",(S42*$S$21))) ->  | N42: =IF(C42="","",IF($S$22="","",(S42*$S$22))) ->  | O42: =IF(C42="","",IF($S$23="","",(S42*$S$23))) ->  | P42: =IF(C42="","",IF($S$24="","",(S42*$S$24))) ->  | S42: 0 | Y42: 1 | Z42: 48079 | AA42: Cochran | AB42: Nov - Mar | AC42: Nov - Apr | AD42: Nov - Apr | AE42: Nov - Feb | AF42: None | AG42: Sep | AH42: Oct | AI42: Sep | AJ42: Jul - Sep | AK42: Oct | AL42: not grown | AM42: Dec - May | AO42: 14.53 | AP42: =SUM(Nov+Dec+Jan+Feb+Mar+Apr) -> 17.76 | AQ42: 17.76 | AR42: 11.69 | AS42: 0 | AT42: 2.92 | AU42: =Oct -> 4.23 | AV42: =Sep -> 2.92 | AW42: 6.67 | AX42: 4.23 | AY42: =IF(AL42="Not Grown",AL42) -> not grown | AZ42: =SUM(Dec+Jan+Feb+Mar+Apr+May) -> 19.24 | BA42: 1
D43: =IF(C43="","",IF($S$12="","",(S43*$S$12))) ->  | E43: =IF(C43="","",IF($S$13="","",(S43*$S$13))) ->  | F43: =IF(C43="","",IF($S$14="","",(S43*$S$14))) ->  | G43: =IF(C43="","",IF($S$15="","",(S43*$S$15))) ->  | H43: =IF(C43="","",IF($S$16="","",(S43*$S$16))) ->  | I43: =IF(C43="","",IF($S$17="","",(S43*$S$17))) ->  | J43: =IF(C43="","",IF($S$18="","",(S43*$S$18))) ->  | K43: =IF(C43="","",IF($S$19="","",(S43*$S$19))) ->  | L43: =IF(E43="","",IF($S$20="","",(S43*$S$20))) ->  | M43: =IF(C43="","",IF($S$21="","",(S43*$S$21))) ->  | N43: =IF(C43="","",IF($S$22="","",(S43*$S$22))) ->  | O43: =IF(C43="","",IF($S$23="","",(S43*$S$23))) ->  | P43: =IF(C43="","",IF($S$24="","",(S43*$S$24))) ->  | S43: 0 | Y43: 2 | Z43: 48081 | AA43: Coke | AB43: Nov - Mar | AC43: Nov - Apr | AD43: Nov - Apr | AE43: Nov - Feb | AF43: None | AG43: Sep | AH43: Sep - Oct | AI43: Sep - Oct | AJ43: Jul - Sep | AK43: Oct | AL43: Aug - Mar | AM43: not grown | AO43: 14.53 | AP43: =SUM(Nov+Dec+Jan+Mar+Apr) -> 14.91 | AQ43: 17.76 | AR43: 11.69 | AS43: 0 | AT43: 2.92 | AU43: =SUM(Sep+Oct) -> 7.15 | AV43: =SUM(Sep+Oct) -> 7.15 | AW43: 6.67 | AX43: 4.23 | AY43: =SUM(Aug+Sep+Oct+Nov+Dec+Jan+Feb+Mar) -> 23.83 | AZ43: =IF(AM43="Not Grown",AM43) -> not grown | BA43: 2
D44: =IF(C44="","",IF($S$12="","",(S44*$S$12))) ->  | E44: =IF(C44="","",IF($S$13="","",(S44*$S$13))) ->  | F44: =IF(C44="","",IF($S$14="","",(S44*$S$14))) ->  | G44: =IF(C44="","",IF($S$15="","",(S44*$S$15))) ->  | H44: =IF(C44="","",IF($S$16="","",(S44*$S$16))) ->  | I44: =IF(C44="","",IF($S$17="","",(S44*$S$17))) ->  | J44: =IF(C44="","",IF($S$18="","",(S44*$S$18))) ->  | K44: =IF(C44="","",IF($S$19="","",(S44*$S$19))) ->  | L44: =IF(E44="","",IF($S$20="","",(S44*$S$20))) ->  | M44: =IF(C44="","",IF($S$21="","",(S44*$S$21))) ->  | N44: =IF(C44="","",IF($S$22="","",(S44*$S$22))) ->  | O44: =IF(C44="","",IF($S$23="","",(S44*$S$23))) ->  | P44: =IF(C44="","",IF($S$24="","",(S44*$S$24))) ->  | S44: 0 | Y44: 5 | Z44: 48083 | AA44: Coleman | AB44: Nov - Mar | AC44: Nov - Apr | AD44: Nov - Apr | AE44: Nov - Feb | AF44: None | AG44: Sep | AH44: Aug - Sep | AI44: Aug - Sep | AJ44: Jul - Sep | AK44: Oct | AL44: not grown | AM44: Dec - May | AO44: 14.53 | AP44: =SUM(Nov+Dec+Jan+Feb+Mar+Apr) -> 17.76 | AQ44: 17.76 | AR44: 11.69 | AS44: 0 | AT44: 2.92 | AU44: =SUM(Aug+Sep) -> 5.07 | AV44: =SUM(Aug+Sep) -> 5.07 | AW44: 6.67 | AX44: 4.23 | AY44: =IF(AL44="Not Grown",AL44) -> not grown | AZ44: =SUM(Dec+Jan+Feb+Mar+Apr+May) -> 19.24 | BA44: 5
D45: =IF(C45="","",IF($S$12="","",(S45*$S$12))) ->  | E45: =IF(C45="","",IF($S$13="","",(S45*$S$13))) ->  | F45: =IF(C45="","",IF($S$14="","",(S45*$S$14))) ->  | G45: =IF(C45="","",IF($S$15="","",(S45*$S$15))) ->  | H45: =IF(C45="","",IF($S$16="","",(S45*$S$16))) ->  | I45: =IF(C45="","",IF($S$17="","",(S45*$S$17))) ->  | J45: =IF(C45="","",IF($S$18="","",(S45*$S$18))) ->  | K45: =IF(C45="","",IF($S$19="","",(S45*$S$19))) ->  | L45: =IF(E45="","",IF($S$20="","",(S45*$S$20))) ->  | M45: =IF(C45="","",IF($S$21="","",(S45*$S$21))) ->  | N45: =IF(C45="","",IF($S$22="","",(S45*$S$22))) ->  | O45: =IF(C45="","",IF($S$23="","",(S45*$S$23))) ->  | P45: =IF(C45="","",IF($S$24="","",(S45*$S$24))) ->  | Y45: 5 | Z45: 48085 | AA45: Collin | AB45: Nov - Mar | AC45: Nov - Apr | AD45: Nov - Apr | AE45: Nov - Feb | AF45: None | AG45: Sep | AH45: Aug - Sep | AI45: Aug - Sep | AJ45: Jul - Sep | AK45: Oct | AL45: not grown | AM45: Dec - May | AO45: 14.53 | AP45: =SUM(Nov+Dec+Jan+Feb+Mar+Apr) -> 17.76 | AQ45: 17.76 | AR45: 11.69 | AS45: 0 | AT45: 2.92 | AU45: =SUM(Aug+Sep) -> 5.07 | AV45: =SUM(Aug+Sep) -> 5.07 | AW45: 6.67 | AX45: 4.23 | AY45: =IF(AL45="Not Grown",AL45) -> not grown | AZ45: =SUM(Dec+Jan+Feb+Mar+Apr+May) -> 19.24 | BA45: 5
Y46: 1 | Z46: 48087 | AA46: Collingsworth | AB46: Nov - Mar | AC46: Nov - Apr | AD46: Nov - Apr | AE46: Nov - Feb | AF46: None | AG46: Sep | AH46: Oct | AI46: Sep | AJ46: Jul - Sep | AK46: Oct | AL46: not grown | AM46: Dec - May | AO46: 14.53 | AP46: =SUM(Nov+Dec+Jan+Feb+Mar+Apr) -> 17.76 | AQ46: 17.76 | AR46: 11.69 | AS46: 0 | AT46: 2.92 | AU46: =Oct -> 4.23 | AV46: =Sep -> 2.92 | AW46: 6.67 | AX46: 4.23 | AY46: =IF(AL46="Not Grown",AL46) -> not grown | AZ46: =SUM(Dec+Jan+Feb+Mar+Apr+May) -> 19.24 | BA46: 1
Y47: 3 | Z47: 48089 | AA47: Colorado | AB47: Aug - Jan | AC47: Sep - Feb | AD47: Sep - Mar | AE47: Nov - Feb | AF47: None | AG47: Aug -Sep | AH47: Jul - Sep | AI47: Jul - Sep | AJ47: Jul - Sep | AK47: Oct | AL47: Jul - Feb | AM47: Oct - Apr | AO47: =SUM(Aug+Sep+Oct+Nov+Dec+Jan+Feb) -> 20.99 | AP47: =SUM(Sep+Oct+Nov+Dec+Jan+Feb) -> 18.84 | AQ47: =SUM(Sep+Oct+Nov+Dec+Jan+Feb+Mar) -> 21.68 | AR47: =SUM(Dec+Jan) -> 5.66 | AS47: 0 | AT47: =Aug+Sep -> 5.07 | AU47: =SUM(Jun+Jul+Aug+Sep) -> 10.39 | AV47: =SUM(Jul+Aug+Sep) -> 6.67 | AW47: 6.67 | AX47: 4.23 | AY47: =SUM(Jul+Aug+Sep+Oct+Nov+Dec+Jan+Feb) -> 22.59 | AZ47: =SUM(Oct-Nov+Dec+Jan+Feb+Mar+Apr) -> 15.63 | BA47: 3
Y48: 3 | Z48: 48091 | AA48: Comal | AB48: Aug - Feb | AC48: Oct - Mar | AD48: Sep - Mar | AE48: Nov - Feb | AF48: None | AG48: Aug -Sep | AH48: Jun - Sep | AI48: Jun - Sep | AJ48: Jul - Sep | AK48: Oct | AL48: Jul - Feb | AM48: Oct - Apr | AO48: =SUM(Aug+Sep+Oct+Nov+Dec+Jan+Feb) -> 20.99 | AP48: =SUM(Oct+Nov+Dec+Jan+Feb+Mar) -> 18.76 | AQ48: =SUM(Sep+Oct+Nov+Dec+Jan+Feb+Mar) -> 21.68 | AR48: =SUM(Nov+Dec+Jan+Feb) -> 11.69 | AS48: 0 | AT48: =Aug+Sep -> 5.07 | AU48: =SUM(Jun+Jul+Aug+Sep) -> 10.39 | AV48: =SUM(Jun+Jul+Aug+Sep) -> 10.39 | AW48: 6.67 | AX48: 4.23 | AY48: =SUM(Jul+Aug+Sep+Oct+Nov+Dec+Jan+Feb) -> 22.59 | AZ48: =SUM(Oct-Nov+Dec+Jan+Feb+Mar+Apr) -> 15.63 | BA48: 3
Y49: 5 | Z49: 48093 | AA49: Comanche | AB49: Nov - Mar | AC49: Nov - Apr | AD49: Nov - Apr | AE49: Nov - Feb | AF49: None | AG49: Sep | AH49: Aug - Sep | AI49: Aug - Sep | AJ49: Jul - Sep | AK49: Oct | AL49: not grown | AM49: Dec - May | AO49: =SUM(Nov+Dec+Jan+Feb+Mar) -> 14.53 | AP49: =SUM(Nov+Dec+Jan+Feb+Mar+Apr) -> 17.76 | AQ49: =SUM(Nov+Dec+Jan+Feb+Mar+Apr) -> 17.76 | AR49: 11.69 | AS49: 0 | AT49: =Sep -> 2.92 | AU49: =SUM(Aug+Sep) -> 5.07 | AV49: =SUM(Aug+Sep) -> 5.07 | AW49: 6.67 | AX49: 4.23 | AY49: =IF(AL49="Not Grown",AL49) -> not grown | AZ49: =SUM(Dec+Jan+Feb+Mar+Apr+May) -> 19.24 | BA49: 5
Y50: 2 | Z50: 48095 | AA50: Concho | AB50: Nov - Mar | AC50: Nov - Apr | AD50: Nov - Apr | AE50: Nov - Feb | AF50: None | AG50: Sep | AH50: Sep - Oct | AI50: Sep - Oct | AJ50: Jul - Sep | AK50: Oct | AL50: Aug - Mar | AM50: not grown | AO50: 14.53 | AP50: =SUM(Nov+Dec+Jan+Mar+Apr) -> 14.91 | AQ50: =SUM(Nov+Dec+Jan+Feb+Mar+Apr) -> 17.76 | AR50: 11.69 | AS50: 0 | AT50: 2.92 | AU50: =SUM(Sep+Oct) -> 7.15 | AV50: =SUM(Sep+Oct) -> 7.15 | AW50: 6.67 | AX50: 4.23 | AY50: =SUM(Aug+Sep+Oct+Nov+Dec+Jan+Feb+Mar) -> 23.83 | AZ50: =IF(AM50="Not Grown",AM50) -> not grown | BA50: 2
Y51: 5 | Z51: 48097 | AA51: Cooke | AB51: Nov - Mar | AC51: Nov - Apr | AD51: Nov - Apr | AE51: Nov - Feb | AF51: None | AG51: Sep | AH51: Aug - Sep | AI51: Aug - Sep | AJ51: Jul - Sep | AK51: Oct | AL51: not grown | AM51: Dec - May | AO51: 14.53 | AP51: =SUM(Nov+Dec+Jan+Feb+Mar+Apr) -> 17.76 | AQ51: 17.76 | AR51: 11.69 | AS51: 0 | AT51: 2.92 | AU51: =SUM(Aug+Sep) -> 5.07 | AV51: =SUM(Aug+Sep) -> 5.07 | AW51: 6.67 | AX51: 4.23 | AY51: =IF(AL51="Not Grown",AL51) -> not grown | AZ51: =SUM(Dec+Jan+Feb+Mar+Apr+May) -> 19.24 | BA51: 5
Y52: 5 | Z52: 48099 | AA52: Coryell | AB52: Nov - Mar | AC52: Nov - Apr | AD52: Nov - Apr | AE52: Nov - Feb | AF52: None | AG52: Sep | AH52: Aug - Sep | AI52: Aug - Sep | AJ52: Jul - Sep | AK52: Oct | AL52: not grown | AM52: Dec - May | AO52: 14.53 | AP52: =SUM(Nov+Dec+Jan+Feb+Mar+Apr) -> 17.76 | AQ52: 17.76 | AR52: 11.69 | AS52: 0 | AT52: 2.92 | AU52: =SUM(Aug+Sep) -> 5.07 | AV52: =SUM(Aug+Sep) -> 5.07 | AW52: 6.67 | AX52: 4.23 | AY52: =IF(AL52="Not Grown",AL52) -> not grown | AZ52: =SUM(Dec+Jan+Feb+Mar+Apr+May) -> 19.24 | BA52: 5
Y53: 1 | Z53: 48101 | AA53: Cottle | AB53: Nov - Mar | AC53: Nov - Apr | AD53: Nov - Apr | AE53: Nov - Feb | AF53: None | AG53: Sep | AH53: Oct | AI53: Sep | AJ53: Jul - Sep | AK53: Oct | AL53: not grown | AM53: Dec - May | AO53: 14.53 | AP53: =SUM(Nov+Dec+Jan+Feb+Mar+Apr) -> 17.76 | AQ53: 17.76 | AR53: 11.69 | AS53: 0 | AT53: 2.92 | AU53: =Oct -> 4.23 | AV53: =Sep -> 2.92 | AW53: 6.67 | AX53: 4.23 | AY53: =IF(AL53="Not Grown",AL53) -> not grown | AZ53: =SUM(Dec+Jan+Feb+Mar+Apr+May) -> 19.24 | BA53: 1
Y54: 2 | Z54: 48103 | AA54: Crane | AB54: Nov - Mar | AC54: Nov - Apr | AD54: Nov - Apr | AE54: Nov - Feb | AF54: None | AG54: Sep | AH54: Sep - Oct | AI54: Sep - Oct | AJ54: Jul - Sep | AK54: Oct | AL54: Aug - Mar | AM54: not grown | AO54: 14.53 | AP54: =SUM(Nov+Dec+Jan+Mar+Apr) -> 14.91 | AQ54: 17.76 | AR54: 11.69 | AS54: 0 | AT54: 2.92 | AU54: =SUM(Sep+Oct) -> 7.15 | AV54: =SUM(Sep+Oct) -> 7.15 | AW54: 6.67 | AX54: 4.23 | AY54: =SUM(Aug+Sep+Oct+Nov+Dec+Jan+Feb+Mar) -> 23.83 | AZ54: =IF(AM54="Not Grown",AM54) -> not grown | BA54: 2
Y55: 2 | Z55: 48105 | AA55: Crockett | AB55: Nov - Mar | AC55: Nov - Apr | AD55: Nov - Apr | AE55: Nov - Feb | AF55: None | AG55: Sep | AH55: Sep - Oct | AI55: Sep - Oct | AJ55: Jul - Sep | AK55: Oct | AL55: Aug - Mar | AM55: not grown | AO55: 14.53 | AP55: =SUM(Nov+Dec+Jan+Mar+Apr) -> 14.91 | AQ55: 17.76 | AR55: 11.69 | AS55: 0 | AT55: 2.92 | AU55: =SUM(Sep+Oct) -> 7.15 | AV55: =SUM(Sep+Oct) -> 7.15 | AW55: 6.67 | AX55: 4.23 | AY55: =SUM(Aug+Sep+Oct+Nov+Dec+Jan+Feb+Mar) -> 23.83 | AZ55: =IF(AM55="Not Grown",AM55) -> not grown | BA55: 2
Y56: 1 | Z56: 48107 | AA56: Crosby | AB56: Nov - Mar | AC56: Nov - Apr | AD56: Nov - Apr | AE56: Nov - Feb | AF56: None | AG56: Sep | AH56: Oct | AI56: Sep | AJ56: Jul - Sep | AK56: Oct | AL56: not grown | AM56: Dec - May | AO56: 14.53 | AP56: =SUM(Nov+Dec+Jan+Feb+Mar+Apr) -> 17.76 | AQ56: 17.76 | AR56: 11.69 | AS56: 0 | AT56: 2.92 | AU56: =Oct -> 4.23 | AV56: =Sep -> 2.92 | AW56: 6.67 | AX56: 4.23 | AY56: =IF(AL56="Not Grown",AL56) -> not grown | AZ56: =SUM(Dec+Jan+Feb+Mar+Apr+May) -> 19.24 | BA56: 1
Y57: 2 | Z57: 48109 | AA57: Culberson | AB57: Nov - Mar | AC57: Nov - Apr | AD57: Nov - Apr | AE57: Nov - Feb | AF57: None | AG57: Sep | AH57: Sep - Oct | AI57: Sep - Oct | AJ57: Jul - Sep | AK57: Oct | AL57: Aug - Mar | AM57: not grown | AO57: 14.53 | AP57: =SUM(Nov+Dec+Jan+Mar+Apr) -> 14.91 | AQ57: 17.76 | AR57: 11.69 | AS57: 0 | AT57: 2.92 | AU57: =SUM(Sep+Oct) -> 7.15 | AV57: =SUM(Sep+Oct) -> 7.15 | AW57: 6.67 | AX57: 4.23 | AY57: =SUM(Aug+Sep+Oct+Nov+Dec+Jan+Feb+Mar) -> 23.83 | AZ57: =IF(AM57="Not Grown",AM57) -> not grown | BA57: 2
Y58: 1 | Z58: 48111 | AA58: Dallam | AB58: Nov - Mar | AC58: Nov - Apr | AD58: Nov - Apr | AE58: Nov - Feb | AF58: None | AG58: Sep | AH58: Oct | AI58: Sep | AJ58: Jul - Sep | AK58: Oct | AL58: not grown | AM58: Dec - May | AO58: 14.53 | AP58: =SUM(Nov+Dec+Jan+Feb+Mar+Apr) -> 17.76 | AQ58: 17.76 | AR58: 11.69 | AS58: 0 | AT58: 2.92 | AU58: =Oct -> 4.23 | AV58: =Sep -> 2.92 | AW58: 6.67 | AX58: 4.23 | AY58: =IF(AL58="Not Grown",AL58) -> not grown | AZ58: =SUM(Dec+Jan+Feb+Mar+Apr+May) -> 19.24 | BA58: 1
Y59: 5 | Z59: 48113 | AA59: Dallas | AB59: Nov - Mar | AC59: Nov - Apr | AD59: Nov - Apr | AE59: Nov - Feb | AF59: None | AG59: Sep | AH59: Aug - Sep | AI59: Aug - Sep | AJ59: Jul - Sep | AK59: Oct | AL59: not grown | AM59: Dec - May | AO59: 14.53 | AP59: =SUM(Nov+Dec+Jan+Feb+Mar+Apr) -> 17.76 | AQ59: 17.76 | AR59: 11.69 | AS59: 0 | AT59: 2.92 | AU59: =SUM(Aug+Sep) -> 5.07 | AV59: =SUM(Aug+Sep) -> 5.07 | AW59: 6.67 | AX59: 4.23 | AY59: =IF(AL59="Not Grown",AL59) -> not grown | AZ59: =SUM(Dec+Jan+Feb+Mar+Apr+May) -> 19.24 | BA59: 5
Y60: 1 | Z60: 48115 | AA60: Dawson | AB60: Nov - Mar | AC60: Nov - Apr | AD60: Nov - Apr | AE60: Nov - Feb | AF60: None | AG60: Sep | AH60: Oct | AI60: Sep | AJ60: Jul - Sep | AK60: Oct | AL60: not grown | AM60: Dec - May | AO60: 14.53 | AP60: =SUM(Nov+Dec+Jan+Feb+Mar+Apr) -> 17.76 | AQ60: 17.76 | AR60: 11.69 | AS60: 0 | AT60: 2.92 | AU60: =Oct -> 4.23 | AV60: =Sep -> 2.92 | AW60: 6.67 | AX60: 4.23 | AY60: =IF(AL60="Not Grown",AL60) -> not grown | AZ60: =SUM(Dec+Jan+Feb+Mar+Apr+May) -> 19.24 | BA60: 1
Y61: 1 | Z61: 48117 | AA61: Deaf Smith | AB61: Nov - Mar | AC61: Nov - Apr | AD61: Nov - Apr | AE61: Nov - Feb | AF61: None | AG61: Sep | AH61: Oct | AI61: Sep | AJ61: Jul - Sep | AK61: Oct | AL61: not grown | AM61: Dec - May | AO61: 14.53 | AP61: =SUM(Nov+Dec+Jan+Feb+Mar+Apr) -> 17.76 | AQ61: 17.76 | AR61: 11.69 | AS61: 0 | AT61: 2.92 | AU61: =Oct -> 4.23 | AV61: =Sep -> 2.92 | AW61: 6.67 | AX61: 4.23 | AY61: =IF(AL61="Not Grown",AL61) -> not grown | AZ61: =SUM(Dec+Jan+Feb+Mar+Apr+May) -> 19.24 | BA61: 1
Y62: 4 | Z62: 48119 | AA62: Delta | AB62: Aug - Jan | AC62: Nov - Feb | AD62: Nov - Apr | AE62: Nov - Feb | AF62: None | AG62: Aug -Sep | AH62: Jul - Sep | AI62: Aug - Sep | AJ62: Jul - Sep | AK62: Oct | AL62: Jul - Feb | AM62: Oct - Apr | AO62: =SUM(Aug+Sep+Oct+Nov+Dec+Jan) -> 18.14 | AP62: =SUM(Sep+Oct+Nov+Dec+Jan+Feb) -> 18.84 | AQ62: 17.76 | AR62: 11.69 | AS62: 0 | AT62: =Aug+Sep -> 5.07 | AU62: =SUM(Jul+Aug+Sep) -> 6.67 | AV62: =SUM(Aug+Sep) -> 5.07 | AW62: 6.67 | AX62: 4.23 | AY62: =SUM(Jul+Aug+Sep+Oct+Nov+Dec+Jan+Feb) -> 22.59 | AZ62: =SUM(Oct+Nov+Dec+Jan+Feb+Mar+Apr) -> 21.99 | BA62: 4
Y63: 5 | Z63: 48121 | AA63: Denton | AB63: Nov - Mar | AC63: Nov - Apr | AD63: Nov - Apr | AE63: Nov - Feb | AF63: None | AG63: Sep | AH63: Aug - Sep | AI63: Aug - Sep | AJ63: Jul - Sep | AK63: Oct | AL63: not grown | AM63: Dec - May | AO63: =SUM(Nov+Dec+Jan+Feb+Mar) -> 14.53 | AP63: =SUM(Nov+Dec+Jan+Feb+Mar+Apr) -> 17.76 | AQ63: 17.76 | AR63: 11.69 | AS63: 0 | AT63: =Sep -> 2.92 | AU63: =SUM(Aug+Sep) -> 5.07 | AV63: =SUM(Aug+Sep) -> 5.07 | AW63: 6.67 | AX63: 4.23 | AY63: =IF(AL63="Not Grown",AL63) -> not grown | AZ63: =SUM(Dec+Jan+Feb+Mar+Apr+May) -> 19.24 | BA63: 5
Y64: 3 | Z64: 48123 | AA64: Dewitt | AB64: Aug - Jan | AC64: Sep - Feb | AD64: Aug - Feb | AE64: Nov - Feb | AF64: None | AG64: Aug -Sep | AH64: Jun - Sep | AI64: Jun - Sep | AJ64: Jul - Sep | AK64: Oct | AL64: Jul - Feb | AM64: Oct - Apr | AO64: =SUM(Aug+Sep+Oct+Nov+Dec+Jan) -> 18.14 | AP64: =SUM(Sep+Oct+Nov+Dec+Jan+Feb) -> 18.84 | AQ64: =SUM(Aug+Sep+Oct+Nov+Dec+Jan+Feb) -> 20.99 | AR64: 11.69 | AS64: 0 | AT64: =Aug+Sep -> 5.07 | AU64: =SUM(Jun+Jul+Aug+Sep) -> 10.39 | AV64: =SUM(Jun+Jul+Aug+Sep) -> 10.39 | AW64: 6.67 | AX64: 4.23 | AY64: =SUM(Jul+Aug+Sep+Oct+Nov+Dec+Jan+Feb) -> 22.59 | AZ64: =SUM(Oct-Nov+Dec+Jan+Feb+Mar+Apr) -> 15.63 | BA64: 3
Y65: 1 | Z65: 48125 | AA65: Dickens | AB65: Nov - Mar | AC65: Nov - Apr | AD65: Nov - Apr | AE65: Nov - Feb | AF65: None | AG65: Sep | AH65: Oct | AI65: Sep | AJ65: Jul - Sep | AK65: Oct | AL65: not grown | AM65: Dec - May | AO65: =SUM(Nov+Dec+Jan+Feb+Mar) -> 14.53 | AP65: =SUM(Nov+Dec+Jan+Feb+Mar+Apr) -> 17.76 | AQ65: =SUM(Nov+Dec+Jan+Feb+Mar+Apr) -> 17.76 | AR65: 11.69 | AS65: 0 | AT65: =Sep -> 2.92 | AU65: =Oct -> 4.23 | AV65: =Sep -> 2.92 | AW65: 6.67 | AX65: 4.23 | AY65: =IF(AL65="Not Grown",AL65) -> not grown | AZ65: =SUM(Dec+Jan+Feb+Mar+Apr+May) -> 19.24 | BA65: 1
Y66: 3 | Z66: 48127 | AA66: Dimmit | AB66: Aug - Jan | AC66: Sep - Feb | AD66: Aug - Feb | AE66: Nov - Feb | AF66: None | AG66: Aug -Sep | AH66: Jun - Sep | AI66: Jun - Sep | AJ66: Jul - Sep | AK66: Sep - Oct | AL66: Jul - Jan | AM66: Dec - Jul | AO66: =SUM(Aug+Sep+Oct+Nov+Dec+Jan) -> 18.14 | AP66: =SUM(Sep+Oct+Nov+Dec+Jan+Feb) -> 18.84 | AQ66: =SUM(Aug+Sep+Oct+Nov+Dec+Jan+Feb) -> 20.99 | AR66: 11.69 | AS66: 0 | AT66: =Aug+Sep -> 5.07 | AU66: =SUM(Jun+Jul+Aug+Sep) -> 10.39 | AV66: =SUM(Jun+Jul+Aug+Sep) -> 10.39 | AW66: 6.67 | AX66: =Sep+Oct -> 7.15 | AY66: =SUM(Jul+Aug+Sep+Oct+Nov+Dec+Jan) -> 19.74 | AZ66: =SUM(Dec+Jan+Feb+Mar+Apr+May+Jun+Jul) -> 24.56 | BA66: 3
Y67: 1 | Z67: 48129 | AA67: Donley | AB67: Nov - Mar | AC67: Nov - Apr | AD67: Nov - Apr | AE67: Nov - Feb | AF67: None | AG67: Sep | AH67: Oct | AI67: Sep | AJ67: Jul - Sep | AK67: Oct | AL67: not grown | AM67: Dec - May | AO67: =SUM(Nov+Dec+Jan+Feb+Mar) -> 14.53 | AP67: =SUM(Nov+Dec+Jan+Feb+Mar+Apr) -> 17.76 | AQ67: =SUM(Nov+Dec+Jan+Feb+Mar+Apr) -> 17.76 | AR67: 11.69 | AS67: =IF(AF67="none",0) -> 0 | AT67: =Sep -> 2.92 | AU67: =Oct -> 4.23 | AV67: =Sep -> 2.92 | AW67: =SUM(Jul+Aug+Sep) -> 6.67 | AX67: =Oct -> 4.23 | AY67: =IF(AL67="Not Grown",AL67) -> not grown | AZ67: =SUM(Dec+Jan+Feb+Mar+Apr+May) -> 19.24 | BA67: 1
Y68: 3 | Z68: 48131 | AA68: Duval | AB68: Aug - Jan | AC68: Sep - Feb | AD68: Jul - Jan | AE68: Nov - Feb | AF68: None | AG68: Aug -Sep | AH68: Jun - Sep | AI68: Jun - Sep | AJ68: Jul - Sep | AK68: Sep - Oct | AL68: Jul - Jan | AM68: Dec - Jul | AO68: =SUM(Aug+Sep+Oct+Nov+Dec+Jan) -> 18.14 | AP68: =SUM(Sep+Oct+Nov+Dec+Jan+Feb) -> 18.84 | AQ68: =SUM(Jul+Aug+Sep+Oct+Nov+Dec+Jan) -> 19.74 | AR68: 11.69 | AS68: 0 | AT68: =Aug+Sep -> 5.07 | AU68: =SUM(Jun+Jul+Aug+Sep) -> 10.39 | AV68: =SUM(Jun+Jul+Aug+Sep) -> 10.39 | AW68: 6.67 | AX68: =Sep+Oct -> 7.15 | AY68: =SUM(Jul+Aug+Sep+Oct+Nov+Dec+Jan) -> 19.74 | AZ68: =SUM(Dec+Jan+Feb+Mar+Apr+May+Jun+Jul) -> 24.56 | BA68: =Y68 -> 3
Y69: 5 | Z69: 48133 | AA69: Eastland | AB69: Nov - Mar | AC69: Nov - Apr | AD69: Nov - Apr | AE69: Nov - Feb | AF69: None | AG69: Sep | AH69: Aug - Sep | AI69: Aug - Sep | AJ69: Jul - Sep | AK69: Oct | AL69: not grown | AM69: Dec - May | AO69: =SUM(Nov+Dec+Jan+Feb+Mar) -> 14.53 | AP69: =SUM(Nov+Dec+Jan+Feb+Mar+Apr) -> 17.76 | AQ69: =SUM(Nov+Dec+Jan+Feb+Mar+Apr) -> 17.76 | AR69: 11.69 | AS69: 0 | AT69: =Sep -> 2.92 | AU69: =SUM(Aug+Sep) -> 5.07 | AV69: =SUM(Aug+Sep) -> 5.07 | AW69: 6.67 | AX69: =Oct -> 4.23 | AY69: =IF(AL69="Not Grown",AL69) -> not grown | AZ69: =SUM(Dec+Jan+Feb+Mar+Apr+May) -> 19.24 | BA69: 5
Y70: 2 | Z70: 48135 | AA70: Ector | AB70: Nov - Mar | AC70: Nov - Apr | AD70: Nov - Apr | AE70: Nov - Feb | AF70: None | AG70: Sep | AH70: Sep - Oct | AI70: Sep - Oct | AJ70: Jul - Sep | AK70: Oct | AL70: Aug - Mar | AM70: not grown | AO70: =SUM(Nov+Dec+Jan+Feb+Mar) -> 14.53 | AP70: =SUM(Nov+Dec+Jan+Mar+Apr) -> 14.91 | AQ70: =SUM(Nov+Dec+Jan+Feb+Mar+Apr) -> 17.76 | AR70: 11.69 | AS70: 0 | AT70: =Sep -> 2.92 | AU70: =SUM(Sep+Oct) -> 7.15 | AV70: 7.15 | AW70: 6.67 | AX70: 4.23 | AY70: =SUM(Aug+Sep+Oct+Nov+Dec+Jan+Feb+Mar) -> 23.83 | AZ70: =IF(AM70="Not Grown",AM70) -> not grown | BA70: 2
Y71: 2 | Z71: 48137 | AA71: Edwards | AB71: Aug - Feb | AC71: Oct - Mar | AD71: Sep - Feb | AE71: Nov - Feb | AF71: None | AH71: Sep - Oct | AI71: Sep - Oct | AJ71: Jul - Sep | AK71: Oct | AL71: Aug - Mar | AM71: not grown | AO71: =SUM(Aug+Sep+Oct+Nov+Dec+Jan+Feb) -> 20.99 | AP71: =SUM(Oct+Nov+Dec+Jan+Feb+Mar) -> 18.76 | AQ71: =SUM(Sep+Oct+Nov+Dec+Jan+Feb) -> 18.84 | AR71: 11.69 | AS71: 0 | AT71: =IF(AG71="","Not Grown") -> Not Grown | AU71: 7.15 | AV71: 7.15 | AW71: 6.67 | AX71: 4.23 | AY71: =SUM(Aug+Sep+Oct+Nov+Dec+Jan+Feb+Mar) -> 23.83 | AZ71: =IF(AM71="Not Grown",AM71) -> not grown | BA71: 2
Y72: 2 | Z72: 48141 | AA72: El Paso | AB72: Nov - Mar | AC72: Nov - Apr | AD72: Nov - Apr | AE72: Nov - Feb | AF72: None | AG72: Sep | AH72: Sep - Oct | AI72: Sep - Oct | AJ72: Jul - Sep | AK72: Oct | AL72: Aug - Mar | AM72: not grown | AO72: =SUM(Nov+Dec+Jan+Feb+Mar) -> 14.53 | AP72: =SUM(Nov+Dec+Jan+Mar+Apr) -> 14.91 | AQ72: =SUM(Nov+Dec+Jan+Feb+Mar+Apr) -> 17.76 | AR72: 11.69 | AS72: 0 | AT72: =Sep -> 2.92 | AU72: 7.15 | AV72: 7.15 | AW72: 6.67 | AX72: 4.23 | AY72: =SUM(Aug+Sep+Oct+Nov+Dec+Jan+Feb+Mar) -> 23.83 | AZ72: =IF(AM72="Not Grown",AM72) -> not grown | BA72: 2
Y73: 5 | Z73: 48139 | AA73: Ellis | AB73: Nov - Mar | AC73: Nov - Apr | AD73: Nov - Apr | AE73: Nov - Feb | AF73: None | AG73: Sep | AH73: Aug - Sep | AI73: Aug - Sep | AJ73: Jul - Sep | AK73: Oct | AL73: not grown | AM73: Dec - May | AO73: =SUM(Nov+Dec+Jan+Feb+Mar) -> 14.53 | AP73: =SUM(Nov+Dec+Jan+Feb+Mar+Apr) -> 17.76 | AQ73: =SUM(Nov+Dec+Jan+Feb+Mar+Apr) -> 17.76 | AR73: 11.69 | AS73: 0 | AT73: =Sep -> 2.92 | AU73: =SUM(Aug+Sep) -> 5.07 | AV73: 5.07 | AW73: 6.67 | AX73: 4.23 | AY73: =IF(AL73="Not Grown",AL73) -> not grown | AZ73: =SUM(Dec+Jan+Feb+Mar+Apr+May) -> 19.24 | BA73: 5
Y74: 5 | Z74: 48143 | AA74: Erath | AB74: Nov - Mar | AC74: Nov - Apr | AD74: Nov - Apr | AE74: Nov - Feb | AF74: None | AG74: Sep | AH74: Aug - Sep | AI74: Aug - Sep | AJ74: Jul - Sep | AK74: Oct | AL74: not grown | AM74: Dec - May | AO74: =SUM(Nov+Dec+Jan+Feb+Mar) -> 14.53 | AP74: =SUM(Nov+Dec+Jan+Feb+Mar+Apr) -> 17.76 | AQ74: =SUM(Nov+Dec+Jan+Feb+Mar+Apr) -> 17.76 | AR74: 11.69 | AS74: 0 | AT74: =Sep -> 2.92 | AU74: 5.07 | AV74: 5.07 | AW74: 6.67 | AX74: 4.23 | AY74: =IF(AL74="Not Grown",AL74) -> not grown | AZ74: =SUM(Dec+Jan+Feb+Mar+Apr+May) -> 19.24 | BA74: 5
Y75: 5 | Z75: 48145 | AA75: Falls | AB75: Nov - Mar | AC75: Nov - Apr | AD75: Nov - Apr | AE75: Nov - Feb | AF75: None | AG75: Sep | AH75: Aug - Sep | AI75: Aug - Sep | AJ75: Jul - Sep | AK75: Oct | AL75: not grown | AM75: Dec - May | AO75: =SUM(Nov+Dec+Jan+Feb+Mar) -> 14.53 | AP75: =SUM(Nov+Dec+Jan+Feb+Mar+Apr) -> 17.76 | AQ75: =SUM(Nov+Dec+Jan+Feb+Mar+Apr) -> 17.76 | AR75: 11.69 | AS75: 0 | AT75: =Sep -> 2.92 | AU75: 5.07 | AV75: 5.07 | AW75: 6.67 | AX75: 4.23 | AY75: =IF(AL75="Not Grown",AL75) -> not grown | AZ75: =SUM(Dec+Jan+Feb+Mar+Apr+May) -> 19.24 | BA75: 5
Y76: 5 | Z76: 48147 | AA76: Fannin | AB76: Nov - Mar | AC76: Nov - Apr | AD76: Nov - Apr | AE76: Nov - Feb | AF76: None | AG76: Sep | AH76: Aug - Sep | AI76: Aug - Sep | AJ76: Jul - Sep | AK76: Oct | AL76: not grown | AM76: Dec - May | AO76: =SUM(Nov+Dec+Jan+Feb+Mar) -> 14.53 | AP76: =SUM(Nov+Dec+Jan+Feb+Mar+Apr) -> 17.76 | AQ76: =SUM(Nov+Dec+Jan+Feb+Mar+Apr) -> 17.76 | AR76: 11.69 | AS76: 0 | AT76: =Sep -> 2.92 | AU76: 5.07 | AV76: 5.07 | AW76: 6.67 | AX76: 4.23 | AY76: =IF(AL76="Not Grown",AL76) -> not grown | AZ76: =SUM(Dec+Jan+Feb+Mar+Apr+May) -> 19.24 | BA76: 5
Y77: 3 | Z77: 48149 | AA77: Fayette | AB77: Aug - Feb | AC77: Oct - Mar | AD77: Sep - Mar | AE77: Nov - Feb | AF77: None | AG77: Aug -Sep | AH77: Jul - Sep | AI77: Jul - Sep | AJ77: Jul - Sep | AK77: Oct | AL77: Jul - Feb | AM77: Oct - Apr | AO77: =SUM(Aug+Sep+Oct+Nov+Dec+Jan+Feb) -> 20.99 | AP77: =SUM(Oct+Nov+Dec+Jan+Feb+Mar) -> 18.76 | AQ77: =SUM(Sep+Oct+Nov+Dec+Jan+Feb+Mar) -> 21.68 | AR77: 11.69 | AS77: 0 | AT77: =Aug+Sep -> 5.07 | AU77: =SUM(Jun+Jul+Aug+Sep) -> 10.39 | AV77: =SUM(Jul+Aug+Sep) -> 6.67 | AW77: 6.67 | AX77: 4.23 | AY77: =SUM(Jul+Aug+Sep+Oct+Nov+Dec+Jan+Feb) -> 22.59 | AZ77: =SUM(Oct-Nov+Dec+Jan+Feb+Mar+Apr) -> 15.63 | BA77: 3
Y78: 1 | Z78: 48151 | AA78: Fisher | AB78: Nov - Mar | AC78: Nov - Apr | AD78: Nov - Apr | AE78: Nov - Feb | AF78: None | AG78: Sep | AH78: Oct | AI78: Sep | AJ78: Jul - Sep | AK78: Oct | AL78: not grown | AM78: Dec - May | AO78: =SUM(Nov+Dec+Jan+Feb+Mar) -> 14.53 | AP78: =SUM(Nov+Dec+Jan+Feb+Mar+Apr) -> 17.76 | AQ78: 17.76 | AR78: 11.69 | AS78: 0 | AT78: =Sep -> 2.92 | AU78: =Oct -> 4.23 | AV78: =Sep -> 2.92 | AW78: 6.67 | AX78: 4.23 | AY78: =IF(AL78="Not Grown",AL78) -> not grown | AZ78: =SUM(Dec+Jan+Feb+Mar+Apr+May) -> 19.24 | BA78: 1
Y79: 1 | Z79: 48153 | AA79: Floyd | AB79: Nov - Mar | AC79: Nov - Apr | AD79: Nov - Apr | AE79: Nov - Feb | AF79: None | AG79: Sep | AH79: Oct | AI79: Sep | AJ79: Jul - Sep | AK79: Oct | AL79: not grown | AM79: Dec - May | AO79: =SUM(Nov+Dec+Jan+Feb+Mar) -> 14.53 | AP79: 17.76 | AQ79: 17.76 | AR79: 11.69 | AS79: 0 | AT79: =Sep -> 2.92 | AU79: =Oct -> 4.23 | AV79: =Sep -> 2.92 | AW79: 6.67 | AX79: 4.23 | AY79: =IF(AL79="Not Grown",AL79) -> not grown | AZ79: =SUM(Dec+Jan+Feb+Mar+Apr+May) -> 19.24 | BA79: 1
Y80: 1 | Z80: 48155 | AA80: Foard | AB80: Nov - Mar | AC80: Nov - Apr | AD80: Nov - Apr | AE80: Nov - Feb | AF80: None | AG80: Sep | AH80: Oct | AI80: Sep | AJ80: Jul - Sep | AK80: Oct | AL80: not grown | AM80: Dec - May | AO80: =SUM(Nov+Dec+Jan+Feb+Mar) -> 14.53 | AP80: 17.76 | AQ80: 17.76 | AR80: =SUM(Nov+Dec+Jan+Feb) -> 11.69 | AS80: 0 | AT80: =Sep -> 2.92 | AU80: =Oct -> 4.23 | AV80: =Sep -> 2.92 | AW80: 6.67 | AX80: 4.23 | AY80: =IF(AL80="Not Grown",AL80) -> not grown | AZ80: =SUM(Dec+Jan+Feb+Mar+Apr+May) -> 19.24 | BA80: 1
Y81: 3 | Z81: 48157 | AA81: Fort Bend | AB81: Aug - Jan | AC81: Sep - Feb | AD81: Aug - Feb | AE81: Nov - Feb | AF81: None | AG81: Aug -Sep | AH81: Jun - Sep | AI81: Jun - Sep | AJ81: Jul - Sep | AK81: Oct | AL81: Jul - Feb | AM81: Oct - Apr | AO81: =SUM(Aug+Sep+Oct+Nov+Dec+Jan) -> 18.14 | AP81: =SUM(Sep+Oct+Nov+Dec+Jan+Feb) -> 18.84 | AQ81: =SUM(Aug+Sep+Oct+Nov+Dec+Jan+Feb) -> 20.99 | AR81: 11.69 | AS81: 0 | AT81: =Aug+Sep -> 5.07 | AU81: =SUM(Jun+Jul+Aug+Sep) -> 10.39 | AV81: =SUM(Jun+Jul+Aug+Sep) -> 10.39 | AW81: 6.67 | AX81: 4.23 | AY81: =SUM(Jul+Aug+Sep+Oct+Nov+Dec+Jan+Feb) -> 22.59 | AZ81: =SUM(Oct-Nov+Dec+Jan+Feb+Mar+Apr) -> 15.63 | BA81: 3
Y82: 4 | Z82: 48159 | AA82: Franklin | AB82: Aug - Jan | AC82: Nov - Feb | AD82: Nov - Apr | AE82: Nov - Feb | AF82: None | AG82: Aug -Sep | AH82: Jul - Sep | AI82: Aug - Sep | AJ82: Jul - Sep | AK82: Oct | AL82: Jul - Feb | AM82: Oct - Apr | AO82: =SUM(Aug+Sep+Oct+Nov+Dec+Jan) -> 18.14 | AP82: =SUM(Sep+Oct+Nov+Dec+Jan+Feb) -> 18.84 | AQ82: =SUM(Nov+Dec+Jan+Feb+Mar+Apr) -> 17.76 | AR82: 11.69 | AS82: 0 | AT82: =Aug+Sep -> 5.07 | AU82: =SUM(Jul+Aug+Sep) -> 6.67 | AV82: =SUM(Aug+Sep) -> 5.07 | AW82: 6.67 | AX82: 4.23 | AY82: =SUM(Jul+Aug+Sep+Oct+Nov+Dec+Jan+Feb) -> 22.59 | AZ82: =SUM(Oct+Nov+Dec+Jan+Feb+Mar+Apr) -> 21.99 | BA82: 4
Y83: 4 | Z83: 48161 | AA83: Freestone | AB83: Aug - Jan | AC83: Nov - Feb | AD83: Nov - Apr | AE83: Nov - Feb | AF83: None | AG83: Aug -Sep | AH83: Jul - Sep | AI83: Aug - Sep | AJ83: Jul - Sep | AK83: Oct | AL83: Jul - Feb | AM83: Oct - Apr | AO83: =SUM(Aug+Sep+Oct+Nov+Dec+Jan) -> 18.14 | AP83: =SUM(Sep+Oct+Nov+Dec+Jan+Feb) -> 18.84 | AQ83: =SUM(Nov+Dec+Jan+Feb+Mar+Apr) -> 17.76 | AR83: 11.69 | AS83: 0 | AT83: =Aug+Sep -> 5.07 | AU83: =SUM(Jul+Aug+Sep) -> 6.67 | AV83: =SUM(Aug+Sep) -> 5.07 | AW83: 6.67 | AX83: 4.23 | AY83: =SUM(Jul+Aug+Sep+Oct+Nov+Dec+Jan+Feb) -> 22.59 | AZ83: =SUM(Oct+Nov+Dec+Jan+Feb+Mar+Apr) -> 21.99 | BA83: 4
Y84: 3 | Z84: 48163 | AA84: Frio | AB84: Aug - Feb | AC84: Oct - Mar | AD84: Aug - Feb | AE84: Nov - Feb | AF84: None | AG84: Aug -Sep | AH84: Jun - Sep | AI84: Jun - Sep | AJ84: Jul - Sep | AK84: Oct | AL84: Jul - Feb | AM84: Oct - Apr | AO84: =SUM(Aug+Sep+Oct+Nov+Dec+Jan+Feb) -> 20.99 | AP84: =SUM(Oct+Nov+Dec+Jan+Feb+Mar) -> 18.76 | AQ84: =SUM(Aug+Sep+Oct+Nov+Dec+Jan+Feb) -> 20.99 | AR84: 11.69 | AS84: 0 | AT84: =Aug+Sep -> 5.07 | AU84: =SUM(Jun+Jul+Aug+Sep) -> 10.39 | AV84: =SUM(Jun+Jul+Aug+Sep) -> 10.39 | AW84: 6.67 | AX84: 4.23 | AY84: =SUM(Jul+Aug+Sep+Oct+Nov+Dec+Jan+Feb) -> 22.59 | AZ84: =SUM(Oct-Nov+Dec+Jan+Feb+Mar+Apr) -> 15.63 | BA84: 3
Y85: 1 | Z85: 48165 | AA85: Gaines | AB85: Nov - Mar | AC85: Nov - Apr | AD85: Nov - Apr | AE85: Nov - Feb | AF85: None | AG85: Sep | AH85: Oct | AI85: Sep | AJ85: Jul - Sep | AK85: Oct | AL85: not grown | AM85: Dec - May | AO85: =SUM(Nov+Dec+Jan+Feb+Mar) -> 14.53 | AP85: =SUM(Nov+Dec+Jan+Feb+Mar+Apr) -> 17.76 | AQ85: =SUM(Nov+Dec+Jan+Feb+Mar+Apr) -> 17.76 | AR85: 11.69 | AS85: 0 | AT85: =Sep -> 2.92 | AU85: =Oct -> 4.23 | AV85: =Sep -> 2.92 | AW85: 6.67 | AX85: 4.23 | AY85: =IF(AL85="Not Grown",AL85) -> not grown | AZ85: =SUM(Dec+Jan+Feb+Mar+Apr+May) -> 19.24 | BA85: 1
Y86: 4 | Z86: 48167 | AA86: Galveston | AB86: Aug - Jan | AC86: Nov - Feb | AD86: Sep - Mar | AE86: Nov - Feb | AF86: None | AG86: Aug -Sep | AH86: Jul - Sep | AI86: Aug - Sep | AJ86: Jul - Sep | AK86: Oct | AL86: Jul - Feb | AM86: Oct - Apr | AO86: =SUM(Aug+Sep+Oct+Nov+Dec+Jan) -> 18.14 | AP86: =SUM(Sep+Oct+Nov+Dec+Jan+Feb) -> 18.84 | AQ86: =SUM(Sep+Oct+Nov+Dec+Jan+Feb+Mar) -> 21.68 | AR86: 11.69 | AS86: 0 | AT86: =Aug+Sep -> 5.07 | AU86: =SUM(Jul+Aug+Sep) -> 6.67 | AV86: =SUM(Aug+Sep) -> 5.07 | AW86: 6.67 | AX86: 4.23 | AY86: =SUM(Jul+Aug+Sep+Oct+Nov+Dec+Jan+Feb) -> 22.59 | AZ86: =SUM(Oct+Nov+Dec+Jan+Feb+Mar+Apr) -> 21.99 | BA86: 4
Y87: 1 | Z87: 48169 | AA87: Garza | AB87: Nov - Mar | AC87: Nov - Apr | AD87: Nov - Apr | AE87: Nov - Feb | AF87: None | AG87: Sep | AH87: Oct | AI87: Sep | AJ87: Jul - Sep | AK87: Oct | AL87: not grown | AM87: Dec - May | AO87: =SUM(Nov+Dec+Jan+Feb+Mar) -> 14.53 | AP87: =SUM(Nov+Dec+Jan+Feb+Mar+Apr) -> 17.76 | AQ87: =SUM(Nov+Dec+Jan+Feb+Mar+Apr) -> 17.76 | AR87: 11.69 | AS87: 0 | AT87: =Sep -> 2.92 | AU87: =Oct -> 4.23 | AV87: =Sep -> 2.92 | AW87: 6.67 | AX87: 4.23 | AY87: =IF(AL87="Not Grown",AL87) -> not grown | AZ87: =SUM(Dec+Jan+Feb+Mar+Apr+May) -> 19.24 | BA87: 1
Y88: 2 | Z88: 48171 | AA88: Gillespie | AB88: Aug - Feb | AC88: Oct - Mar | AD88: Sep - Feb | AE88: Nov - Feb | AF88: None | AG88: Aug -Sep | AH88: Sep - Oct | AI88: Sep - Oct | AJ88: Jul - Sep | AK88: Oct | AL88: Aug - Mar | AM88: not grown | AO88: =SUM(Aug+Sep+Oct+Nov+Dec+Jan+Feb) -> 20.99 | AP88: =SUM(Oct+Nov+Dec+Jan+Feb+Mar) -> 18.76 | AQ88: =SUM(Sep+Oct+Nov+Dec+Jan+Feb) -> 18.84 | AR88: 11.69 | AS88: 0 | AT88: =Aug+Sep -> 5.07 | AU88: =SUM(Sep+Oct) -> 7.15 | AV88: =SUM(Sep+Oct) -> 7.15 | AW88: 6.67 | AX88: 4.23 | AY88: =SUM(Aug+Sep+Oct+Nov+Dec+Jan+Feb+Mar) -> 23.83 | AZ88: =IF(AM88="Not Grown",AM88) -> not grown | BA88: 2
Y89: 2 | Z89: 48173 | AA89: Glasscock | AB89: Nov - Mar | AC89: Nov - Apr | AD89: Nov - Apr | AE89: Nov - Feb | AF89: None | AG89: Sep | AH89: Sep - Oct | AI89: Sep - Oct | AJ89: Jul - Sep | AK89: Oct | AL89: Aug - Mar | AM89: not grown | AO89: =SUM(Nov+Dec+Jan+Feb+Mar) -> 14.53 | AP89: =SUM(Nov+Dec+Jan+Mar+Apr) -> 14.91 | AQ89: =SUM(Nov+Dec+Jan+Feb+Mar+Apr) -> 17.76 | AR89: 11.69 | AS89: 0 | AT89: =Sep -> 2.92 | AU89: =SUM(Sep+Oct) -> 7.15 | AV89: =SUM(Sep+Oct) -> 7.15 | AW89: 6.67 | AX89: 4.23 | AY89: =SUM(Aug+Sep+Oct+Nov+Dec+Jan+Feb+Mar) -> 23.83 | AZ89: =IF(AM89="Not Grown",AM89) -> not grown | BA89: 2
Y90: 3 | Z90: 48175 | AA90: Goliad | AB90: Aug - Jan | AC90: Sep - Feb | AD90: Jul - Jan | AE90: Nov - Feb | AF90: None | AG90: Aug -Sep | AH90: Jun - Sep | AI90: Jun - Sep | AJ90: Jul - Sep | AK90: Sep - Oct | AL90: Jul - Feb | AM90: Oct - Apr | AO90: =SUM(Aug+Sep+Oct+Nov+Dec+Jan) -> 18.14 | AP90: =SUM(Sep+Oct+Nov+Dec+Jan+Feb) -> 18.84 | AQ90: =SUM(Jul+Aug+Sep+Oct+Nov+Dec+Jan) -> 19.74 | AR90: 11.69 | AS90: 0 | AT90: =Aug+Sep -> 5.07 | AU90: =SUM(Jun+Jul+Aug+Sep) -> 10.39 | AV90: =SUM(Jun+Jul+Aug+Sep) -> 10.39 | AW90: 6.67 | AX90: =Sep+Oct -> 7.15 | AY90: =SUM(Jul+Aug+Sep+Oct+Nov+Dec+Jan+Feb) -> 22.59 | AZ90: =SUM(Oct-Nov+Dec+Jan+Feb+Mar+Apr) -> 15.63 | BA90: 3
Y91: 3 | Z91: 48177 | AA91: Gonzales | AB91: Aug - Feb | AC91: Oct - Mar | AD91: Aug - Feb | AE91: Nov - Feb | AF91: None | AG91: Aug -Sep | AH91: Jun - Sep | AI91: Jun - Sep | AJ91: Jul - Sep | AK91: Oct | AL91: Jul - Feb | AM91: Oct - Apr | AO91: =SUM(Aug+Sep+Oct+Nov+Dec+Jan+Feb) -> 20.99 | AP91: =SUM(Oct+Nov+Dec+Jan+Feb+Mar) -> 18.76 | AQ91: =SUM(Aug+Sep+Oct+Nov+Dec+Jan+Feb) -> 20.99 | AR91: 11.69 | AS91: 0 | AT91: =Aug+Sep -> 5.07 | AU91: =SUM(Jun+Jul+Aug+Sep) -> 10.39 | AV91: =SUM(Jun+Jul+Aug+Sep) -> 10.39 | AW91: 6.67 | AX91: =Oct -> 4.23 | AY91: =SUM(Jul+Aug+Sep+Oct+Nov+Dec+Jan+Feb) -> 22.59 | AZ91: =SUM(Oct-Nov+Dec+Jan+Feb+Mar+Apr) -> 15.63 | BA91: 3
Y92: 1 | Z92: 48179 | AA92: Gray | AB92: Nov - Mar | AC92: Nov - Apr | AD92: Nov - Apr | AE92: Nov - Feb | AF92: None | AG92: Sep | AH92: Oct | AI92: Sep | AJ92: Jul - Sep | AK92: Oct | AL92: not grown | AM92: Dec - May | AO92: =SUM(Nov+Dec+Jan+Feb+Mar) -> 14.53 | AP92: =SUM(Nov+Dec+Jan+Feb+Mar+Apr) -> 17.76 | AQ92: =SUM(Nov+Dec+Jan+Feb+Mar+Apr) -> 17.76 | AR92: 11.69 | AS92: 0 | AT92: =Sep -> 2.92 | AU92: =Oct -> 4.23 | AV92: =Sep -> 2.92 | AW92: 6.67 | AX92: 4.23 | AY92: =IF(AL92="Not Grown",AL92) -> not grown | AZ92: =SUM(Dec+Jan+Feb+Mar+Apr+May) -> 19.24 | BA92: 1
Y93: 5 | Z93: 48181 | AA93: Grayson | AB93: Nov - Mar | AC93: Nov - Apr | AD93: Nov - Apr | AE93: Nov - Feb | AF93: None | AG93: Sep | AH93: Aug - Sep | AI93: Aug - Sep | AJ93: Jul - Sep | AK93: Oct | AL93: not grown | AM93: Dec - May | AO93: =SUM(Nov+Dec+Jan+Feb+Mar) -> 14.53 | AP93: =SUM(Nov+Dec+Jan+Feb+Mar+Apr) -> 17.76 | AQ93: =SUM(Nov+Dec+Jan+Feb+Mar+Apr) -> 17.76 | AR93: 11.69 | AS93: 0 | AT93: =Sep -> 2.92 | AU93: =SUM(Aug+Sep) -> 5.07 | AV93: =SUM(Aug+Sep) -> 5.07 | AW93: 6.67 | AX93: 4.23 | AY93: =IF(AL93="Not Grown",AL93) -> not grown | AZ93: =SUM(Dec+Jan+Feb+Mar+Apr+May) -> 19.24 | BA93: 5
Y94: 4 | Z94: 48183 | AA94: Gregg | AB94: Aug - Jan | AC94: Nov - Feb | AD94: Nov - Apr | AE94: Nov - Feb | AF94: None | AG94: Aug -Sep | AH94: Jul - Sep | AI94: Aug - Sep | AJ94: Jul - Sep | AK94: Oct | AL94: Jul - Feb | AM94: Oct - Apr | AO94: =SUM(Aug+Sep+Oct+Nov+Dec+Jan) -> 18.14 | AP94: =SUM(Sep+Oct+Nov+Dec+Jan+Feb) -> 18.84 | AQ94: =SUM(Nov+Dec+Jan+Feb+Mar+Apr) -> 17.76 | AR94: 11.69 | AS94: 0 | AT94: =Aug+Sep -> 5.07 | AU94: =SUM(Jul+Aug+Sep) -> 6.67 | AV94: =SUM(Aug+Sep) -> 5.07 | AW94: 6.67 | AX94: 4.23 | AY94: =SUM(Jul+Aug+Sep+Oct+Nov+Dec+Jan+Feb) -> 22.59 | AZ94: =SUM(Oct+Nov+Dec+Jan+Feb+Mar+Apr) -> 21.99 | BA94: 4
Y95: 4 | Z95: 48185 | AA95: Grimes | AB95: Aug - Jan | AC95: Nov - Feb | AD95: Sep - Mar | AE95: Nov - Feb | AF95: None | AG95: Aug -Sep | AH95: Jul - Sep | AI95: Aug - Sep | AJ95: Jul - Sep | AK95: Oct | AL95: Jul - Feb | AM95: Oct - Apr | AO95: =SUM(Aug+Sep+Oct+Nov+Dec+Jan) -> 18.14 | AP95: =SUM(Sep+Oct+Nov+Dec+Jan+Feb) -> 18.84 | AQ95: =SUM(Sep+Oct+Nov+Dec+Jan+Feb+Mar) -> 21.68 | AR95: 11.69 | AS95: 0 | AT95: =Aug+Sep -> 5.07 | AU95: =SUM(Jul+Aug+Sep) -> 6.67 | AV95: =SUM(Aug+Sep) -> 5.07 | AW95: 6.67 | AX95: 4.23 | AY95: =SUM(Jul+Aug+Sep+Oct+Nov+Dec+Jan+Feb) -> 22.59 | AZ95: =SUM(Oct+Nov+Dec+Jan+Feb+Mar+Apr) -> 21.99 | BA95: 4
Y96: 3 | Z96: 48187 | AA96: Guadalupe | AB96: Aug - Feb | AC96: Oct - Mar | AD96: Aug - Feb | AE96: Nov - Feb | AF96: None | AG96: Aug -Sep | AH96: Jun - Sep | AI96: Jun - Sep | AJ96: Jul - Sep | AK96: Oct | AL96: Jul - Feb | AM96: Oct - Apr | AO96: =SUM(Aug+Sep+Oct+Nov+Dec+Jan+Feb) -> 20.99 | AP96: =SUM(Oct+Nov+Dec+Jan+Feb+Mar) -> 18.76 | AQ96: =SUM(Aug+Sep+Oct+Nov+Dec+Jan+Feb) -> 20.99 | AR96: 11.69 | AS96: 0 | AT96: =Aug+Sep -> 5.07 | AU96: =SUM(Jun+Jul+Aug+Sep) -> 10.39 | AV96: =SUM(Jun+Jul+Aug+Sep) -> 10.39 | AW96: 6.67 | AX96: 4.23 | AY96: =SUM(Jul+Aug+Sep+Oct+Nov+Dec+Jan+Feb) -> 22.59 | AZ96: =SUM(Oct-Nov+Dec+Jan+Feb+Mar+Apr) -> 15.63 | BA96: 3
Y97: 1 | Z97: 48189 | AA97: Hale | AB97: Nov - Mar | AC97: Nov - Apr | AD97: Nov - Apr | AE97: Nov - Feb | AF97: None | AG97: Sep | AH97: Oct | AI97: Sep | AJ97: Jul - Sep | AK97: Oct | AL97: not grown | AM97: Dec - May | AO97: =SUM(Nov+Dec+Jan+Feb+Mar) -> 14.53 | AP97: =SUM(Nov+Dec+Jan+Feb+Mar+Apr) -> 17.76 | AQ97: 17.76 | AR97: 11.69 | AS97: 0 | AT97: =Sep -> 2.92 | AU97: =Oct -> 4.23 | AV97: =Sep -> 2.92 | AW97: 6.67 | AX97: 4.23 | AY97: =IF(AL97="Not Grown",AL97) -> not grown | AZ97: =SUM(Dec+Jan+Feb+Mar+Apr+May) -> 19.24 | BA97: 1
Y98: 1 | Z98: 48191 | AA98: Hall | AB98: Nov - Mar | AC98: Nov - Apr | AD98: Nov - Apr | AE98: Nov - Feb | AF98: None | AG98: Sep | AH98: Oct | AI98: Sep | AJ98: Jul - Sep | AK98: Oct | AL98: not grown | AM98: Dec - May | AO98: =SUM(Nov+Dec+Jan+Feb+Mar) -> 14.53 | AP98: 17.76 | AQ98: 17.76 | AR98: 11.69 | AS98: 0 | AT98: =Sep -> 2.92 | AU98: =Oct -> 4.23 | AV98: =Sep -> 2.92 | AW98: 6.67 | AX98: 4.23 | AY98: =IF(AL98="Not Grown",AL98) -> not grown | AZ98: =SUM(Dec+Jan+Feb+Mar+Apr+May) -> 19.24 | BA98: 1
Y99: 5 | Z99: 48193 | AA99: Hamilton | AB99: Nov - Mar | AC99: Nov - Apr | AD99: Nov - Apr | AE99: Nov - Feb | AF99: None | AG99: Sep | AH99: Aug - Sep | AI99: Aug - Sep | AJ99: Jul - Sep | AK99: Oct | AL99: not grown | AM99: Dec - May | AO99: =SUM(Nov+Dec+Jan+Feb+Mar) -> 14.53 | AP99: 17.76 | AQ99: 17.76 | AR99: 11.69 | AS99: 0 | AT99: =Sep -> 2.92 | AU99: =SUM(Aug+Sep) -> 5.07 | AV99: =SUM(Aug+Sep) -> 5.07 | AW99: 6.67 | AX99: 4.23 | AY99: =IF(AL99="Not Grown",AL99) -> not grown | AZ99: =SUM(Dec+Jan+Feb+Mar+Apr+May) -> 19.24 | BA99: 5
Y100: 1 | Z100: 48195 | AA100: Hansford | AB100: Nov - Mar | AC100: Nov - Apr | AD100: Nov - Apr | AE100: Nov - Feb | AF100: None | AG100: Sep | AH100: Oct | AI100: Sep | AJ100: Jul - Sep | AK100: Oct | AL100: not grown | AM100: Dec - May | AO100: =SUM(Nov+Dec+Jan+Feb+Mar) -> 14.53 | AP100: 17.76 | AQ100: 17.76 | AR100: 11.69 | AS100: 0 | AT100: =Sep -> 2.92 | AU100: =Oct -> 4.23 | AV100: =Sep -> 2.92 | AW100: 6.67 | AX100: 4.23 | AY100: =IF(AL100="Not Grown",AL100) -> not grown | AZ100: =SUM(Dec+Jan+Feb+Mar+Apr+May) -> 19.24 | BA100: 1
Y101: 1 | Z101: 48197 | AA101: Hardeman | AB101: Nov - Mar | AC101: Nov - Apr | AD101: Nov - Apr | AE101: Nov - Feb | AF101: None | AG101: Sep | AH101: Oct | AI101: Sep | AJ101: Jul - Sep | AK101: Oct | AL101: not grown | AM101: Dec - May | AO101: =SUM(Nov+Dec+Jan+Feb+Mar) -> 14.53 | AP101: 17.76 | AQ101: 17.76 | AR101: 11.69 | AS101: 0 | AT101: =Sep -> 2.92 | AU101: =Oct -> 4.23 | AV101: =Sep -> 2.92 | AW101: 6.67 | AX101: 4.23 | AY101: =IF(AL101="Not Grown",AL101) -> not grown | AZ101: =SUM(Dec+Jan+Feb+Mar+Apr+May) -> 19.24 | BA101: 1
Y102: 4 | Z102: 48199 | AA102: Hardin | AB102: Aug - Jan | AC102: Nov - Feb | AD102: Sep - Mar | AE102: Nov - Feb | AF102: None | AG102: Aug -Sep | AH102: Jul - Sep | AI102: Aug - Sep | AJ102: Jul - Sep | AK102: Oct | AL102: Jul - Feb | AM102: Oct - Apr | AO102: =SUM(Aug+Sep+Oct+Nov+Dec+Jan) -> 18.14 | AP102: =SUM(Sep+Oct+Nov+Dec+Jan+Feb) -> 18.84 | AQ102: =SUM(Sep+Oct+Nov+Dec+Jan+Feb+Mar) -> 21.68 | AR102: 11.69 | AS102: 0 | AT102: =Aug+Sep -> 5.07 | AU102: =SUM(Jul+Aug+Sep) -> 6.67 | AV102: =SUM(Aug+Sep) -> 5.07 | AW102: 6.67 | AX102: 4.23 | AY102: =SUM(Jul+Aug+Sep+Oct+Nov+Dec+Jan+Feb) -> 22.59 | AZ102: =SUM(Oct+Nov+Dec+Jan+Feb+Mar+Apr) -> 21.99 | BA102: 4
Y103: 4 | Z103: 48201 | AA103: Harris | AB103: Aug - Jan | AC103: Nov - Feb | AD103: Sep - Mar | AE103: Nov - Feb | AF103: None | AG103: Aug -Sep | AH103: Jul - Sep | AI103: Aug - Sep | AJ103: Jul - Sep | AK103: Oct | AL103: Jul - Feb | AM103: Oct - Apr | AO103: =SUM(Aug+Sep+Oct+Nov+Dec+Jan) -> 18.14 | AP103: =SUM(Sep+Oct+Nov+Dec+Jan+Feb) -> 18.84 | AQ103: =SUM(Sep+Oct+Nov+Dec+Jan+Feb+Mar) -> 21.68 | AR103: 11.69 | AS103: 0 | AT103: =Aug+Sep -> 5.07 | AU103: =SUM(Jul+Aug+Sep) -> 6.67 | AV103: =SUM(Aug+Sep) -> 5.07 | AW103: 6.67 | AX103: 4.23 | AY103: =SUM(Jul+Aug+Sep+Oct+Nov+Dec+Jan+Feb) -> 22.59 | AZ103: =SUM(Oct+Nov+Dec+Jan+Feb+Mar+Apr) -> 21.99 | BA103: 4
Y104: 4 | Z104: 48203 | AA104: Harrison | AB104: Aug - Jan | AC104: Nov - Feb | AD104: Nov - Apr | AE104: Nov - Feb | AF104: None | AG104: Aug -Sep | AH104: Jul - Sep | AI104: Aug - Sep | AJ104: Jul - Sep | AK104: Oct | AL104: Jul - Feb | AM104: Oct - Apr | AO104: =SUM(Aug+Sep+Oct+Nov+Dec+Jan) -> 18.14 | AP104: =SUM(Sep+Oct+Nov+Dec+Jan+Feb) -> 18.84 | AQ104: =SUM(Nov+Dec+Jan+Feb+Mar+Apr) -> 17.76 | AR104: 11.69 | AS104: 0 | AT104: =Aug+Sep -> 5.07 | AU104: =SUM(Jul+Aug+Sep) -> 6.67 | AV104: =SUM(Aug+Sep) -> 5.07 | AW104: 6.67 | AX104: 4.23 | AY104: =SUM(Jul+Aug+Sep+Oct+Nov+Dec+Jan+Feb) -> 22.59 | AZ104: =SUM(Oct+Nov+Dec+Jan+Feb+Mar+Apr) -> 21.99 | BA104: 4
Y105: 1 | Z105: 48205 | AA105: Hartley | AB105: Nov - Mar | AC105: Nov - Apr | AD105: Nov - Apr | AE105: Nov - Feb | AF105: None | AG105: Sep | AH105: Oct | AI105: Sep | AJ105: Jul - Sep | AK105: Oct | AL105: not grown | AM105: Dec - May | AO105: =SUM(Nov+Dec+Jan+Feb+Mar) -> 14.53 | AP105: =SUM(Nov+Dec+Jan+Feb+Mar+Apr) -> 17.76 | AQ105: =SUM(Nov+Dec+Jan+Feb+Mar+Apr) -> 17.76 | AR105: 11.69 | AS105: 0 | AT105: =Sep -> 2.92 | AU105: =Oct -> 4.23 | AV105: =Sep -> 2.92 | AW105: 6.67 | AX105: 4.23 | AY105: =IF(AL105="Not Grown",AL105) -> not grown | AZ105: =SUM(Dec+Jan+Feb+Mar+Apr+May) -> 19.24 | BA105: 1
Y106: 5 | Z106: 48207 | AA106: Haskell | AB106: Nov - Mar | AC106: Nov - Apr | AD106: Nov - Apr | AE106: Nov - Feb | AF106: None | AG106: Sep | AH106: Aug - Sep | AI106: Aug - Sep | AJ106: Jul - Sep | AK106: Oct | AL106: not grown | AM106: Dec - May | AO106: =SUM(Nov+Dec+Jan+Feb+Mar) -> 14.53 | AP106: =SUM(Nov+Dec+Jan+Feb+Mar+Apr) -> 17.76 | AQ106: =SUM(Nov+Dec+Jan+Feb+Mar+Apr) -> 17.76 | AR106: 11.69 | AS106: 0 | AT106: =Sep -> 2.92 | AU106: =SUM(Aug+Sep) -> 5.07 | AV106: =SUM(Aug+Sep) -> 5.07 | AW106: 6.67 | AX106: 4.23 | AY106: =IF(AL106="Not Grown",AL106) -> not grown | AZ106: =SUM(Dec+Jan+Feb+Mar+Apr+May) -> 19.24 | BA106: 5
Y107: 3 | Z107: 48209 | AA107: Hays | AB107: Aug - Feb | AC107: Oct - Mar | AD107: Sep - Mar | AE107: Nov - Feb | AF107: None | AG107: Aug -Sep | AH107: Jun - Sep | AI107: Jun - Sep | AJ107: Jul - Sep | AK107: Oct | AL107: Jul - Feb | AM107: Oct - Apr | AO107: =SUM(Aug+Sep+Oct+Nov+Dec+Jan+Feb) -> 20.99 | AP107: =SUM(Oct+Nov+Dec+Jan+Feb+Mar) -> 18.76 | AQ107: =SUM(Sep+Oct+Nov+Dec+Jan+Feb+Mar) -> 21.68 | AR107: 11.69 | AS107: 0 | AT107: =Aug+Sep -> 5.07 | AU107: =SUM(Jun+Jul+Aug+Sep) -> 10.39 | AV107: =SUM(Jun+Jul+Aug+Sep) -> 10.39 | AW107: 6.67 | AX107: 4.23 | AY107: =SUM(Jul+Aug+Sep+Oct+Nov+Dec+Jan+Feb) -> 22.59 | AZ107: =SUM(Oct-Nov+Dec+Jan+Feb+Mar+Apr) -> 15.63 | BA107: 3
Y108: 1 | Z108: 48211 | AA108: Hemphill | AB108: Nov - Mar | AC108: Nov - Apr | AD108: Nov - Apr | AE108: Nov - Feb | AF108: None | AG108: Sep | AH108: Oct | AI108: Sep | AJ108: Jul - Sep | AK108: Oct | AL108: not grown | AM108: Dec - May | AO108: =SUM(Nov+Dec+Jan+Feb+Mar) -> 14.53 | AP108: =SUM(Nov+Dec+Jan+Feb+Mar+Apr) -> 17.76 | AQ108: =SUM(Nov+Dec+Jan+Feb+Mar+Apr) -> 17.76 | AR108: 11.69 | AS108: 0 | AT108: =Sep -> 2.92 | AU108: =Oct -> 4.23 | AV108: =Sep -> 2.92 | AW108: 6.67 | AX108: 4.23 | AY108: =IF(AL108="Not Grown",AL108) -> not grown | AZ108: =SUM(Dec+Jan+Feb+Mar+Apr+May) -> 19.24 | BA108: 1
Y109: 4 | Z109: 48213 | AA109: Henderson | AB109: Aug - Jan | AC109: Nov - Feb | AD109: Nov - Apr | AE109: Nov - Feb | AF109: None | AG109: Aug -Sep | AH109: Jul - Sep | AI109: Aug - Sep | AJ109: Jul - Sep | AK109: Oct | AL109: Jul - Feb | AM109: Oct - Apr | AO109: =SUM(Aug+Sep+Oct+Nov+Dec+Jan) -> 18.14 | AP109: =SUM(Sep+Oct+Nov+Dec+Jan+Feb) -> 18.84 | AQ109: =SUM(Nov+Dec+Jan+Feb+Mar+Apr) -> 17.76 | AR109: 11.69 | AS109: 0 | AT109: =Aug+Sep -> 5.07 | AU109: =SUM(Jul+Aug+Sep) -> 6.67 | AV109: =SUM(Aug+Sep) -> 5.07 | AW109: 6.67 | AX109: 4.23 | AY109: =SUM(Jul+Aug+Sep+Oct+Nov+Dec+Jan+Feb) -> 22.59 | AZ109: =SUM(Oct+Nov+Dec+Jan+Feb+Mar+Apr) -> 21.99 | BA109: 4
Y110: 3 | Z110: 48215 | AA110: Hidalgo | AB110: Aug - Dec | AC110: Sep - Jan | AD110: Jun - Jan | AE110: Dec - Jan | AF110: None | AG110: Aug -Sep | AH110: Jun - Sep | AI110: Jun - Sep | AJ110: Jul - Sep | AK110: Jan, Jul | AL110: Jun - Dec | AM110: Dec - Jul | AO110: =SUM(Aug+Sep+Oct+Nov+Dec) -> 15.74 | AP110: =SUM(Sep+Oct+Nov+Dec+Jan) -> 15.99 | AQ110: =SUM(Jun+Jul+Aug+Sep+Oct+Nov+Dec+Jan) -> 23.46 | AR110: =SUM(Dec+Jan) -> 5.66 | AS110: 0 | AT110: =Aug+Sep -> 5.07 | AU110: =SUM(Jun+Jul+Aug+Sep) -> 10.39 | AV110: =SUM(Jun+Jul+Aug+Sep) -> 10.39 | AW110: 6.67 | AX110: =Jan+Jul -> 4 | AY110: =SUM(Jun+Jul+Aug+Sep+Oct+Nov+Dec) -> 21.06 | AZ110: =SUM(Dec+Jan+Feb+Mar+Apr+May+Jun+Jul) -> 24.56 | BA110: 3
Y111: 5 | Z111: 48217 | AA111: Hill | AB111: Nov - Mar | AC111: Nov - Apr | AD111: Nov - Apr | AE111: Nov - Feb | AF111: None | AG111: Sep | AH111: Aug - Sep | AI111: Aug - Sep | AJ111: Jul - Sep | AK111: Oct | AL111: not grown | AM111: Dec - May | AO111: =SUM(Nov+Dec+Jan+Feb+Mar) -> 14.53 | AP111: =SUM(Nov+Dec+Jan+Feb+Mar+Apr) -> 17.76 | AQ111: 17.76 | AR111: =SUM(Nov+Dec+Jan+Feb) -> 11.69 | AS111: 0 | AT111: =Sep -> 2.92 | AU111: =SUM(Aug+Sep) -> 5.07 | AV111: =SUM(Aug+Sep) -> 5.07 | AW111: 6.67 | AX111: =Oct -> 4.23 | AY111: =IF(AL111="Not Grown",AL111) -> not grown | AZ111: =SUM(Dec+Jan+Feb+Mar+Apr+May) -> 19.24 | BA111: 5
Y112: 1 | Z112: 48219 | AA112: Hockley | AB112: Nov - Mar | AC112: Nov - Apr | AD112: Nov - Apr | AE112: Nov - Feb | AF112: None | AG112: Sep | AH112: Oct | AI112: Sep | AJ112: Jul - Sep | AK112: Oct | AL112: not grown | AM112: Dec - May | AO112: =SUM(Nov+Dec+Jan+Feb+Mar) -> 14.53 | AP112: 17.76 | AQ112: 17.76 | AR112: 11.69 | AS112: 0 | AT112: =Sep -> 2.92 | AU112: =Oct -> 4.23 | AV112: =Sep -> 2.92 | AW112: 6.67 | AX112: 4.23 | AY112: =IF(AL112="Not Grown",AL112) -> not grown | AZ112: =SUM(Dec+Jan+Feb+Mar+Apr+May) -> 19.24 | BA112: 1
Y113: 5 | Z113: 48221 | AA113: Hood | AB113: Nov - Mar | AC113: Nov - Apr | AD113: Nov - Apr | AE113: Nov - Feb | AF113: None | AG113: Sep | AH113: Aug - Sep | AI113: Aug - Sep | AJ113: Jul - Sep | AK113: Oct | AL113: not grown | AM113: Dec - May | AO113: =SUM(Nov+Dec+Jan+Feb+Mar) -> 14.53 | AP113: 17.76 | AQ113: 17.76 | AR113: 11.69 | AS113: 0 | AT113: =Sep -> 2.92 | AU113: =SUM(Aug+Sep) -> 5.07 | AV113: =SUM(Aug+Sep) -> 5.07 | AW113: 6.67 | AX113: 4.23 | AY113: =IF(AL113="Not Grown",AL113) -> not grown | AZ113: =SUM(Dec+Jan+Feb+Mar+Apr+May) -> 19.24 | BA113: 5
Y114: 4 | Z114: 48223 | AA114: Hopkins | AB114: Aug - Jan | AC114: Nov - Feb | AD114: Nov - Apr | AE114: Nov - Feb | AF114: None | AG114: Aug -Sep | AH114: Jul - Sep | AI114: Aug - Sep | AJ114: Jul - Sep | AK114: Oct | AL114: Jul - Feb | AM114: Oct - Apr | AO114: =SUM(Aug+Sep+Oct+Nov+Dec+Jan) -> 18.14 | AP114: =SUM(Sep+Oct+Nov+Dec+Jan+Feb) -> 18.84 | AQ114: =SUM(Nov+Dec+Jan+Feb+Mar+Apr) -> 17.76 | AR114: 11.69 | AS114: 0 | AT114: =Aug+Sep -> 5.07 | AU114: =SUM(Jul+Aug+Sep) -> 6.67 | AV114: =SUM(Aug+Sep) -> 5.07 | AW114: 6.67 | AX114: 4.23 | AY114: =SUM(Jul+Aug+Sep+Oct+Nov+Dec+Jan+Feb) -> 22.59 | AZ114: =SUM(Oct+Nov+Dec+Jan+Feb+Mar+Apr) -> 21.99 | BA114: 4
Y115: 4 | Z115: 48225 | AA115: Houston | AB115: Aug - Jan | AC115: Nov - Feb | AD115: Sep - Mar | AE115: Nov - Feb | AF115: None | AG115: Aug -Sep | AH115: Jul - Sep | AI115: Aug - Sep | AJ115: Jul - Sep | AK115: Oct | AL115: Jul - Feb | AM115: Oct - Apr | AO115: =SUM(Aug+Sep+Oct+Nov+Dec+Jan) -> 18.14 | AP115: =SUM(Sep+Oct+Nov+Dec+Jan+Feb) -> 18.84 | AQ115: =SUM(Sep+Oct+Nov+Dec+Jan+Feb+Mar) -> 21.68 | AR115: 11.69 | AS115: 0 | AT115: =Aug+Sep -> 5.07 | AU115: =SUM(Jul+Aug+Sep) -> 6.67 | AV115: =SUM(Aug+Sep) -> 5.07 | AW115: 6.67 | AX115: 4.23 | AY115: =SUM(Jul+Aug+Sep+Oct+Nov+Dec+Jan+Feb) -> 22.59 | AZ115: =SUM(Oct+Nov+Dec+Jan+Feb+Mar+Apr) -> 21.99 | BA115: 4
Y116: 2 | Z116: 48227 | AA116: Howard | AB116: Nov - Mar | AC116: Nov - Apr | AD116: Nov - Apr | AE116: Nov - Feb | AF116: None | AG116: Sep | AH116: Sep - Oct | AI116: Sep - Oct | AJ116: Jul - Sep | AK116: Oct | AL116: Aug - Mar | AM116: not grown | AO116: =SUM(Nov+Dec+Jan+Feb+Mar) -> 14.53 | AP116: =SUM(Nov+Dec+Jan+Mar+Apr) -> 14.91 | AQ116: =SUM(Nov+Dec+Jan+Feb+Mar+Apr) -> 17.76 | AR116: 11.69 | AS116: 0 | AT116: =Sep -> 2.92 | AU116: =SUM(Sep+Oct) -> 7.15 | AV116: =SUM(Sep+Oct) -> 7.15 | AW116: 6.67 | AX116: 4.23 | AY116: =SUM(Aug+Sep+Oct+Nov+Dec+Jan+Feb+Mar) -> 23.83 | AZ116: =IF(AM116="Not Grown",AM116) -> not grown | BA116: 2
Y117: 2 | Z117: 48229 | AA117: Hudspeth | AB117: Nov - Mar | AC117: Nov - Apr | AD117: Nov - Apr | AE117: Nov - Feb | AF117: None | AG117: Sep | AH117: Sep - Oct | AI117: Sep - Oct | AJ117: Jul - Sep | AK117: Oct | AL117: Aug - Mar | AM117: not grown | AO117: 14.53 | AP117: =SUM(Nov+Dec+Jan+Mar+Apr) -> 14.91 | AQ117: 17.76 | AR117: 11.69 | AS117: 0 | AT117: 2.92 | AU117: =SUM(Sep+Oct) -> 7.15 | AV117: =SUM(Sep+Oct) -> 7.15 | AW117: 6.67 | AX117: 4.23 | AY117: =SUM(Aug+Sep+Oct+Nov+Dec+Jan+Feb+Mar) -> 23.83 | AZ117: =IF(AM117="Not Grown",AM117) -> not grown | BA117: 2
Y118: 5 | Z118: 48231 | AA118: Hunt | AB118: Nov - Mar | AC118: Nov - Apr | AD118: Nov - Apr | AE118: Nov - Feb | AF118: None | AG118: Sep | AH118: Aug - Sep | AI118: Aug - Sep | AJ118: Jul - Sep | AK118: Oct | AL118: not grown | AM118: Dec - May | AO118: 14.53 | AP118: =SUM(Nov+Dec+Jan+Feb+Mar+Apr) -> 17.76 | AQ118: 17.76 | AR118: 11.69 | AS118: 0 | AT118: 2.92 | AU118: =SUM(Aug+Sep) -> 5.07 | AV118: =SUM(Aug+Sep) -> 5.07 | AW118: 6.67 | AX118: 4.23 | AY118: =IF(AL118="Not Grown",AL118) -> not grown | AZ118: =SUM(Dec+Jan+Feb+Mar+Apr+May) -> 19.24 | BA118: 5
Y119: 1 | Z119: 48233 | AA119: Hutchinson | AB119: Nov - Mar | AC119: Nov - Apr | AD119: Nov - Apr | AE119: Nov - Feb | AF119: None | AG119: Sep | AH119: Oct | AI119: Sep | AJ119: Jul - Sep | AK119: Oct | AL119: not grown | AM119: Dec - May | AO119: 14.53 | AP119: =SUM(Nov+Dec+Jan+Feb+Mar+Apr) -> 17.76 | AQ119: 17.76 | AR119: 11.69 | AS119: 0 | AT119: 2.92 | AU119: =Oct -> 4.23 | AV119: =Sep -> 2.92 | AW119: 6.67 | AX119: 4.23 | AY119: =IF(AL119="Not Grown",AL119) -> not grown | AZ119: =SUM(Dec+Jan+Feb+Mar+Apr+May) -> 19.24 | BA119: 1
Y120: 2 | Z120: 48235 | AA120: Irion | AB120: Nov - Mar | AC120: Nov - Apr | AD120: Nov - Apr | AE120: Nov - Feb | AF120: None | AG120: Sep | AH120: Sep - Oct | AI120: Sep - Oct | AJ120: Jul - Sep | AK120: Oct | AL120: Aug - Mar | AM120: not grown | AO120: 14.53 | AP120: =SUM(Nov+Dec+Jan+Mar+Apr) -> 14.91 | AQ120: 17.76 | AR120: 11.69 | AS120: 0 | AT120: 2.92 | AU120: =SUM(Sep+Oct) -> 7.15 | AV120: =SUM(Sep+Oct) -> 7.15 | AW120: 6.67 | AX120: 4.23 | AY120: =SUM(Aug+Sep+Oct+Nov+Dec+Jan+Feb+Mar) -> 23.83 | AZ120: =IF(AM120="Not Grown",AM120) -> not grown | BA120: 2
Y121: 5 | Z121: 48237 | AA121: Jack | AB121: Nov - Mar | AC121: Nov - Apr | AD121: Nov - Apr | AE121: Nov - Feb | AF121: None | AG121: Sep | AH121: Aug - Sep | AI121: Aug - Sep | AJ121: Jul - Sep | AK121: Oct | AL121: not grown | AM121: Dec - May | AO121: 14.53 | AP121: =SUM(Nov+Dec+Jan+Feb+Mar+Apr) -> 17.76 | AQ121: 17.76 | AR121: 11.69 | AS121: 0 | AT121: 2.92 | AU121: =SUM(Aug+Sep) -> 5.07 | AV121: =SUM(Aug+Sep) -> 5.07 | AW121: 6.67 | AX121: 4.23 | AY121: =IF(AL121="Not Grown",AL121) -> not grown | AZ121: =SUM(Dec+Jan+Feb+Mar+Apr+May) -> 19.24 | BA121: 5
Y122: 3 | Z122: 48239 | AA122: Jackson | AB122: Aug - Jan | AC122: Sep - Feb | AD122: Aug - Feb | AE122: Nov - Feb | AF122: None | AG122: Aug -Sep | AH122: Jun - Sep | AI122: Jun - Sep | AJ122: Jul - Sep | AK122: Sep - Oct | AL122: Jul - Feb | AM122: Oct - Apr | AO122: =SUM(Aug+Sep+Oct+Nov+Dec+Jan) -> 18.14 | AP122: =SUM(Sep+Oct+Nov+Dec+Jan+Feb) -> 18.84 | AQ122: =SUM(Aug+Sep+Oct+Nov+Dec+Jan+Feb) -> 20.99 | AR122: 11.69 | AS122: 0 | AT122: =Aug+Sep -> 5.07 | AU122: =SUM(Jun+Jul+Aug+Sep) -> 10.39 | AV122: =SUM(Jun+Jul+Aug+Sep) -> 10.39 | AW122: 6.67 | AX122: =Sep+Oct -> 7.15 | AY122: =SUM(Jul+Aug+Sep+Oct+Nov+Dec+Jan+Feb) -> 22.59 | AZ122: =SUM(Oct-Nov+Dec+Jan+Feb+Mar+Apr) -> 15.63 | BA122: 3
Y123: 4 | Z123: 48241 | AA123: Jasper | AB123: Aug - Jan | AC123: Nov - Feb | AD123: Sep - Mar | AE123: Nov - Feb | AF123: None | AG123: Aug -Sep | AH123: Jul - Sep | AI123: Aug - Sep | AJ123: Jul - Sep | AK123: Oct | AL123: Jul - Feb | AM123: Oct - Apr | AO123: =SUM(Aug+Sep+Oct+Nov+Dec+Jan) -> 18.14 | AP123: =SUM(Sep+Oct+Nov+Dec+Jan+Feb) -> 18.84 | AQ123: =SUM(Sep+Oct+Nov+Dec+Jan+Feb+Mar) -> 21.68 | AR123: 11.69 | AS123: 0 | AT123: =Aug+Sep -> 5.07 | AU123: =SUM(Jul+Aug+Sep) -> 6.67 | AV123: =SUM(Aug+Sep) -> 5.07 | AW123: 6.67 | AX123: =Oct -> 4.23 | AY123: =SUM(Jul+Aug+Sep+Oct+Nov+Dec+Jan+Feb) -> 22.59 | AZ123: =SUM(Oct+Nov+Dec+Jan+Feb+Mar+Apr) -> 21.99 | BA123: 4
Y124: 2 | Z124: 48243 | AA124: Jeff Davis | AB124: Nov - Mar | AC124: Nov - Apr | AD124: Nov - Apr | AE124: Nov - Feb | AF124: None | AG124: Sep | AH124: Sep - Oct | AI124: Sep - Oct | AJ124: Jul - Sep | AK124: Oct | AL124: Aug - Mar | AM124: not grown | AO124: =SUM(Nov+Dec+Jan+Feb+Mar) -> 14.53 | AP124: =SUM(Nov+Dec+Jan+Mar+Apr) -> 14.91 | AQ124: =SUM(Nov+Dec+Jan+Feb+Mar+Apr) -> 17.76 | AR124: 11.69 | AS124: 0 | AT124: =Sep -> 2.92 | AU124: =SUM(Sep+Oct) -> 7.15 | AV124: =SUM(Sep+Oct) -> 7.15 | AW124: 6.67 | AX124: =Oct -> 4.23 | AY124: =SUM(Aug+Sep+Oct+Nov+Dec+Jan+Feb+Mar) -> 23.83 | AZ124: =IF(AM124="Not Grown",AM124) -> not grown | BA124: 2
Y125: 4 | Z125: 48245 | AA125: Jefferson | AB125: Aug - Jan | AC125: Nov - Feb | AD125: Sep - Mar | AE125: Nov - Feb | AF125: None | AG125: Aug -Sep | AH125: Jul - Sep | AI125: Aug - Sep | AJ125: Jul - Sep | AK125: Oct | AL125: Jul - Feb | AM125: Oct - Apr | AO125: =SUM(Aug+Sep+Oct+Nov+Dec+Jan) -> 18.14 | AP125: =SUM(Sep+Oct+Nov+Dec+Jan+Feb) -> 18.84 | AQ125: =SUM(Sep+Oct+Nov+Dec+Jan+Feb+Mar) -> 21.68 | AR125: 11.69 | AS125: 0 | AT125: =Aug+Sep -> 5.07 | AU125: =SUM(Jul+Aug+Sep) -> 6.67 | AV125: =SUM(Aug+Sep) -> 5.07 | AW125: 6.67 | AX125: =Oct -> 4.23 | AY125: =SUM(Jul+Aug+Sep+Oct+Nov+Dec+Jan+Feb) -> 22.59 | AZ125: =SUM(Oct+Nov+Dec+Jan+Feb+Mar+Apr) -> 21.99 | BA125: 4
Y126: 3 | Z126: 48247 | AA126: Jim Hogg | AB126: Aug - Dec | AC126: Sep - Jan | AD126: Jul - Jan | AE126: Dec - Jan | AF126: None | AG126: Aug -Sep | AH126: Jun - Sep | AI126: Jun - Sep | AJ126: Jul - Sep | AK126: Sep - Oct | AL126: Jul - Jan | AM126: Dec - Jul | AO126: =SUM(Aug+Sep+Oct+Nov+Dec) -> 15.74 | AP126: =SUM(Sep+Oct+Nov+Dec+Jan) -> 15.99 | AQ126: =SUM(Jul+Aug+Sep+Oct+Nov+Dec+Jan) -> 19.74 | AR126: =SUM(Dec+Jan) -> 5.66 | AS126: 0 | AT126: =Aug+Sep -> 5.07 | AU126: =SUM(Jun+Jul+Aug+Sep) -> 10.39 | AV126: =SUM(Jun+Jul+Aug+Sep) -> 10.39 | AW126: 6.67 | AX126: =Sep+Oct -> 7.15 | AY126: =SUM(Jul+Aug+Sep+Oct+Nov+Dec+Jan) -> 19.74 | AZ126: =SUM(Dec+Jan+Feb+Mar+Apr+May+Jun+Jul) -> 24.56 | BA126: 3
Y127: 3 | Z127: 48249 | AA127: Jim Wells | AB127: Aug - Jan | AC127: Sep - Feb | AD127: Jul - Jan | AE127: Nov - Feb | AF127: None | AG127: Aug -Sep | AH127: Jun - Sep | AI127: Jun - Sep | AJ127: Jul - Sep | AK127: Sep - Oct | AL127: Jul - Jan | AM127: Dec - Jul | AO127: =SUM(Aug+Sep+Oct+Nov+Dec+Jan) -> 18.14 | AP127: =SUM(Sep+Oct+Nov+Dec+Jan+Feb) -> 18.84 | AQ127: =SUM(Jul+Aug+Sep+Oct+Nov+Dec+Jan) -> 19.74 | AR127: =SUM(Nov+Dec+Jan+Feb) -> 11.69 | AS127: 0 | AT127: =Aug+Sep -> 5.07 | AU127: =SUM(Jun+Jul+Aug+Sep) -> 10.39 | AV127: =SUM(Jun+Jul+Aug+Sep) -> 10.39 | AW127: 6.67 | AX127: =Sep+Oct -> 7.15 | AY127: =SUM(Jul+Aug+Sep+Oct+Nov+Dec+Jan) -> 19.74 | AZ127: =SUM(Dec+Jan+Feb+Mar+Apr+May+Jun+Jul) -> 24.56 | BA127: 3
Y128: 5 | Z128: 48251 | AA128: Johnson | AB128: Nov - Mar | AC128: Nov - Apr | AD128: Nov - Apr | AE128: Nov - Feb | AF128: None | AG128: Sep | AH128: Aug - Sep | AI128: Aug - Sep | AJ128: Jul - Sep | AK128: Oct | AL128: not grown | AM128: Dec - May | AO128: =SUM(Nov+Dec+Jan+Feb+Mar) -> 14.53 | AP128: =SUM(Nov+Dec+Jan+Feb+Mar+Apr) -> 17.76 | AQ128: =SUM(Nov+Dec+Jan+Feb+Mar+Apr) -> 17.76 | AR128: 11.69 | AS128: 0 | AT128: =Sep -> 2.92 | AU128: =SUM(Aug+Sep) -> 5.07 | AV128: =SUM(Aug+Sep) -> 5.07 | AW128: 6.67 | AX128: =Oct -> 4.23 | AY128: =IF(AL128="Not Grown",AL128) -> not grown | AZ128: =SUM(Dec+Jan+Feb+Mar+Apr+May) -> 19.24 | BA128: 5
Y129: 5 | Z129: 48253 | AA129: Jones | AB129: Nov - Mar | AC129: Nov - Apr | AD129: Nov - Apr | AE129: Nov - Feb | AF129: None | AG129: Sep | AH129: Aug - Sep | AI129: Aug - Sep | AJ129: Jul - Sep | AK129: Oct | AL129: not grown | AM129: Dec - May | AO129: =SUM(Nov+Dec+Jan+Feb+Mar) -> 14.53 | AP129: =SUM(Nov+Dec+Jan+Feb+Mar+Apr) -> 17.76 | AQ129: =SUM(Nov+Dec+Jan+Feb+Mar+Apr) -> 17.76 | AR129: 11.69 | AS129: 0 | AT129: =Sep -> 2.92 | AU129: =SUM(Aug+Sep) -> 5.07 | AV129: =SUM(Aug+Sep) -> 5.07 | AW129: 6.67 | AX129: =Oct -> 4.23 | AY129: =IF(AL129="Not Grown",AL129) -> not grown | AZ129: =SUM(Dec+Jan+Feb+Mar+Apr+May) -> 19.24 | BA129: 5
Y130: 3 | Z130: 48255 | AA130: Karnes | AB130: Aug - Jan | AC130: Sep - Feb | AD130: Aug - Feb | AE130: Nov - Feb | AF130: None | AG130: Aug -Sep | AH130: Jun - Sep | AI130: Jun - Sep | AJ130: Jul - Sep | AK130: Oct | AL130: Jul - Feb | AM130: Oct - Apr | AO130: =SUM(Aug+Sep+Oct+Nov+Dec+Jan) -> 18.14 | AP130: =SUM(Sep+Oct+Nov+Dec+Jan+Feb) -> 18.84 | AQ130: =SUM(Aug+Sep+Oct+Nov+Dec+Jan+Feb) -> 20.99 | AR130: 11.69 | AS130: 0 | AT130: =Aug+Sep -> 5.07 | AU130: =SUM(Jun+Jul+Aug+Sep) -> 10.39 | AV130: =SUM(Jun+Jul+Aug+Sep) -> 10.39 | AW130: 6.67 | AX130: =Oct -> 4.23 | AY130: =SUM(Jul+Aug+Sep+Oct+Nov+Dec+Jan+Feb) -> 22.59 | AZ130: =SUM(Oct-Nov+Dec+Jan+Feb+Mar+Apr) -> 15.63 | BA130: 3
Y131: 5 | Z131: 48257 | AA131: Kaufman | AB131: Nov - Mar | AC131: Nov - Apr | AD131: Nov - Apr | AE131: Nov - Feb | AF131: None | AG131: Sep | AH131: Aug - Sep | AI131: Aug - Sep | AJ131: Jul - Sep | AK131: Oct | AL131: not grown | AM131: Dec - May | AO131: =SUM(Nov+Dec+Jan+Feb+Mar) -> 14.53 | AP131: =SUM(Nov+Dec+Jan+Feb+Mar+Apr) -> 17.76 | AQ131: =SUM(Nov+Dec+Jan+Feb+Mar+Apr) -> 17.76 | AR131: 11.69 | AS131: =IF(AF131="none",0) -> 0 | AT131: =Sep -> 2.92 | AU131: =SUM(Aug+Sep) -> 5.07 | AV131: =SUM(Aug+Sep) -> 5.07 | AW131: =SUM(Jul+Aug+Sep) -> 6.67 | AX131: =Oct -> 4.23 | AY131: =IF(AL131="Not Grown",AL131) -> not grown | AZ131: =SUM(Dec+Jan+Feb+Mar+Apr+May) -> 19.24 | BA131: 5
Y132: 2 | Z132: 48259 | AA132: Kendall | AB132: Aug - Feb | AC132: Oct - Mar | AD132: Sep - Feb | AE132: Nov - Feb | AF132: None | AG132: Aug -Sep | AH132: Sep - Oct | AI132: Sep - Oct | AJ132: Jul - Sep | AK132: Oct | AL132: Aug - Mar | AM132: not grown | AO132: =SUM(Aug+Sep+Oct+Nov+Dec+Jan+Feb) -> 20.99 | AP132: =SUM(Oct+Nov+Dec+Jan+Feb+Mar) -> 18.76 | AQ132: =SUM(Sep+Oct+Nov+Dec+Jan+Feb) -> 18.84 | AR132: 11.69 | AS132: 0 | AT132: =Aug+Sep -> 5.07 | AU132: =SUM(Sep+Oct) -> 7.15 | AV132: =SUM(Sep+Oct) -> 7.15 | AW132: 6.67 | AX132: =Oct -> 4.23 | AY132: =SUM(Aug+Sep+Oct+Nov+Dec+Jan+Feb+Mar) -> 23.83 | AZ132: =IF(AM132="Not Grown",AM132) -> not grown | BA132: =Y132 -> 2
Y133: 3 | Z133: 48261 | AA133: Kenedy | AB133: Aug - Jan | AC133: Sep - Feb | AD133: Jul - Jan | AE133: Nov - Feb | AF133: None | AG133: Aug -Sep | AH133: Jun - Sep | AI133: Jun - Sep | AJ133: Jul - Sep | AK133: Sep - Oct | AL133: Jul - Jan | AM133: Dec - Jul | AO133: =SUM(Aug+Sep+Oct+Nov+Dec+Jan) -> 18.14 | AP133: =SUM(Sep+Oct+Nov+Dec+Jan+Feb) -> 18.84 | AQ133: =SUM(Jul+Aug+Sep+Oct+Nov+Dec+Jan) -> 19.74 | AR133: 11.69 | AS133: 0 | AT133: =Aug+Sep -> 5.07 | AU133: =SUM(Jun+Jul+Aug+Sep) -> 10.39 | AV133: =SUM(Jun+Jul+Aug+Sep) -> 10.39 | AW133: 6.67 | AX133: =Sep+Oct -> 7.15 | AY133: =SUM(Jul+Aug+Sep+Oct+Nov+Dec+Jan) -> 19.74 | AZ133: =SUM(Dec+Jan+Feb+Mar+Apr+May+Jun+Jul) -> 24.56 | BA133: 3
Y134: 1 | Z134: 48263 | AA134: Kent | AB134: Nov - Mar | AC134: Nov - Apr | AD134: Nov - Apr | AE134: Nov - Feb | AF134: None | AG134: Sep | AH134: Oct | AI134: Sep | AJ134: Jul - Sep | AK134: Oct | AL134: not grown | AM134: Dec - May | AO134: =SUM(Nov+Dec+Jan+Feb+Mar) -> 14.53 | AP134: =SUM(Nov+Dec+Jan+Feb+Mar+Apr) -> 17.76 | AQ134: =SUM(Nov+Dec+Jan+Feb+Mar+Apr) -> 17.76 | AR134: 11.69 | AS134: 0 | AT134: =Sep -> 2.92 | AU134: =Oct -> 4.23 | AV134: =Sep -> 2.92 | AW134: 6.67 | AX134: =Oct -> 4.23 | AY134: =IF(AL134="Not Grown",AL134) -> not grown | AZ134: =SUM(Dec+Jan+Feb+Mar+Apr+May) -> 19.24 | BA134: 1
Y135: 2 | Z135: 48265 | AA135: Kerr | AB135: Aug - Feb | AC135: Oct - Mar | AD135: Sep - Feb | AE135: Nov - Feb | AF135: None | AH135: Sep - Oct | AI135: Sep - Oct | AJ135: Jul - Sep | AK135: Oct | AL135: Aug - Mar | AM135: not grown | AO135: =SUM(Aug+Sep+Oct+Nov+Dec+Jan+Feb) -> 20.99 | AP135: =SUM(Oct+Nov+Dec+Jan+Feb+Mar) -> 18.76 | AQ135: =SUM(Sep+Oct+Nov+Dec+Jan+Feb) -> 18.84 | AR135: 11.69 | AS135: 0 | AT135: =IF(AG135="","Not Grown") -> Not Grown | AU135: =SUM(Sep+Oct) -> 7.15 | AV135: =SUM(Sep+Oct) -> 7.15 | AW135: 6.67 | AX135: =Oct -> 4.23 | AY135: =SUM(Aug+Sep+Oct+Nov+Dec+Jan+Feb+Mar) -> 23.83 | AZ135: =IF(AM135="Not Grown",AM135) -> not grown | BA135: 2
Y136: 2 | Z136: 48267 | AA136: Kimble | AB136: Aug - Feb | AC136: Oct - Mar | AD136: Sep - Feb | AE136: Nov - Feb | AF136: None | AH136: Sep - Oct | AI136: Sep - Oct | AJ136: Jul - Sep | AK136: Oct | AL136: Aug - Mar | AM136: not grown | AO136: =SUM(Aug+Sep+Oct+Nov+Dec+Jan+Feb) -> 20.99 | AP136: =SUM(Oct+Nov+Dec+Jan+Feb+Mar) -> 18.76 | AQ136: =SUM(Sep+Oct+Nov+Dec+Jan+Feb) -> 18.84 | AR136: 11.69 | AS136: 0 | AT136: =IF(AG136="","Not Grown") -> Not Grown | AU136: =SUM(Sep+Oct) -> 7.15 | AV136: =SUM(Sep+Oct) -> 7.15 | AW136: 6.67 | AX136: =Oct -> 4.23 | AY136: =SUM(Aug+Sep+Oct+Nov+Dec+Jan+Feb+Mar) -> 23.83 | AZ136: =IF(AM136="Not Grown",AM136) -> not grown | BA136: 2
Y137: 1 | Z137: 48269 | AA137: King | AB137: Nov - Mar | AC137: Nov - Apr | AD137: Nov - Apr | AE137: Nov - Feb | AF137: None | AG137: Sep | AH137: Oct | AI137: Sep | AJ137: Jul - Sep | AK137: Oct | AL137: not grown | AM137: Dec - May | AO137: =SUM(Nov+Dec+Jan+Feb+Mar) -> 14.53 | AP137: =SUM(Nov+Dec+Jan+Feb+Mar+Apr) -> 17.76 | AQ137: =SUM(Nov+Dec+Jan+Feb+Mar+Apr) -> 17.76 | AR137: 11.69 | AS137: 0 | AT137: =Sep -> 2.92 | AU137: =Oct -> 4.23 | AV137: =Sep -> 2.92 | AW137: 6.67 | AX137: =Oct -> 4.23 | AY137: =IF(AL137="Not Grown",AL137) -> not grown | AZ137: =SUM(Dec+Jan+Feb+Mar+Apr+May) -> 19.24 | BA137: 1
Y138: 2 | Z138: 48271 | AA138: Kinney | AB138: Aug - Feb | AC138: Oct - Mar | AD138: Sep - Feb | AE138: Nov - Feb | AF138: None | AG138: Aug -Sep | AH138: Sep - Oct | AI138: Sep - Oct | AJ138: Jul - Sep | AK138: Oct | AL138: Aug - Mar | AM138: not grown | AO138: =SUM(Aug+Sep+Oct+Nov+Dec+Jan+Feb) -> 20.99 | AP138: =SUM(Oct+Nov+Dec+Jan+Feb+Mar) -> 18.76 | AQ138: =SUM(Sep+Oct+Nov+Dec+Jan+Feb) -> 18.84 | AR138: 11.69 | AS138: 0 | AT138: =Aug+Sep -> 5.07 | AU138: =SUM(Sep+Oct) -> 7.15 | AV138: =SUM(Sep+Oct) -> 7.15 | AW138: 6.67 | AX138: =Oct -> 4.23 | AY138: =SUM(Aug+Sep+Oct+Nov+Dec+Jan+Feb+Mar) -> 23.83 | AZ138: =IF(AM138="Not Grown",AM138) -> not grown | BA138: 2
Y139: 3 | Z139: 48273 | AA139: Kleberg | AB139: Aug - Jan | AC139: Sep - Feb | AD139: Jul - Jan | AE139: Nov - Feb | AF139: None | AG139: Aug -Sep | AH139: Jun - Sep | AI139: Jun - Sep | AJ139: Jul - Sep | AK139: Sep - Oct | AL139: Jul - Jan | AM139: Dec - Jul | AO139: =SUM(Aug+Sep+Oct+Nov+Dec+Jan) -> 18.14 | AP139: =SUM(Sep+Oct+Nov+Dec+Jan+Feb) -> 18.84 | AQ139: =SUM(Jul+Aug+Sep+Oct+Nov+Dec+Jan) -> 19.74 | AR139: 11.69 | AS139: 0 | AT139: =Aug+Sep -> 5.07 | AU139: =SUM(Jun+Jul+Aug+Sep) -> 10.39 | AV139: =SUM(Jun+Jul+Aug+Sep) -> 10.39 | AW139: 6.67 | AX139: =Sep+Oct -> 7.15 | AY139: =SUM(Jul+Aug+Sep+Oct+Nov+Dec+Jan) -> 19.74 | AZ139: =SUM(Dec+Jan+Feb+Mar+Apr+May+Jun+Jul) -> 24.56 | BA139: 3
Y140: 5 | Z140: 48275 | AA140: Knox | AB140: Nov - Mar | AC140: Nov - Apr | AD140: Nov - Apr | AE140: Nov - Feb | AF140: None | AG140: Sep | AH140: Aug - Sep | AI140: Aug - Sep | AJ140: Jul - Sep | AK140: Oct | AL140: not grown | AM140: Dec - May | AO140: =SUM(Nov+Dec+Jan+Feb+Mar) -> 14.53 | AP140: =SUM(Nov+Dec+Jan+Feb+Mar+Apr) -> 17.76 | AQ140: =SUM(Nov+Dec+Jan+Feb+Mar+Apr) -> 17.76 | AR140: 11.69 | AS140: 0 | AT140: =Sep -> 2.92 | AU140: =SUM(Aug+Sep) -> 5.07 | AV140: =SUM(Aug+Sep) -> 5.07 | AW140: 6.67 | AX140: =Oct -> 4.23 | AY140: =IF(AL140="Not Grown",AL140) -> not grown | AZ140: =SUM(Dec+Jan+Feb+Mar+Apr+May) -> 19.24 | BA140: 5
Y141: 4 | Z141: 48277 | AA141: Lamar | AB141: Aug - Jan | AC141: Nov - Feb | AD141: Nov - Apr | AE141: Nov - Feb | AF141: None | AG141: Aug -Sep | AH141: Jul - Sep | AI141: Aug - Sep | AJ141: Jul - Sep | AK141: Oct | AL141: Jul - Feb | AM141: Oct - Apr | AO141: =SUM(Aug+Sep+Oct+Nov+Dec+Jan) -> 18.14 | AP141: =SUM(Sep+Oct+Nov+Dec+Jan+Feb) -> 18.84 | AQ141: =SUM(Nov+Dec+Jan+Feb+Mar+Apr) -> 17.76 | AR141: 11.69 | AS141: 0 | AT141: =Aug+Sep -> 5.07 | AU141: =SUM(Jul+Aug+Sep) -> 6.67 | AV141: =SUM(Aug+Sep) -> 5.07 | AW141: 6.67 | AX141: =Oct -> 4.23 | AY141: =SUM(Jul+Aug+Sep+Oct+Nov+Dec+Jan+Feb) -> 22.59 | AZ141: =SUM(Oct+Nov+Dec+Jan+Feb+Mar+Apr) -> 21.99 | BA141: 4
Y142: 1 | Z142: 48279 | AA142: Lamb | AB142: Nov - Mar | AC142: Nov - Apr | AD142: Nov - Apr | AE142: Nov - Feb | AF142: None | AG142: Sep | AH142: Oct | AI142: Sep | AJ142: Jul - Sep | AK142: Oct | AL142: not grown | AM142: Dec - May | AO142: =SUM(Nov+Dec+Jan+Feb+Mar) -> 14.53 | AP142: =SUM(Nov+Dec+Jan+Feb+Mar+Apr) -> 17.76 | AQ142: =SUM(Nov+Dec+Jan+Feb+Mar+Apr) -> 17.76 | AR142: 11.69 | AS142: 0 | AT142: =Sep -> 2.92 | AU142: =Oct -> 4.23 | AV142: =Sep -> 2.92 | AW142: 6.67 | AX142: =Oct -> 4.23 | AY142: =IF(AL142="Not Grown",AL142) -> not grown | AZ142: =SUM(Dec+Jan+Feb+Mar+Apr+May) -> 19.24 | BA142: 1
Y143: 5 | Z143: 48281 | AA143: Lampasas | AB143: Nov - Mar | AC143: Nov - Apr | AD143: Nov - Apr | AE143: Nov - Feb | AF143: None | AG143: Sep | AH143: Aug - Sep | AI143: Aug - Sep | AJ143: Jul - Sep | AK143: Oct | AL143: not grown | AM143: Dec - May | AO143: =SUM(Nov+Dec+Jan+Feb+Mar) -> 14.53 | AP143: =SUM(Nov+Dec+Jan+Feb+Mar+Apr) -> 17.76 | AQ143: =SUM(Nov+Dec+Jan+Feb+Mar+Apr) -> 17.76 | AR143: 11.69 | AS143: 0 | AT143: =Sep -> 2.92 | AU143: =SUM(Aug+Sep) -> 5.07 | AV143: =SUM(Aug+Sep) -> 5.07 | AW143: 6.67 | AX143: =Oct -> 4.23 | AY143: =IF(AL143="Not Grown",AL143) -> not grown | AZ143: =SUM(Dec+Jan+Feb+Mar+Apr+May) -> 19.24 | BA143: 5
Y144: 3 | Z144: 48283 | AA144: LaSalle | AB144: Aug - Jan | AC144: Sep - Feb | AD144: Aug - Feb | AE144: Nov - Feb | AF144: None | AG144: Aug -Sep | AH144: Jun - Sep | AI144: Jun - Sep | AJ144: Jul - Sep | AK144: Sep - Oct | AL144: Jul - Jan | AM144: Dec - Jul | AO144: =SUM(Aug+Sep+Oct+Nov+Dec+Jan) -> 18.14 | AP144: =SUM(Sep+Oct+Nov+Dec+Jan+Feb) -> 18.84 | AQ144: =SUM(Aug+Sep+Oct+Nov+Dec+Jan+Feb) -> 20.99 | AR144: 11.69 | AS144: 0 | AT144: =Aug+Sep -> 5.07 | AU144: =SUM(Jun+Jul+Aug+Sep) -> 10.39 | AV144: =SUM(Jun+Jul+Aug+Sep) -> 10.39 | AW144: 6.67 | AX144: =Sep+Oct -> 7.15 | AY144: =SUM(Jul+Aug+Sep+Oct+Nov+Dec+Jan) -> 19.74 | AZ144: =SUM(Dec+Jan+Feb+Mar+Apr+May+Jun+Jul) -> 24.56 | BA144: 3
Y145: 3 | Z145: 48285 | AA145: Lavaca | AB145: Aug - Feb | AC145: Oct - Mar | AD145: Aug - Feb | AE145: Nov - Feb | AF145: None | AG145: Aug -Sep | AH145: Jun - Sep | AI145: Jun - Sep | AJ145: Jul - Sep | AK145: Oct | AL145: Jul - Feb | AM145: Dec - Jul | AO145: =SUM(Aug+Sep+Oct+Nov+Dec+Jan+Feb) -> 20.99 | AP145: =SUM(Oct+Nov+Dec+Jan+Feb+Mar) -> 18.76 | AQ145: =SUM(Aug+Sep+Oct+Nov+Dec+Jan+Feb) -> 20.99 | AR145: 11.69 | AS145: 0 | AT145: =Aug+Sep -> 5.07 | AU145: =SUM(Jun+Jul+Aug+Sep) -> 10.39 | AV145: =SUM(Jun+Jul+Aug+Sep) -> 10.39 | AW145: 6.67 | AX145: =Oct -> 4.23 | AY145: =SUM(Jul+Aug+Sep+Oct+Nov+Dec+Jan+Feb) -> 22.59 | AZ145: =SUM(Dec+Jan+Feb+Mar+Apr+May+Jun+Jul) -> 24.56 | BA145: 3
Y146: 3 | Z146: 48287 | AA146: Lee | AB146: Aug - Feb | AC146: Oct - Mar | AD146: Sep - Mar | AE146: Nov - Feb | AF146: None | AG146: Aug -Sep | AH146: Jul - Sep | AI146: Jul - Sep | AJ146: Jul - Sep | AK146: Oct | AL146: Jul - Feb | AM146: Oct - Apr | AO146: =SUM(Aug+Sep+Oct+Nov+Dec+Jan+Feb) -> 20.99 | AP146: =SUM(Oct+Nov+Dec+Jan+Feb+Mar) -> 18.76 | AQ146: =SUM(Sep+Oct+Nov+Dec+Jan+Feb+Mar) -> 21.68 | AR146: 11.69 | AS146: 0 | AT146: =Aug+Sep -> 5.07 | AU146: =SUM(Jun+Jul+Aug+Sep) -> 10.39 | AV146: =SUM(Jul+Aug+Sep) -> 6.67 | AW146: 6.67 | AX146: 4.23 | AY146: =SUM(Jul+Aug+Sep+Oct+Nov+Dec+Jan+Feb) -> 22.59 | AZ146: =SUM(Oct-Nov+Dec+Jan+Feb+Mar+Apr) -> 15.63 | BA146: 3
Y147: 4 | Z147: 48289 | AA147: Leon | AB147: Aug - Jan | AC147: Nov - Feb | AD147: Sep - Mar | AE147: Nov - Feb | AF147: None | AG147: Aug -Sep | AH147: Jul - Sep | AI147: Aug - Sep | AJ147: Jul - Sep | AK147: Oct | AL147: Jul - Feb | AM147: Oct - Apr | AO147: =SUM(Aug+Sep+Oct+Nov+Dec+Jan) -> 18.14 | AP147: =SUM(Sep+Oct+Nov+Dec+Jan+Feb) -> 18.84 | AQ147: =SUM(Sep+Oct+Nov+Dec+Jan+Feb+Mar) -> 21.68 | AR147: 11.69 | AS147: 0 | AT147: =Aug+Sep -> 5.07 | AU147: =SUM(Jul+Aug+Sep) -> 6.67 | AV147: =SUM(Aug+Sep) -> 5.07 | AW147: 6.67 | AX147: 4.23 | AY147: =SUM(Jul+Aug+Sep+Oct+Nov+Dec+Jan+Feb) -> 22.59 | AZ147: =SUM(Oct+Nov+Dec+Jan+Feb+Mar+Apr) -> 21.99 | BA147: 4
Y148: 4 | Z148: 48291 | AA148: Liberty | AB148: Aug - Jan | AC148: Nov - Feb | AD148: Sep - Mar | AE148: Nov - Feb | AF148: None | AG148: Aug -Sep | AH148: Jul - Sep | AI148: Aug - Sep | AJ148: Jul - Sep | AK148: Oct | AL148: Jul - Feb | AM148: Oct - Apr | AO148: =SUM(Aug+Sep+Oct+Nov+Dec+Jan) -> 18.14 | AP148: =SUM(Sep+Oct+Nov+Dec+Jan+Feb) -> 18.84 | AQ148: =SUM(Sep+Oct+Nov+Dec+Jan+Feb+Mar) -> 21.68 | AR148: 11.69 | AS148: 0 | AT148: =Aug+Sep -> 5.07 | AU148: =SUM(Jul+Aug+Sep) -> 6.67 | AV148: =SUM(Aug+Sep) -> 5.07 | AW148: 6.67 | AX148: 4.23 | AY148: =SUM(Jul+Aug+Sep+Oct+Nov+Dec+Jan+Feb) -> 22.59 | AZ148: =SUM(Oct+Nov+Dec+Jan+Feb+Mar+Apr) -> 21.99 | BA148: 4
Y149: 5 | Z149: 48293 | AA149: Limestone | AB149: Nov - Mar | AC149: Nov - Apr | AD149: Nov - Apr | AE149: Nov - Feb | AF149: None | AG149: Sep | AH149: Aug - Sep | AI149: Aug - Sep | AJ149: Jul - Sep | AK149: Oct | AL149: not grown | AM149: Dec - May | AO149: =SUM(Nov+Dec+Jan+Feb+Mar) -> 14.53 | AP149: =SUM(Nov+Dec+Jan+Feb+Mar+Apr) -> 17.76 | AQ149: =SUM(Nov+Dec+Jan+Feb+Mar+Apr) -> 17.76 | AR149: 11.69 | AS149: 0 | AT149: =Sep -> 2.92 | AU149: =SUM(Aug+Sep) -> 5.07 | AV149: =SUM(Aug+Sep) -> 5.07 | AW149: 6.67 | AX149: 4.23 | AY149: =IF(AL149="Not Grown",AL149) -> not grown | AZ149: =SUM(Dec+Jan+Feb+Mar+Apr+May) -> 19.24 | BA149: 5
Y150: 1 | Z150: 48295 | AA150: Lipscomb | AB150: Nov - Mar | AC150: Nov - Apr | AD150: Nov - Apr | AE150: Nov - Feb | AF150: None | AG150: Sep | AH150: Oct | AI150: Sep | AJ150: Jul - Sep | AK150: Oct | AL150: not grown | AM150: Dec - May | AO150: =SUM(Nov+Dec+Jan+Feb+Mar) -> 14.53 | AP150: =SUM(Nov+Dec+Jan+Feb+Mar+Apr) -> 17.76 | AQ150: =SUM(Nov+Dec+Jan+Feb+Mar+Apr) -> 17.76 | AR150: 11.69 | AS150: 0 | AT150: =Sep -> 2.92 | AU150: =Oct -> 4.23 | AV150: =Sep -> 2.92 | AW150: 6.67 | AX150: 4.23 | AY150: =IF(AL150="Not Grown",AL150) -> not grown | AZ150: =SUM(Dec+Jan+Feb+Mar+Apr+May) -> 19.24 | BA150: 1
Y151: 3 | Z151: 48297 | AA151: Live Oak | AB151: Aug - Jan | AC151: Sep - Feb | AD151: Aug - Feb | AE151: Nov - Feb | AF151: None | AG151: Aug -Sep | AH151: Jun - Sep | AI151: Jun - Sep | AJ151: Jul - Sep | AK151: Sep - Oct | AL151: Jul - Jan | AM151: Dec - Jul | AO151: =SUM(Aug+Sep+Oct+Nov+Dec+Jan) -> 18.14 | AP151: =SUM(Sep+Oct+Nov+Dec+Jan+Feb) -> 18.84 | AQ151: =SUM(Aug+Sep+Oct+Nov+Dec+Jan+Feb) -> 20.99 | AR151: 11.69 | AS151: 0 | AT151: =Aug+Sep -> 5.07 | AU151: =SUM(Jun+Jul+Aug+Sep) -> 10.39 | AV151: =SUM(Jun+Jul+Aug+Sep) -> 10.39 | AW151: 6.67 | AX151: =Sep+Oct -> 7.15 | AY151: =SUM(Jul+Aug+Sep+Oct+Nov+Dec+Jan) -> 19.74 | AZ151: =SUM(Dec+Jan+Feb+Mar+Apr+May+Jun+Jul) -> 24.56 | BA151: 3
Y152: 2 | Z152: 48299 | AA152: Llano | AB152: Aug - Feb | AC152: Oct - Mar | AD152: Sep - Feb | AE152: Nov - Feb | AF152: None | AH152: Sep - Oct | AI152: Sep - Oct | AJ152: Jul - Sep | AK152: Oct | AL152: Aug - Mar | AM152: not grown | AO152: =SUM(Aug+Sep+Oct+Nov+Dec+Jan+Feb) -> 20.99 | AP152: =SUM(Oct+Nov+Dec+Jan+Feb+Mar) -> 18.76 | AQ152: =SUM(Sep+Oct+Nov+Dec+Jan+Feb) -> 18.84 | AR152: 11.69 | AS152: 0 | AT152: =IF(AG152="","Not Grown") -> Not Grown | AU152: =SUM(Sep+Oct) -> 7.15 | AV152: =SUM(Sep+Oct) -> 7.15 | AW152: 6.67 | AX152: =Oct -> 4.23 | AY152: =SUM(Aug+Sep+Oct+Nov+Dec+Jan+Feb+Mar) -> 23.83 | AZ152: =IF(AM152="Not Grown",AM152) -> not grown | BA152: 2
Y153: 2 | Z153: 48301 | AA153: Loving | AB153: Aug - Feb | AC153: Oct - Mar | AD153: Sep - Feb | AE153: Nov - Feb | AF153: None | AH153: Sep - Oct | AI153: Sep - Oct | AJ153: Jul - Sep | AK153: Oct | AL153: Aug - Mar | AM153: not grown | AO153: =SUM(Aug+Sep+Oct+Nov+Dec+Jan+Feb) -> 20.99 | AP153: =SUM(Oct+Nov+Dec+Jan+Feb+Mar) -> 18.76 | AQ153: =SUM(Sep+Oct+Nov+Dec+Jan+Feb) -> 18.84 | AR153: 11.69 | AS153: 0 | AT153: =IF(AG153="","Not Grown") -> Not Grown | AU153: =SUM(Sep+Oct) -> 7.15 | AV153: =SUM(Sep+Oct) -> 7.15 | AW153: 6.67 | AX153: 4.23 | AY153: =SUM(Aug+Sep+Oct+Nov+Dec+Jan+Feb+Mar) -> 23.83 | AZ153: =IF(AM153="Not Grown",AM153) -> not grown | BA153: 2
Y154: 1 | Z154: 48303 | AA154: Lubbock | AB154: Nov - Mar | AC154: Nov - Apr | AD154: Nov - Apr | AE154: Nov - Feb | AF154: None | AG154: Sep | AH154: Oct | AI154: Sep | AJ154: Jul - Sep | AK154: Oct | AL154: not grown | AM154: Dec - May | AO154: =SUM(Nov+Dec+Jan+Feb+Mar) -> 14.53 | AP154: =SUM(Nov+Dec+Jan+Feb+Mar+Apr) -> 17.76 | AQ154: =SUM(Nov+Dec+Jan+Feb+Mar+Apr) -> 17.76 | AR154: 11.69 | AS154: 0 | AT154: =Sep -> 2.92 | AU154: =Oct -> 4.23 | AV154: =Sep -> 2.92 | AW154: 6.67 | AX154: 4.23 | AY154: =IF(AL154="Not Grown",AL154) -> not grown | AZ154: =SUM(Dec+Jan+Feb+Mar+Apr+May) -> 19.24 | BA154: 1
Y155: 1 | Z155: 48305 | AA155: Lynn | AB155: Nov - Mar | AC155: Nov - Apr | AD155: Nov - Apr | AE155: Nov - Feb | AF155: None | AG155: Sep | AH155: Oct | AI155: Sep | AJ155: Jul - Sep | AK155: Oct | AL155: not grown | AM155: Dec - May | AO155: =SUM(Nov+Dec+Jan+Feb+Mar) -> 14.53 | AP155: =SUM(Nov+Dec+Jan+Feb+Mar+Apr) -> 17.76 | AQ155: =SUM(Nov+Dec+Jan+Feb+Mar+Apr) -> 17.76 | AR155: 11.69 | AS155: 0 | AT155: =Sep -> 2.92 | AU155: =Oct -> 4.23 | AV155: =Sep -> 2.92 | AW155: 6.67 | AX155: 4.23 | AY155: =IF(AL155="Not Grown",AL155) -> not grown | AZ155: =SUM(Dec+Jan+Feb+Mar+Apr+May) -> 19.24 | BA155: 1
Y156: 4 | Z156: 48313 | AA156: Madison | AB156: Aug - Jan | AC156: Nov - Feb | AD156: Sep - Mar | AE156: Nov - Feb | AF156: None | AG156: Aug -Sep | AH156: Jul - Sep | AI156: Aug - Sep | AJ156: Jul - Sep | AK156: Oct | AL156: Jul - Feb | AM156: Oct - Apr | AO156: =SUM(Aug+Sep+Oct+Nov+Dec+Jan) -> 18.14 | AP156: =SUM(Sep+Oct+Nov+Dec+Jan+Feb) -> 18.84 | AQ156: =SUM(Sep+Oct+Nov+Dec+Jan+Feb+Mar) -> 21.68 | AR156: 11.69 | AS156: 0 | AT156: =Aug+Sep -> 5.07 | AU156: =SUM(Jul+Aug+Sep) -> 6.67 | AV156: =SUM(Aug+Sep) -> 5.07 | AW156: 6.67 | AX156: 4.23 | AY156: =SUM(Jul+Aug+Sep+Oct+Nov+Dec+Jan+Feb) -> 22.59 | AZ156: =SUM(Oct+Nov+Dec+Jan+Feb+Mar+Apr) -> 21.99 | BA156: 4
Y157: 4 | Z157: 48315 | AA157: Marion | AB157: Aug - Jan | AC157: Nov - Feb | AD157: Nov - Apr | AE157: Nov - Feb | AF157: None | AG157: Aug -Sep | AH157: Jul - Sep | AI157: Aug - Sep | AJ157: Jul - Sep | AK157: Oct | AL157: Jul - Feb | AM157: Oct - Apr | AO157: =SUM(Aug+Sep+Oct+Nov+Dec+Jan) -> 18.14 | AP157: =SUM(Sep+Oct+Nov+Dec+Jan+Feb) -> 18.84 | AQ157: =SUM(Nov+Dec+Jan+Feb+Mar+Apr) -> 17.76 | AR157: 11.69 | AS157: 0 | AT157: =Aug+Sep -> 5.07 | AU157: =SUM(Jul+Aug+Sep) -> 6.67 | AV157: =SUM(Aug+Sep) -> 5.07 | AW157: 6.67 | AX157: 4.23 | AY157: =SUM(Jul+Aug+Sep+Oct+Nov+Dec+Jan+Feb) -> 22.59 | AZ157: =SUM(Oct+Nov+Dec+Jan+Feb+Mar+Apr) -> 21.99 | BA157: 4
Y158: 2 | Z158: 48317 | AA158: Martin | AB158: Nov - Mar | AC158: Nov - Apr | AD158: Nov - Apr | AE158: Nov - Feb | AF158: None | AG158: Sep | AH158: Sep - Oct | AI158: Sep - Oct | AJ158: Jul - Sep | AK158: Oct | AL158: Aug - Mar | AM158: not grown | AO158: =SUM(Nov+Dec+Jan+Feb+Mar) -> 14.53 | AP158: =SUM(Nov+Dec+Jan+Mar+Apr) -> 14.91 | AQ158: =SUM(Nov+Dec+Jan+Feb+Mar+Apr) -> 17.76 | AR158: 11.69 | AS158: 0 | AT158: =Sep -> 2.92 | AU158: =SUM(Sep+Oct) -> 7.15 | AV158: =SUM(Sep+Oct) -> 7.15 | AW158: 6.67 | AX158: 4.23 | AY158: =SUM(Aug+Sep+Oct+Nov+Dec+Jan+Feb+Mar) -> 23.83 | AZ158: =IF(AM158="Not Grown",AM158) -> not grown | BA158: 2
Y159: 2 | Z159: 48319 | AA159: Mason | AB159: Aug - Feb | AC159: Oct - Mar | AD159: Sep - Feb | AE159: Nov - Feb | AF159: None | AH159: Sep - Oct | AI159: Sep - Oct | AJ159: Jul - Sep | AK159: Oct | AL159: Aug - Mar | AM159: not grown | AO159: =SUM(Aug+Sep+Oct+Nov+Dec+Jan+Feb) -> 20.99 | AP159: =SUM(Oct+Nov+Dec+Jan+Feb+Mar) -> 18.76 | AQ159: =SUM(Sep+Oct+Nov+Dec+Jan+Feb) -> 18.84 | AR159: =SUM(Nov+Dec+Jan+Feb) -> 11.69 | AS159: 0 | AT159: =IF(AG159="","Not Grown") -> Not Grown | AU159: =SUM(Sep+Oct) -> 7.15 | AV159: =SUM(Sep+Oct) -> 7.15 | AW159: 6.67 | AX159: 4.23 | AY159: =SUM(Aug+Sep+Oct+Nov+Dec+Jan+Feb+Mar) -> 23.83 | AZ159: =IF(AM159="Not Grown",AM159) -> not grown | BA159: 2
Y160: 3 | Z160: 48321 | AA160: Matagorda | AB160: Aug - Jan | AC160: Sep - Feb | AD160: Aug - Feb | AE160: Nov - Feb | AF160: None | AG160: Aug -Sep | AH160: Jun - Sep | AI160: Jun - Sep | AJ160: Jul - Sep | AK160: Sep - Oct | AL160: Jul - Feb | AM160: Oct - Apr | AO160: =SUM(Aug+Sep+Oct+Nov+Dec+Jan) -> 18.14 | AP160: =SUM(Sep+Oct+Nov+Dec+Jan+Feb) -> 18.84 | AQ160: =SUM(Aug+Sep+Oct+Nov+Dec+Jan+Feb) -> 20.99 | AR160: 11.69 | AS160: 0 | AT160: =Aug+Sep -> 5.07 | AU160: =SUM(Jun+Jul+Aug+Sep) -> 10.39 | AV160: =SUM(Jun+Jul+Aug+Sep) -> 10.39 | AW160: 6.67 | AX160: =Sep+Oct -> 7.15 | AY160: =SUM(Jul+Aug+Sep+Oct+Nov+Dec+Jan+Feb) -> 22.59 | AZ160: =SUM(Oct-Nov+Dec+Jan+Feb+Mar+Apr) -> 15.63 | BA160: 3
Y161: 2 | Z161: 48323 | AA161: Maverick | AB161: Aug - Feb | AC161: Oct - Mar | AD161: Sep - Feb | AE161: Nov - Feb | AF161: None | AG161: Aug -Sep | AH161: Jun - Sep | AI161: Jun - Sep | AJ161: Jul - Sep | AK161: Oct | AL161: Jul - Feb | AM161: Dec - Jul | AO161: =SUM(Aug+Sep+Oct+Nov+Dec+Jan+Feb) -> 20.99 | AP161: =SUM(Oct+Nov+Dec+Jan+Feb+Mar) -> 18.76 | AQ161: =SUM(Sep+Oct+Nov+Dec+Jan+Feb) -> 18.84 | AR161: 11.69 | AS161: 0 | AT161: =Aug+Sep -> 5.07 | AU161: =SUM(Jun+Jul+Aug+Sep) -> 10.39 | AV161: =SUM(Jun+Jul+Aug+Sep) -> 10.39 | AW161: 6.67 | AX161: =Oct -> 4.23 | AY161: =SUM(Jul+Aug+Sep+Oct+Nov+Dec+Jan+Feb) -> 22.59 | AZ161: =SUM(Dec+Jan+Feb+Mar+Apr+May+Jun+Jul) -> 24.56 | BA161: 2
Y162: 2 | Z162: 48307 | AA162: McCulloch | AB162: Nov - Mar | AC162: Nov - Apr | AD162: Nov - Apr | AE162: Nov - Feb | AF162: None | AG162: Sep | AH162: Sep - Oct | AI162: Sep - Oct | AJ162: Jul - Sep | AK162: Oct | AL162: Aug - Mar | AM162: not grown | AO162: =SUM(Nov+Dec+Jan+Feb+Mar) -> 14.53 | AP162: =SUM(Nov+Dec+Jan+Mar+Apr) -> 14.91 | AQ162: =SUM(Nov+Dec+Jan+Feb+Mar+Apr) -> 17.76 | AR162: 11.69 | AS162: 0 | AT162: =Sep -> 2.92 | AU162: =SUM(Sep+Oct) -> 7.15 | AV162: =SUM(Sep+Oct) -> 7.15 | AW162: 6.67 | AX162: =Oct -> 4.23 | AY162: =SUM(Aug+Sep+Oct+Nov+Dec+Jan+Feb+Mar) -> 23.83 | AZ162: =IF(AM162="Not Grown",AM162) -> not grown | BA162: 2
Y163: 5 | Z163: 48309 | AA163: McLennan | AB163: Nov - Mar | AC163: Nov - Apr | AD163: Nov - Apr | AE163: Nov - Feb | AF163: None | AG163: Sep | AH163: Aug - Sep | AI163: Aug - Sep | AJ163: Jul - Sep | AK163: Oct | AL163: not grown | AM163: Dec - May | AO163: =SUM(Nov+Dec+Jan+Feb+Mar) -> 14.53 | AP163: =SUM(Nov+Dec+Jan+Feb+Mar+Apr) -> 17.76 | AQ163: =SUM(Nov+Dec+Jan+Feb+Mar+Apr) -> 17.76 | AR163: 11.69 | AS163: 0 | AT163: =Sep -> 2.92 | AU163: =SUM(Aug+Sep) -> 5.07 | AV163: =SUM(Aug+Sep) -> 5.07 | AW163: 6.67 | AX163: =Oct -> 4.23 | AY163: =IF(AL163="Not Grown",AL163) -> not grown | AZ163: =SUM(Dec+Jan+Feb+Mar+Apr+May) -> 19.24 | BA163: 5
Y164: 3 | Z164: 48311 | AA164: McMullen | AB164: Aug - Jan | AC164: Sep - Feb | AD164: Aug - Feb | AE164: Nov - Feb | AF164: None | AG164: Aug -Sep | AH164: Jun - Sep | AI164: Jun - Sep | AJ164: Jul - Sep | AK164: Sep - Oct | AL164: Jul - Jan | AM164: Dec - Jul | AO164: =SUM(Aug+Sep+Oct+Nov+Dec+Jan) -> 18.14 | AP164: =SUM(Sep+Oct+Nov+Dec+Jan+Feb) -> 18.84 | AQ164: =SUM(Aug+Sep+Oct+Nov+Dec+Jan+Feb) -> 20.99 | AR164: 11.69 | AS164: 0 | AT164: =Aug+Sep -> 5.07 | AU164: =SUM(Jun+Jul+Aug+Sep) -> 10.39 | AV164: =SUM(Jun+Jul+Aug+Sep) -> 10.39 | AW164: 6.67 | AX164: =Sep+Oct -> 7.15 | AY164: =SUM(Jul+Aug+Sep+Oct+Nov+Dec+Jan) -> 19.74 | AZ164: =SUM(Dec+Jan+Feb+Mar+Apr+May+Jun+Jul) -> 24.56 | BA164: 3
Y165: 2 | Z165: 48325 | AA165: Medina | AB165: Aug - Feb | AC165: Oct - Mar | AD165: Sep - Feb | AE165: Nov - Feb | AF165: None | AG165: Aug -Sep | AH165: Jun - Sep | AI165: Jun - Sep | AJ165: Jul - Sep | AK165: Oct | AL165: Jul - Feb | AM165: Dec - Jul | AO165: =SUM(Aug+Sep+Oct+Nov+Dec+Jan+Feb) -> 20.99 | AP165: =SUM(Oct+Nov+Dec+Jan+Feb+Mar) -> 18.76 | AQ165: =SUM(Sep+Oct+Nov+Dec+Jan+Feb) -> 18.84 | AR165: 11.69 | AS165: 0 | AT165: =Aug+Sep -> 5.07 | AU165: =SUM(Jun+Jul+Aug+Sep) -> 10.39 | AV165: =SUM(Jun+Jul+Aug+Sep) -> 10.39 | AW165: 6.67 | AX165: =Oct -> 4.23 | AY165: =SUM(Jul+Aug+Sep+Oct+Nov+Dec+Jan+Feb) -> 22.59 | AZ165: =SUM(Dec+Jan+Feb+Mar+Apr+May+Jun+Jul) -> 24.56 | BA165: 2
Y166: 2 | Z166: 48327 | AA166: Menard | AB166: Aug - Feb | AC166: Oct - Mar | AD166: Sep - Feb | AE166: Nov - Feb | AF166: None | AH166: Sep - Oct | AI166: Sep - Oct | AJ166: Jul - Sep | AK166: Oct | AL166: Aug - Mar | AM166: not grown | AO166: =SUM(Aug+Sep+Oct+Nov+Dec+Jan+Feb) -> 20.99 | AP166: =SUM(Oct+Nov+Dec+Jan+Feb+Mar) -> 18.76 | AQ166: =SUM(Sep+Oct+Nov+Dec+Jan+Feb) -> 18.84 | AR166: 11.69 | AS166: 0 | AT166: =IF(AG166="","Not Grown") -> Not Grown | AU166: =SUM(Sep+Oct) -> 7.15 | AV166: =SUM(Sep+Oct) -> 7.15 | AW166: 6.67 | AX166: 4.23 | AY166: =SUM(Aug+Sep+Oct+Nov+Dec+Jan+Feb+Mar) -> 23.83 | AZ166: =IF(AM166="Not Grown",AM166) -> not grown | BA166: 2
Y167: 2 | Z167: 48329 | AA167: Midland | AB167: Nov - Mar | AC167: Nov - Apr | AD167: Nov - Apr | AE167: Nov - Feb | AF167: None | AG167: Sep | AH167: Sep - Oct | AI167: Sep - Oct | AJ167: Jul - Sep | AK167: Oct | AL167: Aug - Mar | AM167: not grown | AO167: =SUM(Nov+Dec+Jan+Feb+Mar) -> 14.53 | AP167: =SUM(Nov+Dec+Jan+Mar+Apr) -> 14.91 | AQ167: =SUM(Nov+Dec+Jan+Feb+Mar+Apr) -> 17.76 | AR167: 11.69 | AS167: 0 | AT167: =Sep -> 2.92 | AU167: =SUM(Sep+Oct) -> 7.15 | AV167: =SUM(Sep+Oct) -> 7.15 | AW167: 6.67 | AX167: 4.23 | AY167: =SUM(Aug+Sep+Oct+Nov+Dec+Jan+Feb+Mar) -> 23.83 | AZ167: =IF(AM167="Not Grown",AM167) -> not grown | BA167: 2
Y168: 5 | Z168: 48331 | AA168: Milam | AB168: Nov - Mar | AC168: Nov - Apr | AD168: Nov - Apr | AE168: Nov - Feb | AF168: None | AG168: Sep | AH168: Aug - Sep | AI168: Aug - Sep | AJ168: Jul - Sep | AK168: Oct | AL168: not grown | AM168: Dec - May | AO168: =SUM(Nov+Dec+Jan+Feb+Mar) -> 14.53 | AP168: =SUM(Nov+Dec+Jan+Feb+Mar+Apr) -> 17.76 | AQ168: =SUM(Nov+Dec+Jan+Feb+Mar+Apr) -> 17.76 | AR168: 11.69 | AS168: 0 | AT168: =Sep -> 2.92 | AU168: =SUM(Aug+Sep) -> 5.07 | AV168: =SUM(Aug+Sep) -> 5.07 | AW168: 6.67 | AX168: 4.23 | AY168: =IF(AL168="Not Grown",AL168) -> not grown | AZ168: =SUM(Dec+Jan+Feb+Mar+Apr+May) -> 19.24 | BA168: 5
Y169: 5 | Z169: 48333 | AA169: Mills | AB169: Nov - Mar | AC169: Nov - Apr | AD169: Nov - Apr | AE169: Nov - Feb | AF169: None | AG169: Sep | AH169: Aug - Sep | AI169: Aug - Sep | AJ169: Jul - Sep | AK169: Oct | AL169: not grown | AM169: Dec - May | AO169: =SUM(Nov+Dec+Jan+Feb+Mar) -> 14.53 | AP169: =SUM(Nov+Dec+Jan+Feb+Mar+Apr) -> 17.76 | AQ169: =SUM(Nov+Dec+Jan+Feb+Mar+Apr) -> 17.76 | AR169: 11.69 | AS169: 0 | AT169: =Sep -> 2.92 | AU169: =SUM(Aug+Sep) -> 5.07 | AV169: =SUM(Aug+Sep) -> 5.07 | AW169: 6.67 | AX169: 4.23 | AY169: =IF(AL169="Not Grown",AL169) -> not grown | AZ169: =SUM(Dec+Jan+Feb+Mar+Apr+May) -> 19.24 | BA169: 5
Y170: 2 | Z170: 48335 | AA170: Mitchell | AB170: Nov - Mar | AC170: Nov - Apr | AD170: Nov - Apr | AE170: Nov - Feb | AF170: None | AG170: Sep | AH170: Sep - Oct | AI170: Sep - Oct | AJ170: Jul - Sep | AK170: Oct | AL170: Aug - Mar | AM170: not grown | AO170: =SUM(Nov+Dec+Jan+Feb+Mar) -> 14.53 | AP170: =SUM(Nov+Dec+Jan+Mar+Apr) -> 14.91 | AQ170: =SUM(Nov+Dec+Jan+Feb+Mar+Apr) -> 17.76 | AR170: 11.69 | AS170: 0 | AT170: =Sep -> 2.92 | AU170: =SUM(Sep+Oct) -> 7.15 | AV170: =SUM(Sep+Oct) -> 7.15 | AW170: 6.67 | AX170: 4.23 | AY170: =SUM(Aug+Sep+Oct+Nov+Dec+Jan+Feb+Mar) -> 23.83 | AZ170: =IF(AM170="Not Grown",AM170) -> not grown | BA170: 2
Y171: 5 | Z171: 48337 | AA171: Montague | AB171: Nov - Mar | AC171: Nov - Apr | AD171: Nov - Apr | AE171: Nov - Feb | AF171: None | AG171: Sep | AH171: Aug - Sep | AI171: Aug - Sep | AJ171: Jul - Sep | AK171: Oct | AL171: not grown | AM171: Dec - May | AO171: =SUM(Nov+Dec+Jan+Feb+Mar) -> 14.53 | AP171: =SUM(Nov+Dec+Jan+Feb+Mar+Apr) -> 17.76 | AQ171: =SUM(Nov+Dec+Jan+Feb+Mar+Apr) -> 17.76 | AR171: 11.69 | AS171: 0 | AT171: =Sep -> 2.92 | AU171: =SUM(Aug+Sep) -> 5.07 | AV171: =SUM(Aug+Sep) -> 5.07 | AW171: 6.67 | AX171: 4.23 | AY171: =IF(AL171="Not Grown",AL171) -> not grown | AZ171: =SUM(Dec+Jan+Feb+Mar+Apr+May) -> 19.24 | BA171: 5
Y172: 4 | Z172: 48339 | AA172: Montgomery | AB172: Aug - Jan | AC172: Nov - Feb | AD172: Sep - Mar | AE172: Nov - Feb | AF172: None | AG172: Aug -Sep | AH172: Jul - Sep | AI172: Aug - Sep | AJ172: Jul - Sep | AK172: Oct | AL172: Jul - Feb | AM172: Oct - Apr | AO172: =SUM(Aug+Sep+Oct+Nov+Dec+Jan) -> 18.14 | AP172: =SUM(Sep+Oct+Nov+Dec+Jan+Feb) -> 18.84 | AQ172: =SUM(Sep+Oct+Nov+Dec+Jan+Feb+Mar) -> 21.68 | AR172: 11.69 | AS172: 0 | AT172: =Aug+Sep -> 5.07 | AU172: =SUM(Jul+Aug+Sep) -> 6.67 | AV172: =SUM(Aug+Sep) -> 5.07 | AW172: 6.67 | AX172: 4.23 | AY172: =SUM(Jul+Aug+Sep+Oct+Nov+Dec+Jan+Feb) -> 22.59 | AZ172: =SUM(Oct+Nov+Dec+Jan+Feb+Mar+Apr) -> 21.99 | BA172: 4
Y173: 1 | Z173: 48341 | AA173: Moore | AB173: Nov - Mar | AC173: Nov - Apr | AD173: Nov - Apr | AE173: Nov - Feb | AF173: None | AG173: Sep | AH173: Oct | AI173: Sep | AJ173: Jul - Sep | AK173: Oct | AL173: not grown | AM173: Dec - May | AO173: =SUM(Nov+Dec+Jan+Feb+Mar) -> 14.53 | AP173: =SUM(Nov+Dec+Jan+Feb+Mar+Apr) -> 17.76 | AQ173: =SUM(Nov+Dec+Jan+Feb+Mar+Apr) -> 17.76 | AR173: 11.69 | AS173: 0 | AT173: =Sep -> 2.92 | AU173: =Oct -> 4.23 | AV173: =Sep -> 2.92 | AW173: 6.67 | AX173: 4.23 | AY173: =IF(AL173="Not Grown",AL173) -> not grown | AZ173: =SUM(Dec+Jan+Feb+Mar+Apr+May) -> 19.24 | BA173: 1
Y174: 4 | Z174: 48343 | AA174: Morris | AB174: Aug - Jan | AC174: Nov - Feb | AD174: Nov - Apr | AE174: Nov - Feb | AF174: None | AG174: Aug -Sep | AH174: Jul - Sep | AI174: Aug - Sep | AJ174: Jul - Sep | AK174: Oct | AL174: Jul - Feb | AM174: Oct - Apr | AO174: =SUM(Aug+Sep+Oct+Nov+Dec+Jan) -> 18.14 | AP174: =SUM(Sep+Oct+Nov+Dec+Jan+Feb) -> 18.84 | AQ174: =SUM(Nov+Dec+Jan+Feb+Mar+Apr) -> 17.76 | AR174: 11.69 | AS174: 0 | AT174: =Aug+Sep -> 5.07 | AU174: =SUM(Jul+Aug+Sep) -> 6.67 | AV174: =SUM(Aug+Sep) -> 5.07 | AW174: 6.67 | AX174: 4.23 | AY174: =SUM(Jul+Aug+Sep+Oct+Nov+Dec+Jan+Feb) -> 22.59 | AZ174: =SUM(Oct+Nov+Dec+Jan+Feb+Mar+Apr) -> 21.99 | BA174: 4
Y175: 1 | Z175: 48345 | AA175: Motley | AB175: Nov - Mar | AC175: Nov - Apr | AD175: Nov - Apr | AE175: Nov - Feb | AF175: None | AG175: Sep | AH175: Oct | AI175: Sep | AJ175: Jul - Sep | AK175: Oct | AL175: not grown | AM175: Dec - May | AO175: =SUM(Nov+Dec+Jan+Feb+Mar) -> 14.53 | AP175: =SUM(Nov+Dec+Jan+Feb+Mar+Apr) -> 17.76 | AQ175: =SUM(Nov+Dec+Jan+Feb+Mar+Apr) -> 17.76 | AR175: 11.69 | AS175: 0 | AT175: =Sep -> 2.92 | AU175: =Oct -> 4.23 | AV175: =Sep -> 2.92 | AW175: 6.67 | AX175: 4.23 | AY175: =IF(AL175="Not Grown",AL175) -> not grown | AZ175: =SUM(Dec+Jan+Feb+Mar+Apr+May) -> 19.24 | BA175: 1
Y176: 4 | Z176: 48347 | AA176: Nacogdoches | AB176: Aug - Jan | AC176: Nov - Feb | AD176: Sep - Mar | AE176: Nov - Feb | AF176: None | AG176: Aug -Sep | AH176: Jul - Sep | AI176: Aug - Sep | AJ176: Jul - Sep | AK176: Oct | AL176: Jul - Feb | AM176: Oct - Apr | AO176: =SUM(Aug+Sep+Oct+Nov+Dec+Jan) -> 18.14 | AP176: =SUM(Sep+Oct+Nov+Dec+Jan+Feb) -> 18.84 | AQ176: =SUM(Sep+Oct+Nov+Dec+Jan+Feb+Mar) -> 21.68 | AR176: 11.69 | AS176: 0 | AT176: =Aug+Sep -> 5.07 | AU176: =SUM(Jul+Aug+Sep) -> 6.67 | AV176: =SUM(Aug+Sep) -> 5.07 | AW176: 6.67 | AX176: 4.23 | AY176: =SUM(Jul+Aug+Sep+Oct+Nov+Dec+Jan+Feb) -> 22.59 | AZ176: =SUM(Oct+Nov+Dec+Jan+Feb+Mar+Apr) -> 21.99 | BA176: 4
Y177: 5 | Z177: 48349 | AA177: Navarro | AB177: Nov - Mar | AC177: Nov - Apr | AD177: Nov - Apr | AE177: Nov - Feb | AF177: None | AG177: Sep | AH177: Aug - Sep | AI177: Aug - Sep | AJ177: Jul - Sep | AK177: Oct | AL177: not grown | AM177: Dec - May | AO177: =SUM(Nov+Dec+Jan+Feb+Mar) -> 14.53 | AP177: =SUM(Nov+Dec+Jan+Feb+Mar+Apr) -> 17.76 | AQ177: =SUM(Nov+Dec+Jan+Feb+Mar+Apr) -> 17.76 | AR177: 11.69 | AS177: 0 | AT177: =Sep -> 2.92 | AU177: =SUM(Aug+Sep) -> 5.07 | AV177: =SUM(Aug+Sep) -> 5.07 | AW177: 6.67 | AX177: 4.23 | AY177: =IF(AL177="Not Grown",AL177) -> not grown | AZ177: =SUM(Dec+Jan+Feb+Mar+Apr+May) -> 19.24 | BA177: 5
Y178: 4 | Z178: 48351 | AA178: Newton | AB178: Aug - Jan | AC178: Nov - Feb | AD178: Sep - Mar | AE178: Nov - Feb | AF178: None | AG178: Aug -Sep | AH178: Jul - Sep | AI178: Aug - Sep | AJ178: Jul - Sep | AK178: Oct | AL178: Jul - Feb | AM178: Oct - Apr | AO178: =SUM(Aug+Sep+Oct+Nov+Dec+Jan) -> 18.14 | AP178: =SUM(Sep+Oct+Nov+Dec+Jan+Feb) -> 18.84 | AQ178: =SUM(Sep+Oct+Nov+Dec+Jan+Feb+Mar) -> 21.68 | AR178: 11.69 | AS178: 0 | AT178: =Aug+Sep -> 5.07 | AU178: =SUM(Jul+Aug+Sep) -> 6.67 | AV178: =SUM(Aug+Sep) -> 5.07 | AW178: 6.67 | AX178: 4.23 | AY178: =SUM(Jul+Aug+Sep+Oct+Nov+Dec+Jan+Feb) -> 22.59 | AZ178: =SUM(Oct+Nov+Dec+Jan+Feb+Mar+Apr) -> 21.99 | BA178: 4
Y179: 2 | Z179: 48353 | AA179: Nolan | AB179: Nov - Mar | AC179: Nov - Apr | AD179: Nov - Apr | AE179: Nov - Feb | AF179: None | AG179: Sep | AH179: Sep - Oct | AI179: Sep - Oct | AJ179: Jul - Sep | AK179: Oct | AL179: Aug - Mar | AM179: not grown | AO179: =SUM(Nov+Dec+Jan+Feb+Mar) -> 14.53 | AP179: =SUM(Nov+Dec+Jan+Mar+Apr) -> 14.91 | AQ179: =SUM(Nov+Dec+Jan+Feb+Mar+Apr) -> 17.76 | AR179: 11.69 | AS179: 0 | AT179: =Sep -> 2.92 | AU179: =SUM(Sep+Oct) -> 7.15 | AV179: =SUM(Sep+Oct) -> 7.15 | AW179: 6.67 | AX179: 4.23 | AY179: =SUM(Aug+Sep+Oct+Nov+Dec+Jan+Feb+Mar) -> 23.83 | AZ179: =IF(AM179="Not Grown",AM179) -> not grown | BA179: 2
Y180: 3 | Z180: 48355 | AA180: Nueces | AB180: Aug - Jan | AC180: Sep - Feb | AD180: Jul - Jan | AE180: Nov - Feb | AF180: None | AG180: Aug -Sep | AH180: Jun - Sep | AI180: Jun - Sep | AJ180: Jul - Sep | AK180: Sep - Oct | AL180: Jul - Jan | AM180: Dec - Jul | AO180: =SUM(Aug+Sep+Oct+Nov+Dec+Jan) -> 18.14 | AP180: =SUM(Sep+Oct+Nov+Dec+Jan+Feb) -> 18.84 | AQ180: =SUM(Jul+Aug+Sep+Oct+Nov+Dec+Jan) -> 19.74 | AR180: 11.69 | AS180: 0 | AT180: =Aug+Sep -> 5.07 | AU180: =SUM(Jun+Jul+Aug+Sep) -> 10.39 | AV180: =SUM(Jun+Jul+Aug+Sep) -> 10.39 | AW180: 6.67 | AX180: =Sep+Oct -> 7.15 | AY180: =SUM(Jul+Aug+Sep+Oct+Nov+Dec+Jan) -> 19.74 | AZ180: =SUM(Dec+Jan+Feb+Mar+Apr+May+Jun+Jul) -> 24.56 | BA180: 3
Y181: 1 | Z181: 48357 | AA181: Ochiltree | AB181: Nov - Mar | AC181: Nov - Apr | AD181: Nov - Apr | AE181: Nov - Feb | AF181: None | AG181: Sep | AH181: Oct | AI181: Sep | AJ181: Jul - Sep | AK181: Oct | AL181: not grown | AM181: Dec - May | AO181: =SUM(Nov+Dec+Jan+Feb+Mar) -> 14.53 | AP181: =SUM(Nov+Dec+Jan+Feb+Mar+Apr) -> 17.76 | AQ181: =SUM(Nov+Dec+Jan+Feb+Mar+Apr) -> 17.76 | AR181: 11.69 | AS181: 0 | AT181: =Sep -> 2.92 | AU181: =Oct -> 4.23 | AV181: =Sep -> 2.92 | AW181: 6.67 | AX181: =Oct -> 4.23 | AY181: =IF(AL181="Not Grown",AL181) -> not grown | AZ181: =SUM(Dec+Jan+Feb+Mar+Apr+May) -> 19.24 | BA181: 1
Y182: 1 | Z182: 48359 | AA182: Oldham | AB182: Nov - Mar | AC182: Nov - Apr | AD182: Nov - Apr | AE182: Nov - Feb | AF182: None | AG182: Sep | AH182: Oct | AI182: Sep | AJ182: Jul - Sep | AK182: Oct | AL182: not grown | AM182: Dec - May | AO182: =SUM(Nov+Dec+Jan+Feb+Mar) -> 14.53 | AP182: =SUM(Nov+Dec+Jan+Feb+Mar+Apr) -> 17.76 | AQ182: =SUM(Nov+Dec+Jan+Feb+Mar+Apr) -> 17.76 | AR182: 11.69 | AS182: 0 | AT182: =Sep -> 2.92 | AU182: =Oct -> 4.23 | AV182: =Sep -> 2.92 | AW182: 6.67 | AX182: 4.23 | AY182: =IF(AL182="Not Grown",AL182) -> not grown | AZ182: =SUM(Dec+Jan+Feb+Mar+Apr+May) -> 19.24 | BA182: 1
Y183: 4 | Z183: 48361 | AA183: Orange | AB183: Aug - Jan | AC183: Nov - Feb | AD183: Sep - Mar | AE183: Nov - Feb | AF183: None | AG183: Aug -Sep | AH183: Jul - Sep | AI183: Aug - Sep | AJ183: Jul - Sep | AK183: Oct | AL183: Jul - Feb | AM183: Oct - Apr | AO183: =SUM(Aug+Sep+Oct+Nov+Dec+Jan) -> 18.14 | AP183: =SUM(Sep+Oct+Nov+Dec+Jan+Feb) -> 18.84 | AQ183: =SUM(Sep+Oct+Nov+Dec+Jan+Feb+Mar) -> 21.68 | AR183: 11.69 | AS183: 0 | AT183: =Aug+Sep -> 5.07 | AU183: =SUM(Jul+Aug+Sep) -> 6.67 | AV183: =SUM(Aug+Sep) -> 5.07 | AW183: 6.67 | AX183: 4.23 | AY183: =SUM(Jul+Aug+Sep+Oct+Nov+Dec+Jan+Feb) -> 22.59 | AZ183: =SUM(Oct+Nov+Dec+Jan+Feb+Mar+Apr) -> 21.99 | BA183: 4
Y184: 5 | Z184: 48363 | AA184: Palo Pinto | AB184: Nov - Mar | AC184: Nov - Apr | AD184: Nov - Apr | AE184: Nov - Feb | AF184: None | AG184: Sep | AH184: Aug - Sep | AI184: Aug - Sep | AJ184: Jul - Sep | AK184: Oct | AL184: not grown | AM184: Dec - May | AO184: =SUM(Nov+Dec+Jan+Feb+Mar) -> 14.53 | AP184: =SUM(Nov+Dec+Jan+Feb+Mar+Apr) -> 17.76 | AQ184: =SUM(Nov+Dec+Jan+Feb+Mar+Apr) -> 17.76 | AR184: 11.69 | AS184: 0 | AT184: =Sep -> 2.92 | AU184: =SUM(Aug+Sep) -> 5.07 | AV184: =SUM(Aug+Sep) -> 5.07 | AW184: 6.67 | AX184: 4.23 | AY184: =IF(AL184="Not Grown",AL184) -> not grown | AZ184: =SUM(Dec+Jan+Feb+Mar+Apr+May) -> 19.24 | BA184: 5
Y185: 4 | Z185: 48365 | AA185: Panola | AB185: Aug - Jan | AC185: Nov - Feb | AD185: Nov - Apr | AE185: Nov - Feb | AF185: None | AG185: Aug -Sep | AH185: Jul - Sep | AI185: Aug - Sep | AJ185: Jul - Sep | AK185: Oct | AL185: Jul - Feb | AM185: Oct - Apr | AO185: =SUM(Aug+Sep+Oct+Nov+Dec+Jan) -> 18.14 | AP185: =SUM(Sep+Oct+Nov+Dec+Jan+Feb) -> 18.84 | AQ185: =SUM(Nov+Dec+Jan+Feb+Mar+Apr) -> 17.76 | AR185: 11.69 | AS185: 0 | AT185: =Aug+Sep -> 5.07 | AU185: =SUM(Jul+Aug+Sep) -> 6.67 | AV185: =SUM(Aug+Sep) -> 5.07 | AW185: 6.67 | AX185: 4.23 | AY185: =SUM(Jul+Aug+Sep+Oct+Nov+Dec+Jan+Feb) -> 22.59 | AZ185: =SUM(Oct+Nov+Dec+Jan+Feb+Mar+Apr) -> 21.99 | BA185: 4
Y186: 5 | Z186: 48367 | AA186: Parker | AB186: Nov - Mar | AC186: Nov - Apr | AD186: Nov - Apr | AE186: Nov - Feb | AF186: None | AG186: Sep | AH186: Aug - Sep | AI186: Aug - Sep | AJ186: Jul - Sep | AK186: Oct | AL186: not grown | AM186: Dec - May | AO186: =SUM(Nov+Dec+Jan+Feb+Mar) -> 14.53 | AP186: =SUM(Nov+Dec+Jan+Feb+Mar+Apr) -> 17.76 | AQ186: =SUM(Nov+Dec+Jan+Feb+Mar+Apr) -> 17.76 | AR186: 11.69 | AS186: 0 | AT186: =Sep -> 2.92 | AU186: =SUM(Aug+Sep) -> 5.07 | AV186: =SUM(Aug+Sep) -> 5.07 | AW186: 6.67 | AX186: 4.23 | AY186: =IF(AL186="Not Grown",AL186) -> not grown | AZ186: =SUM(Dec+Jan+Feb+Mar+Apr+May) -> 19.24 | BA186: 5
Y187: 1 | Z187: 48369 | AA187: Parmer | AB187: Nov - Mar | AC187: Nov - Apr | AD187: Nov - Apr | AE187: Nov - Feb | AF187: None | AG187: Sep | AH187: Oct | AI187: Sep | AJ187: Jul - Sep | AK187: Oct | AL187: not grown | AM187: Dec - May | AO187: =SUM(Nov+Dec+Jan+Feb+Mar) -> 14.53 | AP187: =SUM(Nov+Dec+Jan+Feb+Mar+Apr) -> 17.76 | AQ187: =SUM(Nov+Dec+Jan+Feb+Mar+Apr) -> 17.76 | AR187: 11.69 | AS187: 0 | AT187: =Sep -> 2.92 | AU187: =Oct -> 4.23 | AV187: =Sep -> 2.92 | AW187: 6.67 | AX187: 4.23 | AY187: =IF(AL187="Not Grown",AL187) -> not grown | AZ187: =SUM(Dec+Jan+Feb+Mar+Apr+May) -> 19.24 | BA187: 1
Y188: 2 | Z188: 48371 | AA188: Pecos | AB188: Nov - Mar | AC188: Nov - Apr | AD188: Nov - Apr | AE188: Nov - Feb | AF188: None | AG188: Sep | AH188: Sep - Oct | AI188: Sep - Oct | AJ188: Jul - Sep | AK188: Oct | AL188: Aug - Mar | AM188: not grown | AO188: =SUM(Nov+Dec+Jan+Feb+Mar) -> 14.53 | AP188: =SUM(Nov+Dec+Jan+Mar+Apr) -> 14.91 | AQ188: =SUM(Nov+Dec+Jan+Feb+Mar+Apr) -> 17.76 | AR188: 11.69 | AS188: 0 | AT188: =Sep -> 2.92 | AU188: =SUM(Sep+Oct) -> 7.15 | AV188: =SUM(Sep+Oct) -> 7.15 | AW188: 6.67 | AX188: 4.23 | AY188: =SUM(Aug+Sep+Oct+Nov+Dec+Jan+Feb+Mar) -> 23.83 | AZ188: =IF(AM188="Not Grown",AM188) -> not grown | BA188: 2
Y189: 4 | Z189: 48373 | AA189: Polk | AB189: Aug - Jan | AC189: Nov - Feb | AD189: Sep - Mar | AE189: Nov - Feb | AF189: None | AG189: Aug -Sep | AH189: Jul - Sep | AI189: Aug - Sep | AJ189: Jul - Sep | AK189: Oct | AL189: Jul - Feb | AM189: Oct - Apr | AO189: =SUM(Aug+Sep+Oct+Nov+Dec+Jan) -> 18.14 | AP189: =SUM(Sep+Oct+Nov+Dec+Jan+Feb) -> 18.84 | AQ189: =SUM(Sep+Oct+Nov+Dec+Jan+Feb+Mar) -> 21.68 | AR189: 11.69 | AS189: 0 | AT189: =Aug+Sep -> 5.07 | AU189: =SUM(Jul+Aug+Sep) -> 6.67 | AV189: =SUM(Aug+Sep) -> 5.07 | AW189: 6.67 | AX189: 4.23 | AY189: =SUM(Jul+Aug+Sep+Oct+Nov+Dec+Jan+Feb) -> 22.59 | AZ189: =SUM(Oct+Nov+Dec+Jan+Feb+Mar+Apr) -> 21.99 | BA189: 4
Y190: 1 | Z190: 48375 | AA190: Potter | AB190: Nov - Mar | AC190: Nov - Apr | AD190: Nov - Apr | AE190: Nov - Feb | AF190: None | AG190: Sep | AH190: Oct | AI190: Sep | AJ190: Jul - Sep | AK190: Oct | AL190: not grown | AM190: Dec - May | AO190: =SUM(Nov+Dec+Jan+Feb+Mar) -> 14.53 | AP190: =SUM(Nov+Dec+Jan+Feb+Mar+Apr) -> 17.76 | AQ190: =SUM(Nov+Dec+Jan+Feb+Mar+Apr) -> 17.76 | AR190: 11.69 | AS190: 0 | AT190: =Sep -> 2.92 | AU190: =Oct -> 4.23 | AV190: =Sep -> 2.92 | AW190: 6.67 | AX190: 4.23 | AY190: =IF(AL190="Not Grown",AL190) -> not grown | AZ190: =SUM(Dec+Jan+Feb+Mar+Apr+May) -> 19.24 | BA190: 1
Y191: 2 | Z191: 48377 | AA191: Presidio | AB191: Nov - Mar | AC191: Nov - Apr | AD191: Nov - Apr | AE191: Nov - Feb | AF191: None | AG191: Sep | AH191: Sep - Oct | AI191: Sep - Oct | AJ191: Jul - Sep | AK191: Oct | AL191: Aug - Mar | AM191: not grown | AO191: =SUM(Nov+Dec+Jan+Feb+Mar) -> 14.53 | AP191: =SUM(Nov+Dec+Jan+Mar+Apr) -> 14.91 | AQ191: =SUM(Nov+Dec+Jan+Feb+Mar+Apr) -> 17.76 | AR191: =SUM(Nov+Dec+Jan+Feb) -> 11.69 | AS191: 0 | AT191: =Sep -> 2.92 | AU191: =SUM(Sep+Oct) -> 7.15 | AV191: =SUM(Sep+Oct) -> 7.15 | AW191: 6.67 | AX191: 4.23 | AY191: =SUM(Aug+Sep+Oct+Nov+Dec+Jan+Feb+Mar) -> 23.83 | AZ191: =IF(AM191="Not Grown",AM191) -> not grown | BA191: 2
Y192: 4 | Z192: 48379 | AA192: Rains | AB192: Aug - Jan | AC192: Nov - Feb | AD192: Nov - Apr | AE192: Nov - Feb | AF192: None | AG192: Aug -Sep | AH192: Jul - Sep | AI192: Aug - Sep | AJ192: Jul - Sep | AK192: Oct | AL192: Jul - Feb | AM192: Oct - Apr | AO192: =SUM(Aug+Sep+Oct+Nov+Dec+Jan) -> 18.14 | AP192: =SUM(Sep+Oct+Nov+Dec+Jan+Feb) -> 18.84 | AQ192: =SUM(Nov+Dec+Jan+Feb+Mar+Apr) -> 17.76 | AR192: 11.69 | AS192: 0 | AT192: =Aug+Sep -> 5.07 | AU192: =SUM(Jul+Aug+Sep) -> 6.67 | AV192: =SUM(Aug+Sep) -> 5.07 | AW192: 6.67 | AX192: 4.23 | AY192: =SUM(Jul+Aug+Sep+Oct+Nov+Dec+Jan+Feb) -> 22.59 | AZ192: =SUM(Oct+Nov+Dec+Jan+Feb+Mar+Apr) -> 21.99 | BA192: 4
Y193: 1 | Z193: 48381 | AA193: Randall | AB193: Nov - Mar | AC193: Nov - Apr | AD193: Nov - Apr | AE193: Nov - Feb | AF193: None | AG193: Sep | AH193: Oct | AI193: Sep | AJ193: Jul - Sep | AK193: Oct | AL193: not grown | AM193: Dec - May | AO193: =SUM(Nov+Dec+Jan+Feb+Mar) -> 14.53 | AP193: =SUM(Nov+Dec+Jan+Feb+Mar+Apr) -> 17.76 | AQ193: =SUM(Nov+Dec+Jan+Feb+Mar+Apr) -> 17.76 | AR193: 11.69 | AS193: 0 | AT193: =Sep -> 2.92 | AU193: =Oct -> 4.23 | AV193: =Sep -> 2.92 | AW193: 6.67 | AX193: 4.23 | AY193: =IF(AL193="Not Grown",AL193) -> not grown | AZ193: =SUM(Dec+Jan+Feb+Mar+Apr+May) -> 19.24 | BA193: 1
Y194: 2 | Z194: 48383 | AA194: Reagan | AB194: Nov - Mar | AC194: Nov - Apr | AD194: Nov - Apr | AE194: Nov - Feb | AF194: None | AG194: Sep | AH194: Sep - Oct | AI194: Sep - Oct | AJ194: Jul - Sep | AK194: Oct | AL194: Aug - Mar | AM194: not grown | AO194: =SUM(Nov+Dec+Jan+Feb+Mar) -> 14.53 | AP194: =SUM(Nov+Dec+Jan+Mar+Apr) -> 14.91 | AQ194: =SUM(Nov+Dec+Jan+Feb+Mar+Apr) -> 17.76 | AR194: 11.69 | AS194: 0 | AT194: =Sep -> 2.92 | AU194: =SUM(Sep+Oct) -> 7.15 | AV194: =SUM(Sep+Oct) -> 7.15 | AW194: 6.67 | AX194: 4.23 | AY194: =SUM(Aug+Sep+Oct+Nov+Dec+Jan+Feb+Mar) -> 23.83 | AZ194: =IF(AM194="Not Grown",AM194) -> not grown | BA194: 2
Y195: 2 | Z195: 48385 | AA195: Real | AB195: Aug - Feb | AC195: Oct - Mar | AD195: Sep - Feb | AE195: Nov - Feb | AF195: None | AH195: Sep - Oct | AI195: Sep - Oct | AJ195: Jul - Sep | AK195: Oct | AL195: Aug - Mar | AM195: not grown | AO195: =SUM(Aug+Sep+Oct+Nov+Dec+Jan+Feb) -> 20.99 | AP195: =SUM(Oct+Nov+Dec+Jan+Feb+Mar) -> 18.76 | AQ195: =SUM(Sep+Oct+Nov+Dec+Jan+Feb) -> 18.84 | AR195: 11.69 | AS195: =IF(AF195="none",0) -> 0 | AT195: =IF(AG195="","Not Grown") -> Not Grown | AU195: =SUM(Sep+Oct) -> 7.15 | AV195: =SUM(Sep+Oct) -> 7.15 | AW195: =SUM(Jul+Aug+Sep) -> 6.67 | AX195: 4.23 | AY195: =SUM(Aug+Sep+Oct+Nov+Dec+Jan+Feb+Mar) -> 23.83 | AZ195: =IF(AM195="Not Grown",AM195) -> not grown | BA195: 2
Y196: 4 | Z196: 48387 | AA196: Red River | AB196: Aug - Jan | AC196: Nov - Feb | AD196: Nov - Apr | AE196: Nov - Feb | AF196: None | AG196: Aug -Sep | AH196: Jul - Sep | AI196: Aug - Sep | AJ196: Jul - Sep | AK196: Oct | AL196: Jul - Feb | AM196: Oct - Apr | AO196: =SUM(Aug+Sep+Oct+Nov+Dec+Jan) -> 18.14 | AP196: =SUM(Sep+Oct+Nov+Dec+Jan+Feb) -> 18.84 | AQ196: =SUM(Nov+Dec+Jan+Feb+Mar+Apr) -> 17.76 | AR196: 11.69 | AS196: 0 | AT196: =Aug+Sep -> 5.07 | AU196: =SUM(Jul+Aug+Sep) -> 6.67 | AV196: =SUM(Aug+Sep) -> 5.07 | AW196: 6.67 | AX196: 4.23 | AY196: =SUM(Jul+Aug+Sep+Oct+Nov+Dec+Jan+Feb) -> 22.59 | AZ196: =SUM(Oct+Nov+Dec+Jan+Feb+Mar+Apr) -> 21.99 | BA196: =Y196 -> 4
Y197: 2 | Z197: 48389 | AA197: Reeves | AB197: Nov - Mar | AC197: Nov - Apr | AD197: Nov - Apr | AE197: Nov - Feb | AF197: None | AG197: Sep | AH197: Sep - Oct | AI197: Sep - Oct | AJ197: Jul - Sep | AK197: Oct | AL197: Aug - Mar | AM197: not grown | AO197: =SUM(Nov+Dec+Jan+Feb+Mar) -> 14.53 | AP197: =SUM(Nov+Dec+Jan+Mar+Apr) -> 14.91 | AQ197: =SUM(Nov+Dec+Jan+Feb+Mar+Apr) -> 17.76 | AR197: 11.69 | AS197: 0 | AT197: =Sep -> 2.92 | AU197: =SUM(Sep+Oct) -> 7.15 | AV197: =SUM(Sep+Oct) -> 7.15 | AW197: 6.67 | AX197: 4.23 | AY197: =SUM(Aug+Sep+Oct+Nov+Dec+Jan+Feb+Mar) -> 23.83 | AZ197: =IF(AM197="Not Grown",AM197) -> not grown | BA197: 2
Y198: 3 | Z198: 48391 | AA198: Refugio | AB198: Aug - Jan | AC198: Sep - Feb | AD198: Jul - Jan | AE198: Nov - Feb | AF198: None | AG198: Aug -Sep | AH198: Jun - Sep | AI198: Jun - Sep | AJ198: Jul - Sep | AK198: Sep - Oct | AL198: Jul - Jan | AM198: Dec - Jul | AO198: =SUM(Aug+Sep+Oct+Nov+Dec+Jan) -> 18.14 | AP198: =SUM(Sep+Oct+Nov+Dec+Jan+Feb) -> 18.84 | AQ198: =SUM(Jul+Aug+Sep+Oct+Nov+Dec+Jan) -> 19.74 | AR198: 11.69 | AS198: 0 | AT198: =Aug+Sep -> 5.07 | AU198: =SUM(Jun+Jul+Aug+Sep) -> 10.39 | AV198: =SUM(Jun+Jul+Aug+Sep) -> 10.39 | AW198: 6.67 | AX198: =Sep+Oct -> 7.15 | AY198: =SUM(Jul+Aug+Sep+Oct+Nov+Dec+Jan) -> 19.74 | AZ198: =SUM(Dec+Jan+Feb+Mar+Apr+May+Jun+Jul) -> 24.56 | BA198: 3
Y199: 1 | Z199: 48393 | AA199: Roberts | AB199: Nov - Mar | AC199: Nov - Apr | AD199: Nov - Apr | AE199: Nov - Feb | AF199: None | AG199: Sep | AH199: Oct | AI199: Sep | AJ199: Jul - Sep | AK199: Oct | AL199: not grown | AM199: Dec - May | AO199: =SUM(Nov+Dec+Jan+Feb+Mar) -> 14.53 | AP199: =SUM(Nov+Dec+Jan+Feb+Mar+Apr) -> 17.76 | AQ199: =SUM(Nov+Dec+Jan+Feb+Mar+Apr) -> 17.76 | AR199: 11.69 | AS199: 0 | AT199: =Sep -> 2.92 | AU199: =Oct -> 4.23 | AV199: =Sep -> 2.92 | AW199: 6.67 | AX199: =Oct -> 4.23 | AY199: =IF(AL199="Not Grown",AL199) -> not grown | AZ199: =SUM(Dec+Jan+Feb+Mar+Apr+May) -> 19.24 | BA199: 1
Y200: 4 | Z200: 48395 | AA200: Robertson | AB200: Aug - Jan | AC200: Nov - Feb | AD200: Sep - Mar | AE200: Nov - Feb | AF200: None | AG200: Aug -Sep | AH200: Jul - Sep | AI200: Aug - Sep | AJ200: Jul - Sep | AK200: Oct | AL200: Jul - Feb | AM200: Oct - Apr | AO200: =SUM(Aug+Sep+Oct+Nov+Dec+Jan) -> 18.14 | AP200: =SUM(Sep+Oct+Nov+Dec+Jan+Feb) -> 18.84 | AQ200: =SUM(Sep+Oct+Nov+Dec+Jan+Feb+Mar) -> 21.68 | AR200: 11.69 | AS200: 0 | AT200: =Aug+Sep -> 5.07 | AU200: =SUM(Jul+Aug+Sep) -> 6.67 | AV200: =SUM(Aug+Sep) -> 5.07 | AW200: 6.67 | AX200: 4.23 | AY200: =SUM(Jul+Aug+Sep+Oct+Nov+Dec+Jan+Feb) -> 22.59 | AZ200: =SUM(Oct+Nov+Dec+Jan+Feb+Mar+Apr) -> 21.99 | BA200: 4
Y201: 5 | Z201: 48397 | AA201: Rockwall | AB201: Nov - Mar | AC201: Nov - Apr | AD201: Nov - Apr | AE201: Nov - Feb | AF201: None | AG201: Sep | AH201: Aug - Sep | AI201: Aug - Sep | AJ201: Jul - Sep | AK201: Oct | AL201: not grown | AM201: Dec - May | AO201: =SUM(Nov+Dec+Jan+Feb+Mar) -> 14.53 | AP201: =SUM(Nov+Dec+Jan+Feb+Mar+Apr) -> 17.76 | AQ201: =SUM(Nov+Dec+Jan+Feb+Mar+Apr) -> 17.76 | AR201: 11.69 | AS201: 0 | AT201: =Sep -> 2.92 | AU201: =SUM(Aug+Sep) -> 5.07 | AV201: =SUM(Aug+Sep) -> 5.07 | AW201: 6.67 | AX201: 4.23 | AY201: =IF(AL201="Not Grown",AL201) -> not grown | AZ201: =SUM(Dec+Jan+Feb+Mar+Apr+May) -> 19.24 | BA201: 5
... 55 more rows

Sheet Rainfall
A1: Zone | B1: FIPS Code | C1: County | D1: Avg. Jan. rainfall in inches | E1: Avg. Feb. rainfall in inches | F1: Avg. Mar. rainfall in inches | G1: Avg. Apr. rainfall in inches | H1: Avg. May rainfall in inches | I1: Avg. Jun. rainfall in inches | J1: Avg. Jul. rainfall in inches | K1: Avg. Aug. rainfall in inches | L1: Avg. Sep. rainfall in inches | M1: Avg. Oct. rainfall in inches | N1: Avg. Nov. rainfall in inches | O1: Avg. Dec. rainfall in inches | P1: Total annual avg.
A2: 4 | B2: 48001 | C2: Anderson | D2: 3.18 | E2: 3.19 | F2: 3.88 | G2: 4.16 | H2: 4.83 | I2: 4.48 | J2: 2.29 | K2: 2.28 | L2: 3.67 | M2: 4.08 | N2: 3.94 | O2: 3.59 | P2: =SUM(D2:O2) -> 43.57
A3: 2 | B3: 48003 | C3: Andrews | D3: 0.48 | E3: 0.51 | F3: 0.52 | G3: 0.85 | H3: 1.77 | I3: 2.12 | J3: 2.28 | K3: 1.77 | L3: 2.24 | M3: 1.43 | N3: 0.67 | O3: 0.62 | P3: 15.26
A4: 4 | B4: 48005 | C4: Angelina | D4: 3.71 | E4: 2.81 | F4: 3.2 | G4: 3.31 | H4: 4.88 | I4: 4.17 | J4: 2.63 | K4: 2.44 | L4: 4.04 | M4: 3.31 | N4: 3.85 | O4: 4.05 | P4: 42.4
A5: 3 | B5: 48007 | C5: Aransas | D5: 2.4 | E5: 2.18 | F5: 2.36 | G5: 2.07 | H5: 3.66 | I5: 3.46 | J5: 2.4 | K5: 3.13 | L5: 5.53 | M5: 4.23 | N5: 2.56 | O5: 1.91 | P5: 35.89
A6: 5 | B6: 48009 | C6: Archer | D6: 1.14 | E6: 1.74 | F6: 2.06 | G6: 2.52 | H6: 4.24 | I6: 3.14 | J6: 1.78 | K6: 2.66 | L6: 3.31 | M6: 3.62 | N6: 1.94 | O6: 1.74 | P6: 29.89
A7: 1 | B7: 48011 | C7: Armstrong | D7: 0.49 | E7: 0.58 | F7: 1.23 | G7: 1.6 | H7: 3.34 | I7: 3.29 | J7: 3.12 | K7: 3.08 | L7: 2.44 | M7: 1.78 | N7: 0.82 | O7: 0.61 | P7: 22.38
A8: 3 | B8: 48013 | C8: Atascosa | D8: 1.47 | E8: 1.5 | F8: 1.29 | G8: 2.65 | H8: 3.66 | I8: 3.69 | J8: 1.58 | K8: 2.81 | L8: 2.59 | M8: 3.16 | N8: 1.92 | O8: 1.51 | P8: 27.83
A9: 3 | B9: 48015 | C9: Austin | D9: 3.17 | E9: 2.88 | F9: 2.36 | G9: 2.94 | H9: 4.78 | I9: 3.92 | J9: 2.05 | K9: 2.99 | L9: 4.44 | M9: 4.34 | N9: 4.05 | O9: 3.12 | P9: 41.04
A10: 1 | B10: 48017 | C10: Bailey | D10: 0.43 | E10: 0.5 | F10: 0.6 | G10: 1.01 | H10: 2.07 | I10: 2.49 | J10: 2.09 | K10: 3.07 | L10: 2.34 | M10: 1.45 | N10: 0.68 | O10: 0.6 | P10: 17.33
A11: 2 | B11: 48019 | C11: Bandera | D11: 1.73 | E11: 1.88 | F11: 2.53 | G11: 2.73 | H11: 4.32 | I11: 3.95 | J11: 2.63 | K11: 3.17 | L11: 3.75 | M11: 4.22 | N11: 2.54 | O11: 2.25 | P11: 35.7
A12: 3 | B12: 48021 | C12: Bastrop | D12: 2.51 | E12: 2.47 | F12: 2.18 | G12: 3.52 | H12: 5.29 | I12: 3.75 | J12: 1.82 | K12: 2.17 | L12: 3.23 | M12: 3.96 | N12: 3.2 | O12: 2.68 | P12: 36.78
A13: 5 | B13: 48023 | C13: Baylor | D13: 0.95 | E13: 1.63 | F13: 1.8 | G13: 1.57 | H13: 3.59 | I13: 3.64 | J13: 1.43 | K13: 2.26 | L13: 3.05 | M13: 2.39 | N13: 1.48 | O13: 1.34 | P13: 25.13
A14: 3 | B14: 48025 | C14: Bee | D14: 2 | E14: 1.84 | F14: 1.94 | G14: 2.72 | H14: 3.49 | I14: 4.19 | J14: 2.69 | K14: 2.98 | L14: 4.25 | M14: 3.47 | N14: 1.91 | O14: 1.83 | P14: 33.31
A15: 5 | B15: 48027 | C15: Bell | D15: 1.66 | E15: 2.75 | F15: 2.97 | G15: 2.14 | H15: 4.49 | I15: 3.99 | J15: 1.34 | K15: 1.66 | L15: 2.82 | M15: 3.34 | N15: 3.09 | O15: 3.08 | P15: 33.33
A16: 3 | B16: 48029 | C16: Bexar | D16: 1.66 | E16: 1.75 | F16: 1.89 | G16: 2.6 | H16: 4.72 | I16: 4.3 | J16: 2.03 | K16: 2.57 | L16: 3 | M16: 3.86 | N16: 2.58 | O16: 1.96 | P16: 32.92
A17: 2 | B17: 48031 | C17: Blanco | D17: 1.77 | E17: 2.16 | F17: 2.2 | G17: 2.27 | H17: 4.66 | I17: 4.09 | J17: 1.82 | K17: 2.47 | L17: 3.32 | M17: 4.17 | N17: 2.74 | O17: 2.1 | P17: 33.77
A18: 1 | B18: 48033 | C18: Borden | D18: 0.6 | E18: 0.73 | F18: 0.66 | G18: 1.19 | H18: 2.8 | I18: 2.79 | J18: 2.3 | K18: 2.51 | L18: 2.83 | M18: 1.8 | N18: 0.73 | O18: 0.68 | P18: 19.62
A19: 5 | B19: 48035 | C19: Bosque | D19: 1.69 | E19: 2.42 | F19: 2.8 | G19: 3.15 | H19: 4.97 | I19: 3.72 | J19: 1.84 | K19: 2.62 | L19: 3.52 | M19: 3.39 | N19: 2.53 | O19: 2.59 | P19: 35.24
A20: 4 | B20: 48037 | C20: Bowie | D20: 2.83 | E20: 3.74 | F20: 4.71 | G20: 3.95 | H20: 5.25 | I20: 4.01 | J20: 4.32 | K20: 2.94 | L20: 3.79 | M20: 3.94 | N20: 4.95 | O20: 4.5 | P20: 48.93
A21: 3 | B21: 48039 | C21: Brazoria | D21: 4.76 | E21: 3.5 | F21: 3.85 | G21: 3.77 | H21: 5.33 | I21: 6.44 | J21: 4.21 | K21: 4.99 | L21: 7.49 | M21: 4.28 | N21: 4.97 | O21: 4.2 | P21: 57.79
A22: 4 | B22: 48041 | C22: Brazos | D22: 2.65 | E22: 2.62 | F22: 2.58 | G22: 3.38 | H22: 4.8 | I22: 3.68 | J22: 2.29 | K22: 2.42 | L22: 4.87 | M22: 3.81 | N22: 3.15 | O22: 2.79 | P22: 39.04
A23: 2 | B23: 48043 | C23: Brewster | D23: 0.45 | E23: 0.52 | F23: 0.34 | G23: 0.6 | H23: 1.22 | I23: 2.18 | J23: 3.04 | K23: 2.94 | L23: 3.23 | M23: 1.52 | N23: 0.45 | O23: 0.67 | P23: 17.16
A24: 1 | B24: 48045 | C24: Briscoe | D24: 0.57 | E24: 0.77 | F24: 1.17 | G24: 1.59 | H24: 3.22 | I24: 3.96 | J24: 2.3 | K24: 2.76 | L24: 2.67 | M24: 1.68 | N24: 0.9 | O24: 0.74 | P24: 22.33
A25: 3 | B25: 48047 | C25: Brooks | D25: 1.12 | E25: 1.6 | F25: 0.87 | G25: 1.37 | H25: 2.91 | I25: 3.36 | J25: 1.88 | K25: 2.88 | L25: 3.82 | M25: 3.34 | N25: 1.31 | O25: 1.16 | P25: 25.62
A26: 5 | B26: 48049 | C26: Brown | D26: 1.33 | E26: 2.08 | F26: 2.04 | G26: 2.41 | H26: 3.72 | I26: 3.82 | J26: 1.85 | K26: 2.34 | L26: 2.89 | M26: 2.92 | N26: 1.64 | O26: 1.68 | P26: 28.72
A27: 3 | B27: 48051 | C27: Burleson | D27: 3.09 | E27: 2.6 | F27: 2.98 | G27: 3.33 | H27: 4.83 | I27: 3.66 | J27: 1.77 | K27: 2.33 | L27: 3.51 | M27: 4.47 | N27: 3.31 | O27: 3.17 | P27: 39.05
A28: 5 | B28: 48053 | C28: Burnet | D28: 1.61 | E28: 2.16 | F28: 2.15 | G28: 2.69 | H28: 4.82 | I28: 4.18 | J28: 2.16 | K28: 2.29 | L28: 3.07 | M28: 3.69 | N28: 2.41 | O28: 2.37 | P28: 33.6
A29: 3 | B29: 48055 | C29: Caldwell | D29: 2.07 | E29: 2.35 | F29: 2.18 | G29: 2.98 | H29: 5.04 | I29: 3.75 | J29: 1.67 | K29: 2.24 | L29: 3.19 | M29: 4.36 | N29: 3.25 | O29: 2.4 | P29: 35.48
A30: 3 | B30: 48057 | C30: Calhoun | D30: 3.18 | E30: 2.58 | F30: 2.18 | G30: 2.4 | H30: 4.87 | I30: 4.07 | J30: 4.25 | K30: 3.43 | L30: 6.74 | M30: 5.33 | N30: 3.56 | O30: 2.35 | P30: 44.94
A31: 5 | B31: 48059 | C31: Callahan | D31: 1.17 | E31: 1.55 | F31: 1.76 | G31: 1.8 | H31: 3.13 | I31: 3.25 | J31: 1.97 | K31: 2.02 | L31: 2.79 | M31: 3.03 | N31: 1.64 | O31: 1.41 | P31: 25.52
A32: 3 | B32: 48061 | C32: Cameron | D32: 1.58 | E32: 1.85 | F32: 1.3 | G32: 2.5 | H32: 2.59 | I32: 2.9 | J32: 1.81 | K32: 2.91 | L32: 5.01 | M32: 2.97 | N32: 1.43 | O32: 1.39 | P32: 28.24
A33: 4 | B33: 48063 | C33: Camp | D33: 2.75 | E33: 3.63 | F33: 4.41 | G33: 4.22 | H33: 4.86 | I33: 3.69 | J33: 2.5 | K33: 2.02 | L33: 3.58 | M33: 3.87 | N33: 4.16 | O33: 3.66 | P33: 43.35
A34: 1 | B34: 48065 | C34: Carson | D34: 0.49 | E34: 0.78 | F34: 1.21 | G34: 1.26 | H34: 2.71 | I34: 3.57 | J34: 2.45 | K34: 2.96 | L34: 2.23 | M34: 1.57 | N34: 0.85 | O34: 0.46 | P34: 20.54
A35: 4 | B35: 48067 | C35: Cass | D35: 3.06 | E35: 3.79 | F35: 4.71 | G35: 4.68 | H35: 4.49 | I35: 4.09 | J35: 2.89 | K35: 2.73 | L35: 3.38 | M35: 3.75 | N35: 4.95 | O35: 4.61 | P35: 47.13
A36: 1 | B36: 48069 | C36: Castro | D36: 0.51 | E36: 0.52 | F36: 0.73 | G36: 0.99 | H36: 2.76 | I36: 3.18 | J36: 2.4 | K36: 3.1 | L36: 2.57 | M36: 1.58 | N36: 0.71 | O36: 0.7 | P36: 19.75
A37: 4 | B37: 48071 | C37: Chambers | D37: 4.02 | E37: 2.77 | F37: 2.98 | G37: 3.6 | H37: 4.9 | I37: 5.78 | J37: 4.53 | K37: 4.54 | L37: 6.04 | M37: 3.82 | N37: 4.43 | O37: 4.07 | P37: 51.48
A38: 4 | B38: 48073 | C38: Cherokee | D38: 3.38 | E38: 3.13 | F38: 3.58 | G38: 3.5 | H38: 4.46 | I38: 3.78 | J38: 3.03 | K38: 1.95 | L38: 4.46 | M38: 3.83 | N38: 3.83 | O38: 3.65 | P38: 42.58
A39: 1 | B39: 48075 | C39: Childress | D39: 0.55 | E39: 0.9 | F39: 1.27 | G39: 1.65 | H39: 3.25 | I39: 3.19 | J39: 1.86 | K39: 2.24 | L39: 2.87 | M39: 2.01 | N39: 1.04 | O39: 0.69 | P39: 21.52
A40: 5 | B40: 48077 | C40: Clay | D40: 1.53 | E40: 2.08 | F40: 2.45 | G40: 2.78 | H40: 4.39 | I40: 3.72 | J40: 1.73 | K40: 2.4 | L40: 3.45 | M40: 3.43 | N40: 1.74 | O40: 2.17 | P40: 31.87
A41: 1 | B41: 48079 | C41: Cochran | D41: 0.5 | E41: 0.58 | F41: 0.61 | G41: 0.89 | H41: 1.96 | I41: 2.52 | J41: 2.61 | K41: 2.87 | L41: 2.61 | M41: 1.63 | N41: 0.79 | O41: 0.63 | P41: 18.2
A42: 2 | B42: 48081 | C42: Coke | D42: 0.81 | E42: 1.22 | F42: 1.06 | G42: 1.72 | H42: 3.24 | I42: 2.9 | J42: 1.44 | K42: 2.28 | L42: 3.55 | M42: 2.73 | N42: 1.15 | O42: 1 | P42: 23.1
A43: 5 | B43: 48083 | C43: Coleman | D43: 1.12 | E43: 1.69 | F43: 1.99 | G43: 1.9 | H43: 3.79 | I43: 4.02 | J43: 1.75 | K43: 2.66 | L43: 3.01 | M43: 3.36 | N43: 1.5 | O43: 1.38 | P43: 28.17
A44: 5 | B44: 48085 | C44: Collin | D44: 2.15 | E44: 3.08 | F44: 3.5 | G44: 3.77 | H44: 5.59 | I44: 4.25 | J44: 2.46 | K44: 2.17 | L44: 3.38 | M44: 4.93 | N44: 3.75 | O44: 3.42 | P44: 42.45
A45: 1 | B45: 48087 | C45: Collingsworth | D45: 0.67 | E45: 0.74 | F45: 1.43 | G45: 2.02 | H45: 3.84 | I45: 3.5 | J45: 2.21 | K45: 1.85 | L45: 2.67 | M45: 2.33 | N45: 0.98 | O45: 0.66 | P45: 22.9
A46: 3 | B46: 48089 | C46: Colorado | D46: 3.61 | E46: 2.84 | F46: 2.93 | G46: 3.57 | H46: 5.75 | I46: 5.03 | J46: 2.64 | K46: 3.05 | L46: 3.92 | M46: 4.16 | N46: 3.99 | O46: 3.21 | P46: 44.7
A47: 3 | B47: 48091 | C47: Comal | D47: 1.95 | E47: 2 | F47: 2.02 | G47: 2.79 | H47: 5.09 | I47: 4.9 | J47: 2.01 | K47: 2.42 | L47: 3.49 | M47: 4.51 | N47: 2.73 | O47: 2.52 | P47: 36.43
A48: 5 | B48: 48093 | C48: Comanche | D48: 1.29 | E48: 1.87 | F48: 2.09 | G48: 2.86 | H48: 4.06 | I48: 3.67 | J48: 1.76 | K48: 2.35 | L48: 3.09 | M48: 2.77 | N48: 1.89 | O48: 1.75 | P48: 29.45
A49: 2 | B49: 48095 | C49: Concho | D49: 1.04 | E49: 1.52 | F49: 1.35 | G49: 1.54 | H49: 3.31 | I49: 3.77 | J49: 1.84 | K49: 2.05 | L49: 3.66 | M49: 2.85 | N49: 1.46 | O49: 1.29 | P49: 25.68
A50: 5 | B50: 48097 | C50: Cooke | D50: 1.75 | E50: 2.24 | F50: 3.16 | G50: 3.21 | H50: 5.04 | I50: 3.62 | J50: 1.76 | K50: 2.12 | L50: 4.04 | M50: 4.45 | N50: 2.57 | O50: 2.32 | P50: 36.28
A51: 5 | B51: 48099 | C51: Coryell | D51: 1.51 | E51: 2.18 | F51: 2.29 | G51: 2.66 | H51: 4.05 | I51: 3.95 | J51: 2.29 | K51: 1.99 | L51: 2.42 | M51: 3.01 | N51: 2.21 | O51: 1.83 | P51: 30.39
A52: 1 | B52: 48101 | C52: Cottle | D52: 0.76 | E52: 1.09 | F52: 1.3 | G52: 1.92 | H52: 3.85 | I52: 3.67 | J52: 1.72 | K52: 2.63 | L52: 2.96 | M52: 2.06 | N52: 1.1 | O52: 1 | P52: 24.06
A53: 2 | B53: 48103 | C53: Crane | D53: 0.57 | E53: 0.59 | F53: 0.35 | G53: 0.81 | H53: 1.75 | I53: 1.71 | J53: 1.48 | K53: 1.99 | L53: 3.04 | M53: 1.64 | N53: 0.68 | O53: 0.7 | P53: 15.31
A54: 2 | B54: 48105 | C54: Crockett | D54: 0.79 | E54: 0.82 | F54: 1.06 | G54: 1.37 | H54: 2.45 | I54: 1.96 | J54: 1.56 | K54: 2.28 | L54: 2.92 | M54: 2.22 | N54: 0.99 | O54: 0.69 | P54: 19.11
A55: 1 | B55: 48107 | C55: Crosby | D55: 0.69 | E55: 0.96 | F55: 1.03 | G55: 1.87 | H55: 3.05 | I55: 3.1 | J55: 2.05 | K55: 3.05 | L55: 3.46 | M55: 1.91 | N55: 0.95 | O55: 0.84 | P55: 22.96
A56: 2 | B56: 48109 | C56: Culberson | D56: 0.54 | E56: 0.35 | F56: 0.16 | G56: 0.24 | H56: 0.7 | I56: 1.25 | J56: 2.25 | K56: 2.36 | L56: 2.32 | M56: 1.18 | N56: 0.41 | O56: 0.55 | P56: 12.31
A57: 1 | B57: 48111 | C57: Dallam | D57: 0.5 | E57: 0.35 | F57: 1.05 | G57: 1.42 | H57: 2.94 | I57: 1.97 | J57: 2.14 | K57: 2.74 | L57: 1.72 | M57: 1.14 | N57: 0.82 | O57: 0.52 | P57: 17.31
A58: 5 | B58: 48113 | C58: Dallas | D58: 2.13 | E58: 2.49 | F58: 3.4 | G58: 3.27 | H58: 5.44 | I58: 3.53 | J58: 2.19 | K58: 2.36 | L58: 2.72 | M58: 4.66 | N58: 2.99 | O58: 3.16 | P58: 38.34
A59: 1 | B59: 48115 | C59: Dawson | D59: 0.6 | E59: 0.79 | F59: 0.73 | G59: 0.88 | H59: 2.35 | I59: 2.86 | J59: 2.22 | K59: 2.07 | L59: 3.47 | M59: 1.65 | N59: 0.83 | O59: 0.79 | P59: 19.24
A60: 1 | B60: 48117 | C60: Deaf Smith | D60: 0.5 | E60: 0.5 | F60: 0.98 | G60: 1.02 | H60: 2.16 | I60: 2.9 | J60: 2.06 | K60: 3.22 | L60: 2.25 | M60: 1.59 | N60: 0.76 | O60: 0.74 | P60: 18.68
A61: 4 | B61: 48119 | C61: Delta | D61: 2.38 | E61: 3.25 | F61: 4.17 | G61: 3.94 | H61: 5.55 | I61: 4.03 | J61: 2.8 | K61: 2.11 | L61: 4.57 | M61: 4.23 | N61: 3.55 | O61: 3.41 | P61: 43.99
A62: 5 | B62: 48121 | C62: Denton | D62: 1.93 | E62: 2.55 | F62: 2.82 | G62: 3.3 | H62: 5.41 | I62: 3.29 | J62: 2.52 | K62: 2.26 | L62: 3.35 | M62: 4.81 | N62: 2.87 | O62: 2.64 | P62: 37.75
A63: 3 | B63: 48123 | C63: Dewitt | D63: 2.28 | E63: 2.04 | F63: 2.22 | G63: 3.01 | H63: 4.66 | I63: 4.4 | J63: 2.22 | K63: 2.1 | L63: 4.2 | M63: 3.58 | N63: 2.58 | O63: 2.27 | P63: 35.56
A64: 1 | B64: 48125 | C64: Dickens | D64: 0.48 | E64: 0.89 | F64: 1.23 | G64: 1.66 | H64: 3.47 | I64: 2.82 | J64: 1.58 | K64: 2.74 | L64: 3.2 | M64: 2.13 | N64: 0.97 | O64: 0.56 | P64: 21.73
A65: 1 | B65: 48127 | C65: Dimmit | D65: 0.64 | E65: 0.83 | F65: 1.43 | G65: 2.25 | H65: 3.6 | I65: 3.7 | J65: 2.37 | K65: 2.81 | L65: 2.69 | M65: 1.81 | N65: 0.94 | O65: 0.85 | P65: 23.92
A66: 3 | B66: 48127 | C66: Dimmit | D66: 0.99 | E66: 0.97 | F66: 0.94 | G66: 1.5 | H66: 2.96 | I66: 2.95 | J66: 1.4 | K66: 2.42 | L66: 2.04 | M66: 2.59 | N66: 1.13 | O66: 0.88 | P66: =SUM(D66:O66) -> 20.77
A67: 1 | B67: 48129 | C67: Donley | D67: 0.64 | E67: 0.83 | F67: 1.43 | G67: 2.25 | H67: 3.6 | I67: 3.7 | J67: 2.37 | K67: 2.81 | L67: 2.69 | M67: 1.81 | N67: 0.94 | O67: 0.85 | P67: 23.92
A68: 3 | B68: 48131 | C68: Duval | D68: 1.14 | E68: 1.71 | F68: 1.19 | G68: 1.89 | H68: 3.71 | I68: 3.35 | J68: 1.56 | K68: 2.3 | L68: 4.35 | M68: 1.98 | N68: 0.94 | O68: 1.15 | P68: 25.27
A69: 5 | B69: 48133 | C69: Eastland | D69: 1.19 | E69: 1.75 | F69: 1.97 | G69: 2.3 | H69: 3.35 | I69: 3.42 | J69: 1.72 | K69: 2.33 | L69: 2.7 | M69: 3.12 | N69: 1.74 | O69: 1.7 | P69: 27.29
A70: 2 | B70: 48135 | C70: Ector | D70: 0.41 | E70: 0.6 | F70: 0.44 | G70: 0.68 | H70: 1.9 | I70: 1.55 | J70: 1.5 | K70: 1.66 | L70: 2.74 | M70: 1.58 | N70: 0.6 | O70: 0.62 | P70: 14.28
A71: 2 | B71: 48137 | C71: Edwards | D71: 0.8 | E71: 1.12 | F71: 1.36 | G71: 1.93 | H71: 2.64 | I71: 2.59 | J71: 2.68 | K71: 2.93 | L71: 2.35 | M71: 2.35 | N71: 1.31 | O71: 0.8 | P71: 22.86
A72: 2 | B72: 48141 | C72: El Paso | D72: 0.45 | E72: 0.39 | F72: 0.26 | G72: 0.23 | H72: 0.38 | I72: 0.87 | J72: 1.49 | K72: 1.75 | L72: 1.61 | M72: 0.81 | N72: 0.43 | O72: 0.77 | P72: 9.44
A73: 5 | B73: 48139 | C73: Ellis | D73: 2.4 | E73: 2.85 | F73: 2.84 | G73: 3.23 | H73: 4.66 | I73: 3.72 | J73: 1.6 | K73: 2.15 | L73: 2.92 | M73: 4.23 | N73: 3.18 | O73: 3.26 | P73: 37.04
A74: 5 | B74: 48143 | C74: Erath | D74: 1.59 | E74: 2.23 | F74: 2.62 | G74: 2.82 | H74: 4.66 | I74: 3.78 | J74: 1.92 | K74: 2.12 | L74: 3.39 | M74: 3.56 | N74: 2.07 | O74: 2.31 | P74: 33.07
A75: 5 | B75: 48145 | C75: Falls | D75: 2.49 | E75: 2.58 | F75: 3.3 | G75: 3.19 | H75: 5.35 | I75: 3.55 | J75: 2.09 | K75: 1.97 | L75: 3.08 | M75: 3.8 | N75: 3.15 | O75: 3.42 | P75: 37.97
A76: 5 | B76: 48147 | C76: Fannin | D76: 2.36 | E76: 3.01 | F76: 3.76 | G76: 3.41 | H76: 5.53 | I76: 4.46 | J76: 3.45 | K76: 2.05 | L76: 3.45 | M76: 5.4 | N76: 3.94 | O76: 3.53 | P76: 44.35
A77: 3 | B77: 48149 | C77: Fayette | D77: 3.15 | E77: 2.88 | F77: 2.56 | G77: 3.02 | H77: 4.78 | I77: 4.41 | J77: 2.25 | K77: 2.91 | L77: 3.68 | M77: 4.47 | N77: 3.31 | O77: 3.04 | P77: 40.46
A78: 1 | B78: 48151 | C78: Fisher | D78: 0.73 | E78: 1.38 | F78: 1.31 | G78: 1.73 | H78: 3.8 | I78: 2.7 | J78: 1.92 | K78: 2.79 | L78: 3.39 | M78: 2.33 | N78: 1.16 | O78: 1.07 | P78: 24.31
A79: 1 | B79: 48153 | C79: Floyd | D79: 0.45 | E79: 0.72 | F79: 0.98 | G79: 1.58 | H79: 3.03 | I79: 3.74 | J79: 2 | K79: 2.5 | L79: 2.88 | M79: 1.62 | N79: 0.87 | O79: 0.63 | P79: 21
A80: 1 | B80: 48155 | C80: Foard | D80: 0.95 | E80: 1.41 | F80: 1.59 | G80: 2.12 | H80: 4.44 | I80: 3.69 | J80: 1.75 | K80: 2.42 | L80: 3.24 | M80: 2.49 | N80: 1.52 | O80: 0.96 | P80: 26.58
A81: 3 | B81: 48157 | C81: Fort Bend | D81: 3.86 | E81: 3 | F81: 3.12 | G81: 3.46 | H81: 4.28 | I81: 4.98 | J81: 3.21 | K81: 3.94 | L81: 5.09 | M81: 4.14 | N81: 4.8 | O81: 3.51 | P81: 47.39
A82: 4 | B82: 48159 | C82: Franklin | D82: 2.19 | E82: 3.15 | F82: 4.01 | G82: 4.33 | H82: 4.71 | I82: 3.55 | J82: 3.38 | K82: 2.08 | L82: 3.68 | M82: 4.15 | N82: 3.97 | O82: 3.68 | P82: 42.88
A83: 4 | B83: 48161 | C83: Freestone | D83: 2.53 | E83: 3.2 | F83: 3.22 | G83: 3.69 | H83: 4.98 | I83: 3.04 | J83: 1.87 | K83: 2.3 | L83: 4.08 | M83: 4.06 | N83: 3.64 | O83: 3.21 | P83: 39.82
A84: 3 | B84: 48163 | C84: Frio | D84: 1.17 | E84: 0.98 | F84: 0.83 | G84: 2.34 | H84: 3.62 | I84: 3.92 | J84: 1.67 | K84: 3.3 | L84: 2.51 | M84: 3.68 | N84: 1.64 | O84: 1.3 | P84: 26.96
A85: 1 | B85: 48165 | C85: Gaines | D85: 0.64 | E85: 0.72 | F85: 0.61 | G85: 0.91 | H85: 2.39 | I85: 2.45 | J85: 2.44 | K85: 2.31 | L85: 2.73 | M85: 1.39 | N85: 0.9 | O85: 0.71 | P85: 18.2
A86: 4 | B86: 48167 | C86: Galveston | D86: 3.26 | E86: 2.26 | F86: 2.23 | G86: 2.43 | H86: 3.59 | I86: 4.44 | J86: 3.96 | K86: 4.47 | L86: 5.93 | M86: 2.84 | N86: 3.38 | O86: 3.5 | P86: 42.29
A87: 1 | B87: 48169 | C87: Garza | D87: 0.57 | E87: 0.98 | F87: 0.74 | G87: 1.43 | H87: 3.01 | I87: 2.87 | J87: 2.1 | K87: 2.93 | L87: 2.97 | M87: 2.02 | N87: 0.92 | O87: 0.78 | P87: 21.32
A88: 2 | B88: 48171 | C88: Gillespie | D88: 1.36 | E88: 1.91 | F88: 1.88 | G88: 2.39 | H88: 4.29 | I88: 3.97 | J88: 2 | K88: 2.74 | L88: 3.07 | M88: 3.72 | N88: 2.19 | O88: 2.14 | P88: 31.66
A89: 2 | B89: 48173 | C89: Glasscock | D89: 0.68 | E89: 0.72 | F89: 0.75 | G89: 1.14 | H89: 2.25 | I89: 1.91 | J89: 1.87 | K89: 1.99 | L89: 2.81 | M89: 1.66 | N89: 0.75 | O89: 0.69 | P89: 17.22
A90: 3 | B90: 48175 | C90: Goliad | D90: 2.28 | E90: 2.05 | F90: 1.94 | G90: 2.95 | H90: 4.39 | I90: 4.06 | J90: 2.75 | K90: 3.31 | L90: 3.85 | M90: 2.92 | N90: 2.26 | O90: 2.12 | P90: 34.88
A91: 3 | B91: 48177 | C91: Gonzales | D91: 2.36 | E91: 2.08 | F91: 2.23 | G91: 3.04 | H91: 5.43 | I91: 4.24 | J91: 1.6 | K91: 2.68 | L91: 3.2 | M91: 3.87 | N91: 2.84 | O91: 2.45 | P91: 36.02
A92: 1 | B92: 48179 | C92: Gray | D92: 0.57 | E92: 0.83 | F92: 1.4 | G92: 1.95 | H92: 3.37 | I92: 3.52 | J92: 2.84 | K92: 2.38 | L92: 2.29 | M92: 1.58 | N92: 1.2 | O92: 0.7 | P92: 22.63
A93: 5 | B93: 48181 | C93: Grayson | D93: 2.12 | E93: 2.63 | F93: 3.43 | G93: 3.49 | H93: 5.41 | I93: 4.4 | J93: 2.34 | K93: 2.25 | L93: 4.07 | M93: 5.25 | N93: 3.7 | O93: 2.97 | P93: 42.06
A94: 4 | B94: 48183 | C94: Gregg | D94: 3.41 | E94: 3.84 | F94: 4.06 | G94: 4.55 | H94: 4.68 | I94: 4.54 | J94: 2.71 | K94: 2.49 | L94: 4.36 | M94: 3.52 | N94: 4.62 | O94: 4.42 | P94: 47.2
A95: 4 | B95: 48185 | C95: Grimes | D95: 2.91 | E95: 2.9 | F95: 2.8 | G95: 3.76 | H95: 5.12 | I95: 3.77 | J95: 2.63 | K95: 2.85 | L95: 5.44 | M95: 4.48 | N95: 3.29 | O95: 3.45 | P95: 43.4
A96: 3 | B96: 48187 | C96: Guadalupe | D96: 2.03 | E96: 2.17 | F96: 1.77 | G96: 2.8 | H96: 4.6 | I96: 4 | J96: 1.93 | K96: 2.34 | L96: 4.05 | M96: 3.33 | N96: 2.81 | O96: 1.9 | P96: 33.73
A97: 1 | B97: 48189 | C97: Hale | D97: 0.59 | E97: 0.63 | F97: 0.82 | G97: 1.52 | H97: 2.96 | I97: 3.04 | J97: 2.5 | K97: 2.38 | L97: 2.29 | M97: 1.72 | N97: 0.87 | O97: 0.74 | P97: 20.06
A98: 1 | B98: 48191 | C98: Hall | D98: 0.6 | E98: 0.89 | F98: 1.54 | G98: 2.03 | H98: 3.92 | I98: 3.51 | J98: 1.76 | K98: 2.22 | L98: 2.43 | M98: 1.82 | N98: 0.98 | O98: 0.77 | P98: 22.47
A99: 5 | B99: 48193 | C99: Hamilton | D99: 1.69 | E99: 2.31 | F99: 2.67 | G99: 3.03 | H99: 4.9 | I99: 3.43 | J99: 2.22 | K99: 2.52 | L99: 3.24 | M99: 3.48 | N99: 2.22 | O99: 2.09 | P99: 33.8
A100: 1 | B100: 48195 | C100: Hansford | D100: 0.54 | E100: 0.62 | F100: 1.52 | G100: 1.58 | H100: 2.9 | I100: 2.97 | J100: 2.77 | K100: 2.38 | L100: 2.08 | M100: 1.35 | N100: 1.01 | O100: 0.66 | P100: 20.38
A101: 1 | B101: 48197 | C101: Hardeman | D101: 0.96 | E101: 1.15 | F101: 1.64 | G101: 2.09 | H101: 3.86 | I101: 3.76 | J101: 2.33 | K101: 2.51 | L101: 3.43 | M101: 2.36 | N101: 1.31 | O101: 1.19 | P101: 26.59
A102: 4 | B102: 48199 | C102: Hardin | D102: 4.49 | E102: 3.74 | F102: 3.7 | G102: 3.68 | H102: 5.53 | I102: 5.84 | J102: 4.48 | K102: 3.85 | L102: 5.33 | M102: 4.21 | N102: 4.72 | O102: 5.07 | P102: 54.64
A103: 4 | B103: 48201 | C103: Harris | D103: 3.02 | E103: 2.96 | F103: 2.67 | G103: 2.57 | H103: 4.78 | I103: 4.82 | J103: 3.58 | K103: 4.27 | L103: 5.14 | M103: 3.83 | N103: 3.88 | O103: 3.33 | P103: 44.85
A104: 4 | B104: 48203 | C104: Harrison | D104: 3.53 | E104: 3.74 | F104: 4.3 | G104: 5.07 | H104: 4.25 | I104: 3.88 | J104: 2.42 | K104: 2.35 | L104: 3.74 | M104: 3.76 | N104: 4.41 | O104: 4.71 | P104: 46.16
A105: 1 | B105: 48205 | C105: Hartley | D105: 0.52 | E105: 0.41 | F105: 1.09 | G105: 1.35 | H105: 2.72 | I105: 2.27 | J105: 3.11 | K105: 2.99 | L105: 1.56 | M105: 1.32 | N105: 0.71 | O105: 0.54 | P105: 18.59
A106: 5 | B106: 48207 | C106: Haskell | D106: 0.96 | E106: 1.47 | F106: 1.46 | G106: 1.98 | H106: 3.35 | I106: 3.23 | J106: 1.6 | K106: 2.73 | L106: 2.96 | M106: 2.53 | N106: 1.31 | O106: 1.35 | P106: 24.93
A107: 3 | B107: 48209 | C107: Hays | D107: 2.04 | E107: 2.17 | F107: 2.09 | G107: 2.87 | H107: 5.38 | I107: 4.8 | J107: 2.12 | K107: 2.69 | L107: 3.59 | M107: 3.88 | N107: 3.06 | O107: 2.38 | P107: 37.07
A108: 1 | B108: 48211 | C108: Hemphill | D108: 0.4 | E108: 0.86 | F108: 1.46 | G108: 1.64 | H108: 3.54 | I108: 3.29 | J108: 1.99 | K108: 2.58 | L108: 2.61 | M108: 1.57 | N108: 1.05 | O108: 0.55 | P108: 21.54
A109: 4 | B109: 48213 | C109: Henderson | D109: 2.41 | E109: 3.1 | F109: 3.52 | G109: 3.7 | H109: 5.16 | I109: 3.52 | J109: 1.54 | K109: 1.85 | L109: 3.85 | M109: 3.91 | N109: 3.62 | O109: 3.16 | P109: 39.34
A110: 3 | B110: 48215 | C110: Hidalgo | D110: 1.42 | E110: 1.26 | F110: 0.58 | G110: 1.43 | H110: 2.95 | I110: 3.02 | J110: 1.95 | K110: 2.46 | L110: 3.6 | M110: 2.51 | N110: 0.81 | O110: 1.1 | P110: 23.09
A111: 5 | B111: 48217 | C111: Hill | D111: 2.19 | E111: 2.67 | F111: 3.21 | G111: 3.24 | H111: 4.71 | I111: 4.07 | J111: 2.08 | K111: 2.23 | L111: 2.92 | M111: 3.98 | N111: 2.76 | O111: 3.08 | P111: 37.14
A112: 1 | B112: 48219 | C112: Hockley | D112: 0.59 | E112: 0.63 | F112: 0.58 | G112: 1.03 | H112: 2.35 | I112: 2.78 | J112: 2.22 | K112: 2.95 | L112: 3.23 | M112: 1.62 | N112: 0.85 | O112: 0.83 | P112: 19.66
A113: 5 | B113: 48221 | C113: Hood | D113: 1.56 | E113: 2 | F113: 2.34 | G113: 2.61 | H113: 4.43 | I113: 3.18 | J113: 2.05 | K113: 2.22 | L113: 2.44 | M113: 3.72 | N113: 1.83 | O113: 1.93 | P113: 30.31
A114: 4 | B114: 48223 | C114: Hopkins | D114: 2.47 | E114: 3.26 | F114: 4.11 | G114: 4.73 | H114: 5.47 | I114: 4.14 | J114: 3.06 | K114: 2.29 | L114: 4.37 | M114: 4.62 | N114: 3.94 | O114: 3.53 | P114: 45.99
A115: 4 | B115: 48225 | C115: Houston | D115: 3.49 | E115: 2.86 | F115: 3.21 | G115: 4.06 | H115: 4.38 | I115: 3.68 | J115: 2.95 | K115: 2.28 | L115: 4.39 | M115: 3.61 | N115: 3.8 | O115: 3.47 | P115: 42.18
A116: 2 | B116: 48227 | C116: Howard | D116: 0.72 | E116: 0.83 | F116: 0.73 | G116: 1.36 | H116: 2.96 | I116: 2.58 | J116: 1.84 | K116: 2.48 | L116: 3.5 | M116: 1.66 | N116: 0.72 | O116: 0.65 | P116: 20.03
A117: 2 | B117: 48229 | C117: Hudspeth | D117: 0.41 | E117: 0.35 | F117: 0.26 | G117: 0.2 | H117: 1.12 | I117: 1.13 | J117: 1.28 | K117: 1.56 | L117: 1.48 | M117: 0.91 | N117: 0.57 | O117: 0.55 | P117: 9.82
A118: 5 | B118: 48231 | C118: Hunt | D118: 2.49 | E118: 3.13 | F118: 3.68 | G118: 3.78 | H118: 5.42 | I118: 4.04 | J118: 2.9 | K118: 2.17 | L118: 3.59 | M118: 4.87 | N118: 3.99 | O118: 3.34 | P118: 43.4
A119: 1 | B119: 48233 | C119: Hutchinson | D119: 0.66 | E119: 0.69 | F119: 1.56 | G119: 1.77 | H119: 3.08 | I119: 3.2 | J119: 2.69 | K119: 3.16 | L119: 2 | M119: 1.6 | N119: 0.88 | O119: 0.7 | P119: 21.99
A120: 2 | B120: 48235 | C120: Irion | D120: 0.75 | E120: 1.05 | F120: 0.82 | G120: 1.54 | H120: 3.77 | I120: 2.46 | J120: 1.45 | K120: 2.97 | L120: 2.96 | M120: 2.71 | N120: 0.89 | O120: 1.22 | P120: 22.59
A121: 5 | B121: 48237 | C121: Jack | D121: 1.27 | E121: 1.78 | F121: 2.28 | G121: 2.36 | H121: 5.04 | I121: 3.84 | J121: 1.87 | K121: 2.4 | L121: 3.32 | M121: 3.31 | N121: 2.11 | O121: 1.79 | P121: 31.37
A122: 3 | B122: 48239 | C122: Jackson | D122: 2.71 | E122: 2.44 | F122: 1.89 | G122: 2.61 | H122: 4.86 | I122: 4.81 | J122: 3.48 | K122: 3.08 | L122: 5.93 | M122: 4 | N122: 3.13 | O122: 2.47 | P122: 41.41
A123: 4 | B123: 48241 | C123: Jasper | D123: 4.25 | E123: 4.46 | F123: 4.41 | G123: 3.61 | H123: 5.61 | I123: 5.16 | J123: 3.8 | K123: 3.47 | L123: 3.99 | M123: 3.81 | N123: 4.6 | O123: 5.29 | P123: 52.46
A124: 2 | B124: 48243 | C124: Jeff Davis | D124: 0.37 | E124: 0.33 | F124: 0.21 | G124: 0.43 | H124: 0.81 | I124: 2.29 | J124: 2.04 | K124: 2.32 | L124: 2.18 | M124: 1.29 | N124: 0.43 | O124: 0.58 | P124: 13.28
A125: 4 | B125: 48245 | C125: Jefferson | D125: 4.51 | E125: 3.66 | F125: 3.44 | G125: 3.41 | H125: 5.38 | I125: 6 | J125: 5.35 | K125: 4.51 | L125: 6.42 | M125: 4.9 | N125: 4.74 | O125: 4.54 | P125: 56.86
A126: 3 | B126: 48247 | C126: Jim Hogg | D126: 1.08 | E126: 1.38 | F126: 1.12 | G126: 1.68 | H126: 3.33 | I126: 3.13 | J126: 1.44 | K126: 2.32 | L126: 3.82 | M126: 2.27 | N126: 1.25 | O126: 1.12 | P126: 23.94
A127: 3 | B127: 48249 | C127: Jim Wells | D127: 1.19 | E127: 1.46 | F127: 1.37 | G127: 1.65 | H127: 3.09 | I127: 3.35 | J127: 1.67 | K127: 2.68 | L127: 4.45 | M127: 3.51 | N127: 1.53 | O127: 1.16 | P127: 27.11
A128: 5 | B128: 48251 | C128: Johnson | D128: 1.9 | E128: 2.29 | F128: 3.07 | G128: 3.53 | H128: 5.11 | I128: 3.9 | J128: 2.18 | K128: 2.36 | L128: 2.87 | M128: 3.92 | N128: 2.54 | O128: 2.57 | P128: 36.24
A129: 5 | B129: 48253 | C129: Jones | D129: 1.06 | E129: 1.59 | F129: 1.23 | G129: 2.07 | H129: 3.26 | I129: 3.12 | J129: 2.16 | K129: 3.02 | L129: 4.05 | M129: 2.63 | N129: 1.19 | O129: 1.43 | P129: 26.81
A130: 3 | B130: 48255 | C130: Karnes | D130: 1.55 | E130: 1.78 | F130: 1.6 | G130: 2.36 | H130: 3.34 | I130: 3.91 | J130: 1.86 | K130: 2.45 | L130: 3.06 | M130: 2.98 | N130: 1.98 | O130: 1.54 | P130: =SUM(D130:O130) -> 28.41
A131: 5 | B131: 48257 | C131: Kaufman | D131: 2.66 | E131: 2.97 | F131: 3.36 | G131: 3.07 | H131: 4.43 | I131: 3.4 | J131: 2.15 | K131: 1.98 | L131: 2.82 | M131: 4.71 | N131: 3.8 | O131: 3.38 | P131: 38.73
A132: 2 | B132: 48259 | C132: Kendall | D132: 1.79 | E132: 2.24 | F132: 2.57 | G132: 2.87 | H132: 4.66 | I132: 4.77 | J132: 2.23 | K132: 3.05 | L132: 3.61 | M132: 4.02 | N132: 3.11 | O132: 2.37 | P132: 37.29
A133: 3 | B133: 48261 | C133: Kenedy | D133: 1.13 | E133: 1.8 | F133: 1.41 | G133: 1.62 | H133: 2.62 | I133: 3.41 | J133: 1.54 | K133: 3.44 | L133: 4.63 | M133: 3.58 | N133: 1.85 | O133: 1.29 | P133: 28.32
A134: 1 | B134: 48263 | C134: Kent | D134: 0.9 | E134: 1.14 | F134: 1.12 | G134: 1.73 | H134: 3.28 | I134: 3.24 | J134: 1.63 | K134: 2.9 | L134: 3.03 | M134: 2.23 | N134: 0.98 | O134: 0.9 | P134: 23.08
A135: 2 | B135: 48265 | C135: Kerr | D135: 1.33 | E135: 1.96 | F135: 2.2 | G135: 2.3 | H135: 4.31 | I135: 3.89 | J135: 2.17 | K135: 2.26 | L135: 3.57 | M135: 3.54 | N135: 2.7 | O135: 2.11 | P135: 32.34
A136: 2 | B136: 48267 | C136: Kimble | D136: 0.85 | E136: 1.44 | F136: 1.29 | G136: 2.03 | H136: 3.42 | I136: 2.85 | J136: 1.75 | K136: 2.37 | L136: 2.55 | M136: 2.32 | N136: 1.15 | O136: 1.38 | P136: 23.4
A137: 1 | B137: 48269 | C137: King | D137: 1.1 | E137: 1.44 | F137: 1.27 | G137: 1.79 | H137: 3.83 | I137: 3.31 | J137: 1.97 | K137: 2.95 | L137: 3.15 | M137: 2.37 | N137: 1.12 | O137: 1.04 | P137: 25.34
A138: 2 | B138: 48271 | C138: Kinney | D138: 0.78 | E138: 1.26 | F138: 1.07 | G138: 1.99 | H138: 2.87 | I138: 3.06 | J138: 1.79 | K138: 2.29 | L138: 2.87 | M138: 2.56 | N138: 1.41 | O138: 0.92 | P138: 22.87
A139: 3 | B139: 48273 | C139: Kleberg | D139: 1.69 | E139: 1.88 | F139: 1.19 | G139: 1.88 | H139: 3.53 | I139: 4.47 | J139: 2.45 | K139: 2.92 | L139: 4.17 | M139: 3.45 | N139: 1.57 | O139: 1.26 | P139: 30.46
A140: 5 | B140: 48275 | C140: Knox | D140: 1 | E140: 1.54 | F140: 1.68 | G140: 1.91 | H140: 3.84 | I140: 3.46 | J140: 1.7 | K140: 2.68 | L140: 3.22 | M140: 2.73 | N140: 1.3 | O140: 1.2 | P140: 26.26
A141: 4 | B141: 48277 | C141: Lamar | D141: 2.27 | E141: 3.22 | F141: 4.09 | G141: 4.04 | H141: 5.94 | I141: 3.89 | J141: 3.54 | K141: 2.71 | L141: 4.86 | M141: 4.66 | N141: 3.83 | O141: 3.3 | P141: 46.35
A142: 1 | B142: 48279 | C142: Lamb | D142: 0.57 | E142: 0.52 | F142: 0.75 | G142: 1.13 | H142: 2.24 | I142: 3.04 | J142: 2.4 | K142: 2.8 | L142: 2.26 | M142: 1.51 | N142: 0.76 | O142: 0.72 | P142: 18.7
A143: 5 | B143: 48281 | C143: Lampasas | D143: 1.5 | E143: 2.34 | F143: 2.31 | G143: 2.54 | H143: 4.37 | I143: 3.36 | J143: 1.73 | K143: 2.22 | L143: 2.65 | M143: 3.33 | N143: 2.32 | O143: 2.22 | P143: 30.89
A144: 3 | B144: 48283 | C144: LaSalle | D144: 1.03 | E144: 0.99 | F144: 1.17 | G144: 2.11 | H144: 2.81 | I144: 2.98 | J144: 1.53 | K144: 2.57 | L144: 2.26 | M144: 3.47 | N144: 1.47 | O144: 1.16 | P144: 23.55
A145: 3 | B145: 48285 | C145: Lavaca | D145: 2.93 | E145: 2.56 | F145: 2.46 | G145: 3.39 | H145: 5.75 | I145: 4.73 | J145: 2.28 | K145: 2.95 | L145: 4.49 | M145: 4.07 | N145: 3.52 | O145: 2.8 | P145: 41.93
A146: 3 | B146: 48287 | C146: Lee | D146: 3.05 | E146: 2.61 | F146: 2.54 | G146: 2.95 | H146: 5.23 | I146: 3.77 | J146: 1.55 | K146: 2.73 | L146: 3.96 | M146: 4.45 | N146: 3.3 | O146: 2.99 | P146: 39.13
A147: 4 | B147: 48289 | C147: Leon | D147: 3.11 | E147: 3.25 | F147: 3.62 | G147: 4.34 | H147: 4.42 | I147: 3.36 | J147: 2.39 | K147: 2.01 | L147: 4.24 | M147: 4.35 | N147: 3.93 | O147: 3.5 | P147: 42.52
A148: 4 | B148: 48291 | C148: Liberty | D148: 4.18 | E148: 3.87 | F148: 3.77 | G148: 3.58 | H148: 6.01 | I148: 5.37 | J148: 3.95 | K148: 3.33 | L148: 4.63 | M148: 4.36 | N148: 4.19 | O148: 4.56 | P148: 51.8
A149: 5 | B149: 48293 | C149: Limestone | D149: 2.44 | E149: 3.08 | F149: 3.45 | G149: 2.94 | H149: 4.8 | I149: 3.89 | J149: 1.99 | K149: 2.67 | L149: 4.18 | M149: 4.28 | N149: 3.64 | O149: 3.85 | P149: 41.21
A150: 1 | B150: 48295 | C150: Lipscomb | D150: 0.63 | E150: 0.97 | F150: 2.22 | G150: 2.11 | H150: 3.58 | I150: 3.27 | J150: 2.46 | K150: 2.77 | L150: 2.06 | M150: 1.54 | N150: 1.21 | O150: 0.76 | P150: 23.58
A151: 3 | B151: 48297 | C151: Live Oak | D151: 1.27 | E151: 1.46 | F151: 1.61 | G151: 2.39 | H151: 3.02 | I151: 3.33 | J151: 1.76 | K151: 3.03 | L151: 2.85 | M151: 2.88 | N151: 1.53 | O151: 1.44 | P151: 26.57
A152: 2 | B152: 48299 | C152: Llano | D152: 1.08 | E152: 1.75 | F152: 1.88 | G152: 2.19 | H152: 3.92 | I152: 3.4 | J152: 1.84 | K152: 2.03 | L152: 2.14 | M152: 2.88 | N152: 2.22 | O152: 1.9 | P152: 27.23
A153: 2 | B153: 48301 | C153: Loving | D153: 0.35 | E153: 0.38 | F153: 0.35 | G153: 0.44 | H153: 1.04 | I153: 1.39 | J153: 1.64 | K153: 1.58 | L153: 1.95 | M153: 1.13 | N153: 0.44 | O153: 0.36 | P153: 11.05
A154: 1 | B154: 48303 | C154: Lubbock | D154: 0.5 | E154: 0.71 | F154: 0.76 | G154: 1.29 | H154: 2.31 | I154: 2.98 | J154: 2.13 | K154: 2.35 | L154: 2.57 | M154: 1.7 | N154: 0.71 | O154: 0.67 | P154: 18.68
A155: 1 | B155: 48305 | C155: Lynn | D155: 0.66 | E155: 0.79 | F155: 0.71 | G155: 1.48 | H155: 2.74 | I155: 3.22 | J155: 2.61 | K155: 2.23 | L155: 2.65 | M155: 1.73 | N155: 0.85 | O155: 0.83 | P155: 20.5
A156: 4 | B156: 48313 | C156: Madison | D156: 3.07 | E156: 2.8 | F156: 3.15 | G156: 3.52 | H156: 4.98 | I156: 3.93 | J156: 2.32 | K156: 2.61 | L156: 4.45 | M156: 4.09 | N156: 3.68 | O156: 2.97 | P156: 41.57
A157: 4 | B157: 48315 | C157: Marion | D157: 3.57 | E157: 3.88 | F157: 4.09 | G157: 4.37 | H157: 4.43 | I157: 4.05 | J157: 2.86 | K157: 2.83 | L157: 3.05 | M157: 3.83 | N157: 4.26 | O157: 4.09 | P157: 45.31
A158: 2 | B158: 48317 | C158: Martin | D158: 0.72 | E158: 0.68 | F158: 0.67 | G158: 1.24 | H158: 2.42 | I158: 2.43 | J158: 2 | K158: 1.59 | L158: 3.09 | M158: 1.77 | N158: 0.81 | O158: 0.68 | P158: 18.1
A159: 2 | B159: 48319 | C159: Mason | D159: 0.91 | E159: 1.88 | F159: 1.73 | G159: 1.93 | H159: 3.4 | I159: 3.77 | J159: 2.02 | K159: 2.69 | L159: 3.05 | M159: 3.15 | N159: 2.01 | O159: 1.16 | P159: 27.7
A160: 3 | B160: 48321 | C160: Matagorda | D160: 3.18 | E160: 2.45 | F160: 2.7 | G160: 2.8 | H160: 4.51 | I160: 4.31 | J160: 3.99 | K160: 3.28 | L160: 6.58 | M160: 5.01 | N160: 3.39 | O160: 3.08 | P160: 45.28
A161: 2 | B161: 48323 | C161: Maverick | D161: 0.83 | E161: 0.94 | F161: 0.74 | G161: 1.74 | H161: 2.97 | I161: 3.49 | J161: 2.03 | K161: 2.01 | L161: 2.61 | M161: 2.33 | N161: 1.08 | O161: 0.8 | P161: 21.57
A162: 2 | B162: 48307 | C162: McCulloch | D162: 1.01 | E162: 1.68 | F162: 1.63 | G162: 1.91 | H162: 3.6 | I162: 3.26 | J162: 2.72 | K162: 2.57 | L162: 3.26 | M162: 2.68 | N162: 1.73 | O162: 1.61 | P162: 27.66
A163: 5 | B163: 48309 | C163: McLennan | D163: 2.13 | E163: 2.57 | F163: 2.92 | G163: 2.83 | H163: 4.55 | I163: 3.37 | J163: 1.74 | K163: 2.13 | L163: 3.01 | M163: 3.48 | N163: 3.05 | O163: 3.02 | P163: 34.8
A164: 3 | B164: 48311 | C164: McMullen | D164: 1.15 | E164: 1.27 | F164: 1.35 | G164: 1.95 | H164: 3.1 | I164: 3.17 | J164: 1.51 | K164: 2.54 | L164: 2.76 | M164: 2.13 | N164: 1.3 | O164: 1.2 | P164: 23.43
A165: 2 | B165: 48325 | C165: Medina | D165: 1.55 | E165: 1.86 | F165: 1.68 | G165: 2.32 | H165: 3.44 | I165: 3.72 | J165: 1.33 | K165: 1.87 | L165: 2.57 | M165: 3.27 | N165: 2.04 | O165: 1.65 | P165: 27.3
A166: 2 | B166: 48327 | C166: Menard | D166: 0.96 | E166: 1.48 | F166: 1.6 | G166: 1.68 | H166: 3.22 | I166: 3.38 | J166: 2.13 | K166: 2.3 | L166: 2.73 | M166: 2.57 | N166: 1.52 | O166: 1.28 | P166: 24.85
A167: 2 | B167: 48329 | C167: Midland | D167: 0.53 | E167: 0.58 | F167: 0.42 | G167: 0.73 | H167: 1.78 | I167: 1.71 | J167: 1.89 | K167: 1.77 | L167: 2.31 | M167: 1.77 | N167: 0.65 | O167: 0.65 | P167: 14.79
A168: 5 | B168: 48331 | C168: Milam | D168: 2.29 | E168: 2.52 | F168: 2.45 | G168: 2.88 | H168: 5.03 | I168: 3.22 | J168: 1.94 | K168: 1.95 | L168: 3.54 | M168: 3.73 | N168: 3.12 | O168: 2.86 | P168: 35.53
A169: 5 | B169: 48333 | C169: Mills | D169: 1.38 | E169: 2.12 | F169: 2.06 | G169: 2.41 | H169: 3.75 | I169: 3.48 | J169: 2.35 | K169: 1.86 | L169: 2.51 | M169: 3.07 | N169: 2.11 | O169: 1.85 | P169: 28.95
A170: 2 | B170: 48335 | C170: Mitchell | D170: 0.7 | E170: 0.92 | F170: 0.93 | G170: 1.59 | H170: 2.81 | I170: 2.59 | J170: 1.8 | K170: 2.29 | L170: 3.68 | M170: 2.17 | N170: 0.96 | O170: 0.77 | P170: 21.21
A171: 5 | B171: 48337 | C171: Montague | D171: 1.47 | E171: 2.13 | F171: 2.61 | G171: 2.89 | H171: 5.04 | I171: 3.49 | J171: 1.81 | K171: 2.27 | L171: 3.52 | M171: 4.2 | N171: 2.18 | O171: 1.99 | P171: 33.6
A172: 4 | B172: 48339 | C172: Montgomery | D172: 3.64 | E172: 3.16 | F172: 2.79 | G172: 3.84 | H172: 5.53 | I172: 4.48 | J172: 3.5 | K172: 3.54 | L172: 4.98 | M172: 3.71 | N172: 4.16 | O172: 4.01 | P172: 47.34
A173: 1 | B173: 48341 | C173: Moore | D173: 0.46 | E173: 0.58 | F173: 1.13 | G173: 1.31 | H173: 2.7 | I173: 2.41 | J173: 2.41 | K173: 2.43 | L173: 2.01 | M173: 1.18 | N173: 0.66 | O173: 0.5 | P173: 17.78
A174: 4 | B174: 48343 | C174: Morris | D174: 2.91 | E174: 3.46 | F174: 4.42 | G174: 4.82 | H174: 4.67 | I174: 3.55 | J174: 2.77 | K174: 2.43 | L174: 3.2 | M174: 3.97 | N174: 4.46 | O174: 4.1 | P174: 44.76
A175: 1 | B175: 48345 | C175: Motley | D175: 0.67 | E175: 0.91 | F175: 1.21 | G175: 1.81 | H175: 3.16 | I175: 3.6 | J175: 2.16 | K175: 2.41 | L175: 3.21 | M175: 2.09 | N175: 0.99 | O175: 0.86 | P175: 23.08
A176: 4 | B176: 48347 | C176: Nacogdoches | D176: 4.46 | E176: 4.04 | F176: 4.05 | G176: 4.13 | H176: 4.72 | I176: 4.25 | J176: 2.75 | K176: 3.21 | L176: 3.75 | M176: 4.14 | N176: 4.74 | O176: 4.4 | P176: 48.64
A177: 5 | B177: 48349 | C177: Navarro | D177: 2.49 | E177: 3.08 | F177: 3.34 | G177: 3.45 | H177: 4.93 | I177: 3.4 | J177: 2.16 | K177: 2.43 | L177: 3.07 | M177: 4.33 | N177: 3.33 | O177: 3.6 | P177: 39.61
A178: 4 | B178: 48351 | C178: Newton | D178: 4.57 | E178: 4.74 | F178: 3.84 | G178: 3.69 | H178: 4.82 | I178: 4.39 | J178: 5.01 | K178: 3.59 | L178: 4.49 | M178: 3.98 | N178: 5.1 | O178: 6.29 | P178: 54.51
A179: 2 | B179: 48353 | C179: Nolan | D179: 1.03 | E179: 1.18 | F179: 1.11 | G179: 1.52 | H179: 3.04 | I179: 3.09 | J179: 1.89 | K179: 2.59 | L179: 3.58 | M179: 2.53 | N179: 0.99 | O179: 0.99 | P179: 23.54
A180: 3 | B180: 48355 | C180: Nueces | D180: 1.83 | E180: 1.89 | F180: 1.78 | G180: 1.97 | H180: 3.38 | I180: 3.51 | J180: 2.35 | K180: 3.56 | L180: 4.71 | M180: 3.97 | N180: 2.12 | O180: 1.56 | P180: 32.63
A181: 1 | B181: 48357 | C181: Ochiltree | D181: 0.46 | E181: 0.62 | F181: 1.76 | G181: 1.88 | H181: 3.38 | I181: 2.92 | J181: 2.77 | K181: 2.1 | L181: 1.86 | M181: 1.38 | N181: 1.09 | O181: 0.66 | P181: 20.88
A182: 1 | B182: 48359 | C182: Oldham | D182: 0.54 | E182: 0.32 | F182: 1.02 | G182: 1.43 | H182: 2.43 | I182: 2.51 | J182: 3 | K182: 3.51 | L182: 2.18 | M182: 1.63 | N182: 0.67 | O182: 0.59 | P182: 19.83
A183: 4 | B183: 48361 | C183: Orange | D183: 5 | E183: 3.92 | F183: 3.79 | G183: 3.63 | H183: 5.39 | I183: 5.32 | J183: 5.34 | K183: 4.04 | L183: 5.91 | M183: 5.19 | N183: 4.38 | O183: 5.41 | P183: 57.32
A184: 5 | B184: 48363 | C184: Palo Pinto | D184: 1.38 | E184: 1.99 | F184: 2.28 | G184: 2.48 | H184: 4.62 | I184: 3.12 | J184: 2.28 | K184: 1.94 | L184: 2.57 | M184: 3.69 | N184: 2.18 | O184: 1.83 | P184: 30.36
A185: 4 | B185: 48365 | C185: Panola | D185: 4.1 | E185: 3.73 | F185: 3.79 | G185: 3.96 | H185: 4.92 | I185: 4.38 | J185: 3.17 | K185: 2.52 | L185: 4.16 | M185: 3.99 | N185: 4.86 | O185: 4.6 | P185: 48.18
A186: 5 | B186: 48367 | C186: Parker | D186: 1.76 | E186: 2.26 | F186: 2.87 | G186: 2.72 | H186: 4.75 | I186: 3.81 | J186: 2.23 | K186: 2.38 | L186: 2.86 | M186: 4.22 | N186: 2.64 | O186: 2.32 | P186: 34.82
A187: 1 | B187: 48369 | C187: Parmer | D187: 0.56 | E187: 0.53 | F187: 0.91 | G187: 1.09 | H187: 2.19 | I187: 2.5 | J187: 2.24 | K187: 2.89 | L187: 2.28 | M187: 1.6 | N187: 0.8 | O187: 0.79 | P187: 18.38
A188: 2 | B188: 48371 | C188: Pecos | D188: 0.5 | E188: 0.47 | F188: 0.38 | G188: 0.72 | H188: 1.64 | I188: 1.7 | J188: 1.35 | K188: 2.01 | L188: 2.75 | M188: 1.45 | N188: 0.61 | O188: 0.62 | P188: 14.2
A189: 4 | B189: 48373 | C189: Polk | D189: 3.96 | E189: 3.41 | F189: 3.81 | G189: 3.55 | H189: 5.53 | I189: 4.66 | J189: 3.65 | K189: 3.1 | L189: 4.5 | M189: 3.51 | N189: 4.33 | O189: 4.72 | P189: 48.73
A190: 1 | B190: 48375 | C190: Potter | D190: 0.64 | E190: 0.55 | F190: 1.13 | G190: 1.33 | H190: 2.62 | I190: 3.28 | J190: 2.68 | K190: 2.94 | L190: 1.88 | M190: 1.5 | N190: 0.68 | O190: 0.61 | P190: 19.84
A191: 2 | B191: 48377 | C191: Presidio | D191: 0.31 | E191: 0.46 | F191: 0.15 | G191: 0.38 | H191: 0.66 | I191: 1.41 | J191: 2.01 | K191: 1.82 | L191: 1.72 | M191: 0.99 | N191: 0.37 | O191: 0.54 | P191: 10.82
A192: 4 | B192: 48379 | C192: Rains | D192: 2.68 | E192: 3.53 | F192: 3.62 | G192: 4 | H192: 5.72 | I192: 3.79 | J192: 2.68 | K192: 2.18 | L192: 3.63 | M192: 4.31 | N192: 3.56 | O192: 3.43 | P192: 43.13
A193: 1 | B193: 48381 | C193: Randall | D193: 0.46 | E193: 0.52 | F193: 0.99 | G193: 1.08 | H193: 2.89 | I193: 2.96 | J193: 2.38 | K193: 2.84 | L193: 1.97 | M193: 1.77 | N193: 0.69 | O193: 0.62 | P193: 19.17
A194: 2 | B194: 48383 | C194: Reagan | D194: 0.67 | E194: 0.91 | F194: 0.8 | G194: 1.42 | H194: 2.39 | I194: 1.99 | J194: 1.79 | K194: 2.18 | L194: 3.08 | M194: 1.92 | N194: 0.9 | O194: 0.83 | P194: =SUM(D194:O194) -> 18.88
A195: 2 | B195: 48385 | C195: Real | D195: 1.11 | E195: 1.44 | F195: 1.56 | G195: 2.41 | H195: 3.13 | I195: 3.8 | J195: 2.1 | K195: 3.17 | L195: 2.98 | M195: 3.48 | N195: 1.8 | O195: 1.4 | P195: 28.38
A196: 4 | B196: 48387 | C196: Red River | D196: 2.85 | E196: 3.66 | F196: 4.62 | G196: 4.55 | H196: 4.97 | I196: 4.41 | J196: 4.03 | K196: 2.73 | L196: 4.32 | M196: 4.25 | N196: 4.5 | O196: 3.95 | P196: 48.84
A197: 2 | B197: 48389 | C197: Reeves | D197: 0.48 | E197: 0.46 | F197: 0.34 | G197: 0.47 | H197: 1.25 | I197: 1.23 | J197: 1.34 | K197: 1.62 | L197: 2.31 | M197: 1.12 | N197: 0.46 | O197: 0.64 | P197: 11.72
A198: 3 | B198: 48391 | C198: Refugio | D198: 2.64 | E198: 1.95 | F198: 1.31 | G198: 1.84 | H198: 4.13 | I198: 4.99 | J198: 4.21 | K198: 4.36 | L198: 8.7 | M198: 4.89 | N198: 2.2 | O198: 1.38 | P198: 42.6
A199: 1 | B199: 48393 | C199: Roberts | D199: 0.68 | E199: 0.83 | F199: 1.89 | G199: 2.19 | H199: 3.84 | I199: 3.32 | J199: 2.39 | K199: 2.4 | L199: 2.38 | M199: 1.69 | N199: 1.12 | O199: 0.89 | P199: 23.62
A200: 4 | B200: 48395 | C200: Robertson | D200: 2.4 | E200: 2.6 | F200: 2.83 | G200: 3.32 | H200: 5.08 | I200: 2.29 | J200: 2.43 | K200: 1.97 | L200: 3.79 | M200: 4.08 | N200: 2.92 | O200: 2.61 | P200: 36.32
... 56 more rows
